Organisation Code,Organisation Label,Effective Date,Organisational Unit,Service Division Label,Category Internal Name,Purpose,Detailed Expenditure Code,Payment Date,Transaction Number,Irrecoverable VAT Amount,Amount,Capital Or Revenue,Benificiary Name,Procurement Card
Http://opendatacommunities.org/id/metropolitan-district-council/leeds,Leeds City Council,31/01/2018,Resources and Housing,Leeds Building Services,Supplies and Services,Operational Materials,205,25/01/2018,0118-00001,0.00,240.00,R,A & A Electrical Distributors Ltd,No
Http://opendatacommunities.org/id/metropolitan-district-council/leeds,Leeds City Council,31/01/2018,Resources and Housing,Leeds Building Services,Supplies and Services,Operational Materials,205,29/01/2018,0118-00002,0.00,94.78,R,A & A Electrical Distributors Ltd,No
Http://opendatacommunities.org/id/metropolitan-district-council/leeds,Leeds City Council,31/01/2018,Resources and Housing,Leeds Building Services,Supplies and Services,Operational Materials,205,17/01/2018,0118-00003,0.00,268.35,R,A Andrews & Sons (Marbles & Tiles),No
Http://opendatacommunities.org/id/metropolitan-district-council/leeds,Leeds City Council,31/01/2018,Resources and Housing,Leeds Building Services,Supplies and Services,Operational Materials,205,17/01/2018,0118-00004,0.00,29.67,R,A Andrews & Sons (Marbles & Tiles),No
Http://opendatacommunities.org/id/metropolitan-district-council/leeds,Leeds City Council,31/01/2018,Resources and Housing,Leeds Building Services,Supplies and Services,Operational Materials,205,17/01/2018,0118-00005,0.00,9.18,R,A Andrews & Sons (Marbles & Tiles),No
Http://opendatacommunities.org/id/metropolitan-district-council/leeds,Leeds City Council,31/01/2018,Children and Families,Safeguarding Targeted & Specialist,Third Party Payments,Services Rendered By Other Organisations,511,15/01/2018,0118-00006,0.00,1333.20,R,REDACTED PERSONAL DATA,No
Http://opendatacommunities.org/id/metropolitan-district-council/leeds,Leeds City Council,31/01/2018,City Development,Libraries  Arts & Heritage,Supplies and Services,Operational Furniture And Equipment,203,18/01/2018,0118-00007,0.00,140.00,R,A C Entertainment Technologies Ltd,No
Http://opendatacommunities.org/id/metropolitan-district-council/leeds,Leeds City Council,31/01/2018,City Development,Libraries  Arts & Heritage,Supplies and Services,Operational Materials,205,22/01/2018,0118-00008,0.00,395.00,R,A C Entertainment Technologies Ltd,No
Http://opendatacommunities.org/id/metropolitan-district-council/leeds,Leeds City Council,31/01/2018,Children and Families,Safeguarding Targeted & Specialist,Third Party Payments,Services Rendered By Other Organisations,511,17/01/2018,0118-00009,0.00,2217.60,R,REDACTED PERSONAL DATA,No
Http://opendatacommunities.org/id/metropolitan-district-council/leeds,Leeds City Council,31/01/2018,Children and Families,Safeguarding Targeted & Specialist,Third Party Payments,Services Rendered By Other Organisations,511,15/01/2018,0118-00010,0.00,666.60,R,A Clarkson,No
Http://opendatacommunities.org/id/metropolitan-district-council/leeds,Leeds City Council,31/01/2018,Children and Families,Safeguarding Targeted & Specialist,Third Party Payments,Services Rendered By Other Organisations,511,17/01/2018,0118-00011,0.00,329.28,R,A Clarkson,No
Http://opendatacommunities.org/id/metropolitan-district-council/leeds,Leeds City Council,31/01/2018,Children and Families,Safeguarding Targeted & Specialist,Third Party Payments,Services Rendered By Voluntary Sector,505,15/01/2018,0118-00012,0.00,7999.20,R,REDACTED PERSONAL DATA,No
Http://opendatacommunities.org/id/metropolitan-district-council/leeds,Leeds City Council,31/01/2018,Children and Families,Safeguarding Targeted & Specialist,Third Party Payments,Services Rendered By Voluntary Sector,505,17/01/2018,0118-00013,0.00,10311.84,R,REDACTED PERSONAL DATA,No
Http://opendatacommunities.org/id/metropolitan-district-council/leeds,Leeds City Council,31/01/2018,Children and Families,Safeguarding Targeted & Specialist,Third Party Payments,Services Rendered By Other Organisations,511,15/01/2018,0118-00014,0.00,666.60,R,REDACTED PERSONAL DATA,No
Http://opendatacommunities.org/id/metropolitan-district-council/leeds,Leeds City Council,31/01/2018,Children and Families,Safeguarding Targeted & Specialist,Third Party Payments,Services Rendered By Other Organisations,511,17/01/2018,0118-00015,0.00,2772.00,R,REDACTED PERSONAL DATA,No
Http://opendatacommunities.org/id/metropolitan-district-council/leeds,Leeds City Council,31/01/2018,Children and Families,Safeguarding Targeted & Specialist,Third Party Payments,Services Rendered By Other Organisations,511,17/01/2018,0118-00016,0.00,1034.88,R,A Hayes,No
Http://opendatacommunities.org/id/metropolitan-district-council/leeds,Leeds City Council,31/01/2018,Children and Families,Safeguarding Targeted & Specialist,Third Party Payments,Services Rendered By Other Organisations,511,17/01/2018,0118-00017,0.00,2457.84,R,A Hodgson,No
Http://opendatacommunities.org/id/metropolitan-district-council/leeds,Leeds City Council,31/01/2018,Children and Families,Safeguarding Targeted & Specialist,Third Party Payments,Services Rendered By Other Organisations,511,17/01/2018,0118-00018,0.00,443.52,R,REDACTED PERSONAL DATA,No
Http://opendatacommunities.org/id/metropolitan-district-council/leeds,Leeds City Council,31/01/2018,Children and Families,Safeguarding Targeted & Specialist,Third Party Payments,Services Rendered By Other Organisations,511,17/01/2018,0118-00019,0.00,1515.36,R,REDACTED PERSONAL DATA,No
Http://opendatacommunities.org/id/metropolitan-district-council/leeds,Leeds City Council,31/01/2018,Children and Families,Safeguarding Targeted & Specialist,Third Party Payments,Services Rendered By Other Organisations,511,15/01/2018,0118-00020,0.00,666.60,R,REDACTED PERSONAL DATA,No
Http://opendatacommunities.org/id/metropolitan-district-council/leeds,Leeds City Council,31/01/2018,Children and Families,Safeguarding Targeted & Specialist,Third Party Payments,Services Rendered By Other Organisations,511,17/01/2018,0118-00021,0.00,1108.80,R,REDACTED PERSONAL DATA,No
Http://opendatacommunities.org/id/metropolitan-district-council/leeds,Leeds City Council,31/01/2018,Resources and Housing,Leeds Building Services,Supplies and Services,Operational Materials,205,17/01/2018,0118-00022,0.00,180.00,R,A J H  Pump Supply & Repair Ltd,No
Http://opendatacommunities.org/id/metropolitan-district-council/leeds,Leeds City Council,31/01/2018,Resources and Housing,Leeds Building Services,Supplies and Services,Operational Materials,205,17/01/2018,0118-00023,0.00,906.40,R,A J H  Pump Supply & Repair Ltd,No
Http://opendatacommunities.org/id/metropolitan-district-council/leeds,Leeds City Council,31/01/2018,Resources and Housing,Leeds Building Services,Supplies and Services,Operational Materials,205,17/01/2018,0118-00024,0.00,95.05,R,A J H  Pump Supply & Repair Ltd,No
Http://opendatacommunities.org/id/metropolitan-district-council/leeds,Leeds City Council,31/01/2018,Resources and Housing,Leeds Building Services,Supplies and Services,Operational Materials,205,17/01/2018,0118-00025,0.00,56.99,R,A J H  Pump Supply & Repair Ltd,No
Http://opendatacommunities.org/id/metropolitan-district-council/leeds,Leeds City Council,31/01/2018,Resources and Housing,Leeds Building Services,Supplies and Services,Operational Materials,205,17/01/2018,0118-00026,0.00,240.00,R,A J H  Pump Supply & Repair Ltd,No
Http://opendatacommunities.org/id/metropolitan-district-council/leeds,Leeds City Council,31/01/2018,Resources and Housing,Leeds Building Services,Supplies and Services,Operational Materials,205,17/01/2018,0118-00027,0.00,296.65,R,A J H  Pump Supply & Repair Ltd,No
Http://opendatacommunities.org/id/metropolitan-district-council/leeds,Leeds City Council,31/01/2018,Resources and Housing,Leeds Building Services,Supplies and Services,Operational Materials,205,17/01/2018,0118-00028,0.00,91.44,R,A J H  Pump Supply & Repair Ltd,No
Http://opendatacommunities.org/id/metropolitan-district-council/leeds,Leeds City Council,31/01/2018,Resources and Housing,Leeds Building Services,Supplies and Services,Operational Materials,205,17/01/2018,0118-00029,0.00,95.00,R,A J H  Pump Supply & Repair Ltd,No
Http://opendatacommunities.org/id/metropolitan-district-council/leeds,Leeds City Council,31/01/2018,Resources and Housing,Leeds Building Services,Supplies and Services,Operational Materials,205,17/01/2018,0118-00030,0.00,31.95,R,A J H  Pump Supply & Repair Ltd,No
Http://opendatacommunities.org/id/metropolitan-district-council/leeds,Leeds City Council,31/01/2018,Resources and Housing,Leeds Building Services,Supplies and Services,Operational Materials,205,17/01/2018,0118-00031,0.00,210.00,R,A J H  Pump Supply & Repair Ltd,No
Http://opendatacommunities.org/id/metropolitan-district-council/leeds,Leeds City Council,31/01/2018,Resources and Housing,Leeds Building Services,Supplies and Services,Operational Materials,205,17/01/2018,0118-00032,0.00,33.00,R,A J H  Pump Supply & Repair Ltd,No
Http://opendatacommunities.org/id/metropolitan-district-council/leeds,Leeds City Council,31/01/2018,Resources and Housing,Leeds Building Services,Supplies and Services,Operational Furniture And Equipment,203,17/01/2018,0118-00033,0.00,254.00,R,A J H  Pump Supply & Repair Ltd,No
Http://opendatacommunities.org/id/metropolitan-district-council/leeds,Leeds City Council,31/01/2018,Resources and Housing,Leeds Building Services,Supplies and Services,Operational Materials,205,18/01/2018,0118-00034,0.00,177.56,R,A J H  Pump Supply & Repair Ltd,No
Http://opendatacommunities.org/id/metropolitan-district-council/leeds,Leeds City Council,31/01/2018,Resources and Housing,Leeds Building Services,Supplies and Services,Operational Materials,205,18/01/2018,0118-00035,0.00,123.34,R,A J H  Pump Supply & Repair Ltd,No
Http://opendatacommunities.org/id/metropolitan-district-council/leeds,Leeds City Council,31/01/2018,Resources and Housing,Leeds Building Services,Supplies and Services,Operational Materials,205,18/01/2018,0118-00036,0.00,1017.00,R,A J H  Pump Supply & Repair Ltd,No
Http://opendatacommunities.org/id/metropolitan-district-council/leeds,Leeds City Council,31/01/2018,Resources and Housing,Leeds Building Services,Supplies and Services,Operational Materials,205,18/01/2018,0118-00037,0.00,132.70,R,A J H  Pump Supply & Repair Ltd,No
Http://opendatacommunities.org/id/metropolitan-district-council/leeds,Leeds City Council,31/01/2018,Resources and Housing,Leeds Building Services,Supplies and Services,Operational Materials,205,18/01/2018,0118-00038,0.00,169.00,R,A J H  Pump Supply & Repair Ltd,No
Http://opendatacommunities.org/id/metropolitan-district-council/leeds,Leeds City Council,31/01/2018,Resources and Housing,Leeds Building Services,Supplies and Services,Operational Materials,205,18/01/2018,0118-00039,0.00,693.51,R,A J H  Pump Supply & Repair Ltd,No
Http://opendatacommunities.org/id/metropolitan-district-council/leeds,Leeds City Council,31/01/2018,Resources and Housing,Leeds Building Services,Supplies and Services,Operational Materials,205,18/01/2018,0118-00040,0.00,316.00,R,A J H  Pump Supply & Repair Ltd,No
Http://opendatacommunities.org/id/metropolitan-district-council/leeds,Leeds City Council,31/01/2018,Resources and Housing,Leeds Building Services,Supplies and Services,Operational Materials,205,18/01/2018,0118-00041,0.00,52.45,R,A J H  Pump Supply & Repair Ltd,No
Http://opendatacommunities.org/id/metropolitan-district-council/leeds,Leeds City Council,31/01/2018,Resources and Housing,Leeds Building Services,Supplies and Services,Operational Materials,205,18/01/2018,0118-00042,0.00,895.00,R,A J H  Pump Supply & Repair Ltd,No
Http://opendatacommunities.org/id/metropolitan-district-council/leeds,Leeds City Council,31/01/2018,Resources and Housing,Leeds Building Services,Supplies and Services,Operational Materials,205,18/01/2018,0118-00043,0.00,43.92,R,A J H  Pump Supply & Repair Ltd,No
Http://opendatacommunities.org/id/metropolitan-district-council/leeds,Leeds City Council,31/01/2018,Resources and Housing,Leeds Building Services,Supplies and Services,Operational Materials,205,18/01/2018,0118-00044,0.00,330.00,R,A J H  Pump Supply & Repair Ltd,No
Http://opendatacommunities.org/id/metropolitan-district-council/leeds,Leeds City Council,31/01/2018,Resources and Housing,Leeds Building Services,Supplies and Services,Operational Materials,205,18/01/2018,0118-00045,0.00,1071.00,R,A J H  Pump Supply & Repair Ltd,No
Http://opendatacommunities.org/id/metropolitan-district-council/leeds,Leeds City Council,31/01/2018,Resources and Housing,Leeds Building Services,Supplies and Services,Operational Materials,205,18/01/2018,0118-00046,0.00,316.00,R,A J H  Pump Supply & Repair Ltd,No
Http://opendatacommunities.org/id/metropolitan-district-council/leeds,Leeds City Council,31/01/2018,Resources and Housing,Leeds Building Services,Supplies and Services,Operational Materials,205,18/01/2018,0118-00047,0.00,76.15,R,A J H  Pump Supply & Repair Ltd,No
Http://opendatacommunities.org/id/metropolitan-district-council/leeds,Leeds City Council,31/01/2018,Resources and Housing,Leeds Building Services,Supplies and Services,Operational Materials,205,18/01/2018,0118-00048,0.00,91.00,R,A J H  Pump Supply & Repair Ltd,No
Http://opendatacommunities.org/id/metropolitan-district-council/leeds,Leeds City Council,31/01/2018,Resources and Housing,Leeds Building Services,Supplies and Services,Operational Materials,205,18/01/2018,0118-00049,0.00,211.32,R,A J H  Pump Supply & Repair Ltd,No
Http://opendatacommunities.org/id/metropolitan-district-council/leeds,Leeds City Council,31/01/2018,Resources and Housing,Leeds Building Services,Supplies and Services,Operational Materials,205,18/01/2018,0118-00050,0.00,11.38,R,A J H  Pump Supply & Repair Ltd,No
Http://opendatacommunities.org/id/metropolitan-district-council/leeds,Leeds City Council,31/01/2018,Resources and Housing,Leeds Building Services,Supplies and Services,Operational Materials,205,18/01/2018,0118-00051,0.00,371.95,R,A J H  Pump Supply & Repair Ltd,No
Http://opendatacommunities.org/id/metropolitan-district-council/leeds,Leeds City Council,31/01/2018,Resources and Housing,Leeds Building Services,Supplies and Services,Operational Materials,205,18/01/2018,0118-00052,0.00,325.90,R,A J H  Pump Supply & Repair Ltd,No
Http://opendatacommunities.org/id/metropolitan-district-council/leeds,Leeds City Council,31/01/2018,Resources and Housing,Leeds Building Services,Supplies and Services,Operational Furniture And Equipment,203,18/01/2018,0118-00053,0.00,254.00,R,A J H  Pump Supply & Repair Ltd,No
Http://opendatacommunities.org/id/metropolitan-district-council/leeds,Leeds City Council,31/01/2018,Resources and Housing,Leeds Building Services,Supplies and Services,Operational Materials,205,18/01/2018,0118-00054,0.00,94.24,R,A J H  Pump Supply & Repair Ltd,No
Http://opendatacommunities.org/id/metropolitan-district-council/leeds,Leeds City Council,31/01/2018,Resources and Housing,Leeds Building Services,Supplies and Services,Operational Materials,205,18/01/2018,0118-00055,0.00,109.00,R,A J H  Pump Supply & Repair Ltd,No
Http://opendatacommunities.org/id/metropolitan-district-council/leeds,Leeds City Council,31/01/2018,Resources and Housing,Leeds Building Services,Supplies and Services,Operational Materials,205,18/01/2018,0118-00056,0.00,130.00,R,A J H  Pump Supply & Repair Ltd,No
Http://opendatacommunities.org/id/metropolitan-district-council/leeds,Leeds City Council,31/01/2018,Resources and Housing,Leeds Building Services,Supplies and Services,Operational Materials,205,18/01/2018,0118-00057,0.00,62.70,R,A J H  Pump Supply & Repair Ltd,No
Http://opendatacommunities.org/id/metropolitan-district-council/leeds,Leeds City Council,31/01/2018,Resources and Housing,Leeds Building Services,Supplies and Services,Operational Materials,205,18/01/2018,0118-00058,0.00,155.00,R,A J H  Pump Supply & Repair Ltd,No
Http://opendatacommunities.org/id/metropolitan-district-council/leeds,Leeds City Council,31/01/2018,Resources and Housing,Leeds Building Services,Supplies and Services,Operational Materials,205,18/01/2018,0118-00059,0.00,45.45,R,A J H  Pump Supply & Repair Ltd,No
Http://opendatacommunities.org/id/metropolitan-district-council/leeds,Leeds City Council,31/01/2018,Resources and Housing,Leeds Building Services,Supplies and Services,Operational Materials,205,18/01/2018,0118-00060,0.00,178.50,R,A J H  Pump Supply & Repair Ltd,No
Http://opendatacommunities.org/id/metropolitan-district-council/leeds,Leeds City Council,31/01/2018,Resources and Housing,Leeds Building Services,Supplies and Services,Operational Materials,205,18/01/2018,0118-00061,0.00,48.85,R,A J H  Pump Supply & Repair Ltd,No
Http://opendatacommunities.org/id/metropolitan-district-council/leeds,Leeds City Council,31/01/2018,Resources and Housing,Leeds Building Services,Supplies and Services,Operational Materials,205,18/01/2018,0118-00062,0.00,645.00,R,A J H  Pump Supply & Repair Ltd,No
Http://opendatacommunities.org/id/metropolitan-district-council/leeds,Leeds City Council,31/01/2018,Resources and Housing,Leeds Building Services,Supplies and Services,Operational Materials,205,18/01/2018,0118-00063,0.00,241.90,R,A J H  Pump Supply & Repair Ltd,No
Http://opendatacommunities.org/id/metropolitan-district-council/leeds,Leeds City Council,31/01/2018,Resources and Housing,Leeds Building Services,Supplies and Services,Operational Materials,205,18/01/2018,0118-00064,0.00,146.77,R,A J H  Pump Supply & Repair Ltd,No
Http://opendatacommunities.org/id/metropolitan-district-council/leeds,Leeds City Council,31/01/2018,Resources and Housing,Leeds Building Services,Supplies and Services,Operational Materials,205,18/01/2018,0118-00065,0.00,61.08,R,A J H  Pump Supply & Repair Ltd,No
Http://opendatacommunities.org/id/metropolitan-district-council/leeds,Leeds City Council,31/01/2018,Resources and Housing,Leeds Building Services,Supplies and Services,Operational Materials,205,25/01/2018,0118-00066,0.00,95.00,R,A J H  Pump Supply & Repair Ltd,No
Http://opendatacommunities.org/id/metropolitan-district-council/leeds,Leeds City Council,31/01/2018,Resources and Housing,Leeds Building Services,Supplies and Services,Operational Materials,205,25/01/2018,0118-00067,0.00,170.50,R,A J H  Pump Supply & Repair Ltd,No
Http://opendatacommunities.org/id/metropolitan-district-council/leeds,Leeds City Council,31/01/2018,Resources and Housing,Leeds Building Services,Supplies and Services,Operational Materials,205,25/01/2018,0118-00068,0.00,127.50,R,A J H  Pump Supply & Repair Ltd,No
Http://opendatacommunities.org/id/metropolitan-district-council/leeds,Leeds City Council,31/01/2018,Resources and Housing,Leeds Building Services,Supplies and Services,Operational Materials,205,25/01/2018,0118-00069,0.00,32.40,R,A J H  Pump Supply & Repair Ltd,No
Http://opendatacommunities.org/id/metropolitan-district-council/leeds,Leeds City Council,31/01/2018,Resources and Housing,Leeds Building Services,Supplies and Services,Operational Materials,205,25/01/2018,0118-00070,0.00,68.50,R,A J H  Pump Supply & Repair Ltd,No
Http://opendatacommunities.org/id/metropolitan-district-council/leeds,Leeds City Council,31/01/2018,Resources and Housing,Leeds Building Services,Supplies and Services,Operational Materials,205,25/01/2018,0118-00071,0.00,277.00,R,A J H  Pump Supply & Repair Ltd,No
Http://opendatacommunities.org/id/metropolitan-district-council/leeds,Leeds City Council,31/01/2018,Resources and Housing,Leeds Building Services,Supplies and Services,Operational Materials,205,25/01/2018,0118-00072,0.00,65.00,R,A J H  Pump Supply & Repair Ltd,No
Http://opendatacommunities.org/id/metropolitan-district-council/leeds,Leeds City Council,31/01/2018,Resources and Housing,Leeds Building Services,Supplies and Services,Operational Materials,205,25/01/2018,0118-00073,0.00,8.25,R,A J H  Pump Supply & Repair Ltd,No
Http://opendatacommunities.org/id/metropolitan-district-council/leeds,Leeds City Council,31/01/2018,Resources and Housing,Leeds Building Services,Supplies and Services,Operational Materials,205,25/01/2018,0118-00074,0.00,932.50,R,A J H  Pump Supply & Repair Ltd,No
Http://opendatacommunities.org/id/metropolitan-district-council/leeds,Leeds City Council,31/01/2018,Resources and Housing,Leeds Building Services,Supplies and Services,Operational Materials,205,25/01/2018,0118-00075,0.00,125.25,R,A J H  Pump Supply & Repair Ltd,No
Http://opendatacommunities.org/id/metropolitan-district-council/leeds,Leeds City Council,31/01/2018,Resources and Housing,Leeds Building Services,Supplies and Services,Operational Materials,205,25/01/2018,0118-00076,0.00,210.00,R,A J H  Pump Supply & Repair Ltd,No
Http://opendatacommunities.org/id/metropolitan-district-council/leeds,Leeds City Council,31/01/2018,Resources and Housing,Leeds Building Services,Supplies and Services,Operational Materials,205,30/01/2018,0118-00077,0.00,396.00,R,A J H  Pump Supply & Repair Ltd,No
Http://opendatacommunities.org/id/metropolitan-district-council/leeds,Leeds City Council,31/01/2018,Resources and Housing,Leeds Building Services,Supplies and Services,Operational Materials,205,30/01/2018,0118-00078,0.00,1822.00,R,A J H  Pump Supply & Repair Ltd,No
Http://opendatacommunities.org/id/metropolitan-district-council/leeds,Leeds City Council,31/01/2018,City Development,Libraries  Arts & Heritage,Supplies and Services,Art Galleries Total Stores,003,09/01/2018,0118-00079,0.00,105.90,R,A J Promotions,No
Http://opendatacommunities.org/id/metropolitan-district-council/leeds,Leeds City Council,31/01/2018,City Development,Libraries  Arts & Heritage,Supplies and Services,Art Galleries Total Stores,003,12/01/2018,0118-00080,0.00,514.94,R,A J Promotions,No
Http://opendatacommunities.org/id/metropolitan-district-council/leeds,Leeds City Council,31/01/2018,City Development,Libraries  Arts & Heritage,#N/A,Other Hired And Contracted Services,265,10/01/2018,0118-00081,0.00,460.00,R,A J Wightman,No
Http://opendatacommunities.org/id/metropolitan-district-council/leeds,Leeds City Council,31/01/2018,Resources and Housing,HRA Housing Leeds,Capital,Other Costs,7,04/01/2018,0118-00082,0.00,25.00,C,REDACTED PERSONAL DATA,No
Http://opendatacommunities.org/id/metropolitan-district-council/leeds,Leeds City Council,31/01/2018,Children and Families,Safeguarding Targeted & Specialist,Third Party Payments,Services Rendered By Other Organisations,511,15/01/2018,0118-00083,0.00,696.90,R,A K Walsh,No
Http://opendatacommunities.org/id/metropolitan-district-council/leeds,Leeds City Council,31/01/2018,Children and Families,Safeguarding Targeted & Specialist,Third Party Payments,Services Rendered By Other Organisations,511,17/01/2018,0118-00084,0.00,2217.60,R,A K Walsh,No
Http://opendatacommunities.org/id/metropolitan-district-council/leeds,Leeds City Council,31/01/2018,Children and Families,Safeguarding Targeted & Specialist,Third Party Payments,Services Rendered By Other Organisations,511,02/01/2018,0118-00085,0.00,900.00,R,A Little Something Extra Ltd,No
Http://opendatacommunities.org/id/metropolitan-district-council/leeds,Leeds City Council,31/01/2018,Children and Families,Safeguarding Targeted & Specialist,Third Party Payments,Services Rendered By Voluntary Sector,505,08/01/2018,0118-00086,0.00,720.00,R,A Little Something Extra Ltd,No
Http://opendatacommunities.org/id/metropolitan-district-council/leeds,Leeds City Council,31/01/2018,Children and Families,Safeguarding Targeted & Specialist,Third Party Payments,Services Rendered By Other Organisations,511,17/01/2018,0118-00087,0.00,1108.80,R,A Longbottom,No
Http://opendatacommunities.org/id/metropolitan-district-council/leeds,Leeds City Council,31/01/2018,Children and Families,Safeguarding Targeted & Specialist,Third Party Payments,Services Rendered By Other Organisations,511,17/01/2018,0118-00088,0.00,554.40,R,REDACTED PERSONAL DATA,No
Http://opendatacommunities.org/id/metropolitan-district-council/leeds,Leeds City Council,31/01/2018,Communities and Environment,Benefits  Wlefare and Poverty,Transfer Payments,Fines And Compensation Orders,623,15/01/2018,0118-00089,0.00,20.00,R,REDACTED PERSONAL DATA,No
Http://opendatacommunities.org/id/metropolitan-district-council/leeds,Leeds City Council,31/01/2018,City Development,Libraries  Arts & Heritage,Supplies and Services,Bought In Professional Services,277,08/01/2018,0118-00090,0.00,1000.00,R,A P Wood,No
Http://opendatacommunities.org/id/metropolitan-district-council/leeds,Leeds City Council,31/01/2018,City Development,Libraries  Arts & Heritage,#N/A,Other Hired And Contracted Services,265,11/01/2018,0118-00091,0.00,3250.00,R,A Quiet Word Ltd,No
Http://opendatacommunities.org/id/metropolitan-district-council/leeds,Leeds City Council,31/01/2018,City Development,Libraries  Arts & Heritage,#N/A,Other Hired And Contracted Services,265,22/01/2018,0118-00092,0.00,900.00,R,A Quiet Word Ltd,No
Http://opendatacommunities.org/id/metropolitan-district-council/leeds,Leeds City Council,31/01/2018,Children and Families,Safeguarding Targeted & Specialist,Third Party Payments,Services Rendered By Other Organisations,511,17/01/2018,0118-00093,0.00,1940.40,R,REDACTED PERSONAL DATA,No
Http://opendatacommunities.org/id/metropolitan-district-council/leeds,Leeds City Council,31/01/2018,Resources and Housing,Shared Services,#N/A,Other Hired And Contracted Services,265,19/01/2018,0118-00094,0.00,46.25,R,A Star Couriers Ltd,No
Http://opendatacommunities.org/id/metropolitan-district-council/leeds,Leeds City Council,31/01/2018,Resources and Housing,Shared Services,#N/A,Other Hired And Contracted Services,265,19/01/2018,0118-00095,0.00,46.25,R,A Star Couriers Ltd,No
Http://opendatacommunities.org/id/metropolitan-district-council/leeds,Leeds City Council,31/01/2018,Resources and Housing,Shared Services,#N/A,Other Hired And Contracted Services,265,19/01/2018,0118-00096,0.00,46.25,R,A Star Couriers Ltd,No
Http://opendatacommunities.org/id/metropolitan-district-council/leeds,Leeds City Council,31/01/2018,Communities and Environment,Waste Management,Employees,Training & Development,70,09/01/2018,0118-00097,0.00,295.00,R,A T Nerac Ltd,No
Http://opendatacommunities.org/id/metropolitan-district-council/leeds,Leeds City Council,31/01/2018,Communities and Environment,Waste Management,Employees,Training & Development,70,24/01/2018,0118-00098,0.00,196.25,R,A T Nerac Ltd,No
Http://opendatacommunities.org/id/metropolitan-district-council/leeds,Leeds City Council,31/01/2018,Communities and Environment,Waste Management,Employees,Training & Development,70,24/01/2018,0118-00099,0.00,339.90,R,A T Nerac Ltd,No
Http://opendatacommunities.org/id/metropolitan-district-council/leeds,Leeds City Council,31/01/2018,Communities and Environment,Waste Management,#N/A,Other Hired And Contracted Services,265,24/01/2018,0118-00100,0.00,270.00,R,A T Nerac Ltd,No
Http://opendatacommunities.org/id/metropolitan-district-council/leeds,Leeds City Council,31/01/2018,City Development,Libraries  Arts & Heritage,Supplies and Services,Operational Furniture And Equipment,203,17/01/2018,0118-00101,0.00,463.49,R,A V Parts Master Ltd,No
Http://opendatacommunities.org/id/metropolitan-district-council/leeds,Leeds City Council,31/01/2018,Children and Families,Safeguarding Targeted & Specialist,Third Party Payments,Services Rendered By Other Organisations,511,15/01/2018,0118-00102,0.00,666.60,R,REDACTED PERSONAL DATA,No
Http://opendatacommunities.org/id/metropolitan-district-council/leeds,Leeds City Council,31/01/2018,Children and Families,Safeguarding Targeted & Specialist,Third Party Payments,Services Rendered By Other Organisations,511,17/01/2018,0118-00103,0.00,8316.00,R,REDACTED PERSONAL DATA,No
Http://opendatacommunities.org/id/metropolitan-district-council/leeds,Leeds City Council,31/01/2018,Children and Families,Safeguarding Targeted & Specialist,Third Party Payments,Services Rendered By Other Organisations,511,15/01/2018,0118-00104,0.00,577.72,R,REDACTED PERSONAL DATA,No
Http://opendatacommunities.org/id/metropolitan-district-council/leeds,Leeds City Council,31/01/2018,Children and Families,Safeguarding Targeted & Specialist,Third Party Payments,Services Rendered By Other Organisations,511,17/01/2018,0118-00105,0.00,960.96,R,REDACTED PERSONAL DATA,No
Http://opendatacommunities.org/id/metropolitan-district-council/leeds,Leeds City Council,31/01/2018,Children and Families,Safeguarding Targeted & Specialist,Third Party Payments,Services Rendered By Other Organisations,511,17/01/2018,0118-00106,0.00,554.40,R,REDACTED PERSONAL DATA,No
Http://opendatacommunities.org/id/metropolitan-district-council/leeds,Leeds City Council,31/01/2018,Communities and Environment,Waste Management,Capital,Furniture And Equipment,5,03/01/2018,0118-00107,0.00,7760.00,C,A&C Weber Uk Ltd,No
Http://opendatacommunities.org/id/metropolitan-district-council/leeds,Leeds City Council,31/01/2018,City Development,Economic Development,Supplies and Services,Operational Furniture And Equipment,203,10/01/2018,0118-00108,0.00,660.00,R,A&C Weber Uk Ltd,No
Http://opendatacommunities.org/id/metropolitan-district-council/leeds,Leeds City Council,31/01/2018,Children and Families,Learning Skills & Universal,Supplies and Services,Office Consumables,210,05/01/2018,0118-00109,0.00,1008.88,R,A0 Print Solutions Ltd,No
Http://opendatacommunities.org/id/metropolitan-district-council/leeds,Leeds City Council,31/01/2018,Adults and Health,Public Health,Third Party Payments,Public Health Commissioned Services,526,16/01/2018,0118-00110,0.00,64.96,R,Aaa Healthcare Ltd,No
Http://opendatacommunities.org/id/metropolitan-district-council/leeds,Leeds City Council,31/01/2018,Resources and Housing,Leeds Building Services  ,Supplies and Services,Other Hired And Contracted Services,265,15/12/2017,0118-00111,0.00,474.00,R,Aaa Training Co Lt,Yes
Http://opendatacommunities.org/id/metropolitan-district-council/leeds,Leeds City Council,31/01/2018,Children and Families,Learning Skills & Universal,Employees,Training & Development,70,15/01/2018,0118-00112,0.00,395.00,R,Aaa Training Co Ltd,No
Http://opendatacommunities.org/id/metropolitan-district-council/leeds,Leeds City Council,31/01/2018,Resources and Housing,Leeds Building Services,Supplies and Services,Operational Materials,205,30/01/2018,0118-00113,0.00,195.00,R,Aalco Leeds,No
Http://opendatacommunities.org/id/metropolitan-district-council/leeds,Leeds City Council,31/01/2018,Resources and Housing,Leeds Building Services,Supplies and Services,Operational Materials,205,31/01/2018,0118-00114,0.00,181.00,R,Aalco Leeds,No
Http://opendatacommunities.org/id/metropolitan-district-council/leeds,Leeds City Council,31/01/2018,Adults and Health,Social Services Support Services,Transport,Public Transport Expenses,310,04/01/2018,0118-00115,0.00,306.00,R,Ab Cars (Garforth) Ltd,No
Http://opendatacommunities.org/id/metropolitan-district-council/leeds,Leeds City Council,31/01/2018,Communities and Environment,Community Safety,Supplies and Services,Printing,215,05/01/2018,0118-00116,0.00,700.00,R,Ab Print Group Limited,No
Http://opendatacommunities.org/id/metropolitan-district-council/leeds,Leeds City Council,31/01/2018,Communities and Environment,Community Safety,Supplies and Services,Printing,215,05/01/2018,0118-00117,0.00,1006.00,R,Ab Print Group Limited,No
Http://opendatacommunities.org/id/metropolitan-district-council/leeds,Leeds City Council,31/01/2018,Communities and Environment,Community Safety,Supplies and Services,Printing,215,05/01/2018,0118-00118,0.00,950.00,R,Ab Print Group Limited,No
Http://opendatacommunities.org/id/metropolitan-district-council/leeds,Leeds City Council,31/01/2018,Communities and Environment,Community Safety,Supplies and Services,Printing,215,05/01/2018,0118-00119,0.00,255.00,R,Ab Print Group Limited,No
Http://opendatacommunities.org/id/metropolitan-district-council/leeds,Leeds City Council,31/01/2018,Communities and Environment,Community Safety,Supplies and Services,Printing,215,05/01/2018,0118-00120,0.00,89.00,R,Ab Print Group Limited,No
Http://opendatacommunities.org/id/metropolitan-district-council/leeds,Leeds City Council,31/01/2018,Communities and Environment,Parks and Countryside,Capital,Other Costs,7,19/01/2018,0118-00121,0.00,3000.00,C,Abacus Cost Management Ltd,No
Http://opendatacommunities.org/id/metropolitan-district-council/leeds,Leeds City Council,31/01/2018,Communities and Environment,Car Parking Services  ,Supplies and Services,Postages,212,06/12/2017,0118-00122,0.00,13.50,R,Abacus Express,Yes
Http://opendatacommunities.org/id/metropolitan-district-council/leeds,Leeds City Council,31/01/2018,Communities and Environment,Car Parking Services  ,Supplies and Services,Postages,212,19/12/2017,0118-00123,0.00,14.50,R,Abacus Express,Yes
Http://opendatacommunities.org/id/metropolitan-district-council/leeds,Leeds City Council,31/01/2018,Communities and Environment,Car Parking Services  ,Supplies and Services,Postages,212,28/12/2017,0118-00124,0.00,14.50,R,Abacus Express,Yes
Http://opendatacommunities.org/id/metropolitan-district-council/leeds,Leeds City Council,31/01/2018,Children and Families,Partnerships,Support Services,Legal Disbursements,411,09/01/2018,0118-00125,0.00,26.77,R,Abacus Express Limited,No
Http://opendatacommunities.org/id/metropolitan-district-council/leeds,Leeds City Council,31/01/2018,Children and Families,Partnerships,Support Services,Legal Disbursements,411,09/01/2018,0118-00126,0.00,26.77,R,Abacus Express Limited,No
Http://opendatacommunities.org/id/metropolitan-district-council/leeds,Leeds City Council,31/01/2018,Children and Families,Safeguarding Targeted & Specialist,Support Services,Legal Disbursements,411,09/01/2018,0118-00127,0.00,31.02,R,Abacus Express Limited,No
Http://opendatacommunities.org/id/metropolitan-district-council/leeds,Leeds City Council,31/01/2018,City Development,Planning & Sustainable Development,#N/A,Other Hired And Contracted Services,265,09/01/2018,0118-00128,0.00,35.00,R,Abacus Express Limited,No
Http://opendatacommunities.org/id/metropolitan-district-council/leeds,Leeds City Council,31/01/2018,Children and Families,Safeguarding Targeted & Specialist,Support Services,Legal Disbursements,411,09/01/2018,0118-00129,0.00,15.59,R,Abacus Express Limited,No
Http://opendatacommunities.org/id/metropolitan-district-council/leeds,Leeds City Council,31/01/2018,Children and Families,Safeguarding Targeted & Specialist,Support Services,Legal Disbursements,411,09/01/2018,0118-00130,0.00,15.59,R,Abacus Express Limited,No
Http://opendatacommunities.org/id/metropolitan-district-council/leeds,Leeds City Council,31/01/2018,City Development,Economic Development,Supplies and Services,Postages,212,09/01/2018,0118-00131,0.00,39.24,R,Abacus Express Limited,No
Http://opendatacommunities.org/id/metropolitan-district-council/leeds,Leeds City Council,31/01/2018,Children and Families,Safeguarding Targeted & Specialist,Support Services,Legal Disbursements,411,19/01/2018,0118-00132,0.00,31.02,R,Abacus Express Limited,No
Http://opendatacommunities.org/id/metropolitan-district-council/leeds,Leeds City Council,31/01/2018,Adults and Health,Services For Older People - 65 And Over,Third Party Payments,Nursing Care Dementia,574,10/01/2018,0118-00133,0.00,1556.00,R,Abbendon Nursing Home,No
Http://opendatacommunities.org/id/metropolitan-district-council/leeds,Leeds City Council,31/01/2018,Resources and Housing,Commercial Services,Transport,Private Hire,360,15/01/2018,0118-00134,0.00,870.00,R,Abbey Cars (Wakefield) Ltd,No
Http://opendatacommunities.org/id/metropolitan-district-council/leeds,Leeds City Council,31/01/2018,Adults and Health,Services For Adults Under 65 Mental/Dis,Third Party Payments,Nursing Home,570,10/01/2018,0118-00135,0.00,1732.00,R,Abbey Grange Nursing Home,No
Http://opendatacommunities.org/id/metropolitan-district-council/leeds,Leeds City Council,31/01/2018,Communities and Environment,Cleaner Neighbourhood Teams,Supplies and Services,Bought In Professional Services,277,12/01/2018,0118-00136,0.00,48.85,R,Abbey House Veterinary Hospital,No
Http://opendatacommunities.org/id/metropolitan-district-council/leeds,Leeds City Council,31/01/2018,Children and Families,Safeguarding Targeted & Specialist,Third Party Payments,Services Rendered By Other Organisations,511,15/01/2018,0118-00137,0.00,1910.92,R,Abc Daycare And Ozone Out Of School,No
Http://opendatacommunities.org/id/metropolitan-district-council/leeds,Leeds City Council,31/01/2018,Children and Families,Safeguarding Targeted & Specialist,Third Party Payments,Services Rendered By Other Organisations,511,17/01/2018,0118-00138,0.00,13268.64,R,Abc Daycare And Ozone Out Of School,No
Http://opendatacommunities.org/id/metropolitan-district-council/leeds,Leeds City Council,31/01/2018,Children and Families,Safeguarding Targeted & Specialist,Third Party Payments,Services Rendered By Other Organisations,511,15/01/2018,0118-00139,0.00,1605.90,R,Abc Nursery At Lufc,No
Http://opendatacommunities.org/id/metropolitan-district-council/leeds,Leeds City Council,31/01/2018,Children and Families,Safeguarding Targeted & Specialist,Third Party Payments,Services Rendered By Other Organisations,511,17/01/2018,0118-00140,0.00,14414.40,R,Abc Nursery At Lufc,No
Http://opendatacommunities.org/id/metropolitan-district-council/leeds,Leeds City Council,31/01/2018,Children and Families,Safeguarding Targeted & Specialist,Third Party Payments,Services Rendered By Other Organisations,511,15/01/2018,0118-00141,0.00,3333.00,R,Abc@D'S Childcare Services,No
Http://opendatacommunities.org/id/metropolitan-district-council/leeds,Leeds City Council,31/01/2018,Children and Families,Safeguarding Targeted & Specialist,Third Party Payments,Services Rendered By Other Organisations,511,17/01/2018,0118-00142,0.00,13860.00,R,Abc@D'S Childcare Services,No
Http://opendatacommunities.org/id/metropolitan-district-council/leeds,Leeds City Council,31/01/2018,City Development,Economic Development,Transport,Public Transport Expenses,310,24/01/2018,0118-00143,0.00,155.65,R,Aberfield Communications Limited,No
Http://opendatacommunities.org/id/metropolitan-district-council/leeds,Leeds City Council,31/01/2018,Adults and Health,Services For Older People - 65 And Over,Third Party Payments,Nursing Home,570,10/01/2018,0118-00144,0.00,29428.84,R,Aberford Hall,No
Http://opendatacommunities.org/id/metropolitan-district-council/leeds,Leeds City Council,31/01/2018,Adults and Health,Services For Older People - 65 And Over,Third Party Payments,Nursing Care Dementia,574,10/01/2018,0118-00145,0.00,1566.20,R,Aberford Hall,No
Http://opendatacommunities.org/id/metropolitan-district-council/leeds,Leeds City Council,31/01/2018,Adults and Health,Services For Older People - 65 And Over,Third Party Payments,Residential,580,10/01/2018,0118-00146,0.00,1407.08,R,Aberford Hall,No
Http://opendatacommunities.org/id/metropolitan-district-council/leeds,Leeds City Council,31/01/2018,City Development,Libraries  Arts & Heritage,#N/A,Other Hired And Contracted Services,265,09/01/2018,0118-00147,0.00,1855.70,R,About Presentation,No
Http://opendatacommunities.org/id/metropolitan-district-council/leeds,Leeds City Council,31/01/2018,Children and Families,Safeguarding Targeted & Specialist,Third Party Payments,Education Fees/Bursary,565,17/01/2018,0118-00148,0.00,327.92,R,Academic Appointments Ltd,No
Http://opendatacommunities.org/id/metropolitan-district-council/leeds,Leeds City Council,31/01/2018,Children and Families,Safeguarding Targeted & Specialist,Third Party Payments,Education Fees/Bursary,565,18/01/2018,0118-00149,0.00,327.92,R,Academic Appointments Ltd,No
Http://opendatacommunities.org/id/metropolitan-district-council/leeds,Leeds City Council,31/01/2018,Children and Families,Safeguarding Targeted & Specialist,Employees,Agency Staff,8,23/01/2018,0118-00150,0.00,1100.00,R,Academic Appointments Ltd,No
Http://opendatacommunities.org/id/metropolitan-district-council/leeds,Leeds City Council,31/01/2018,Children and Families,Safeguarding Targeted & Specialist,Employees,Agency Staff,8,23/01/2018,0118-00151,0.00,796.00,R,Academic Appointments Ltd,No
Http://opendatacommunities.org/id/metropolitan-district-council/leeds,Leeds City Council,31/01/2018,Children and Families,Safeguarding Targeted & Specialist,Employees,Agency Staff,8,23/01/2018,0118-00152,0.00,995.00,R,Academic Appointments Ltd,No
Http://opendatacommunities.org/id/metropolitan-district-council/leeds,Leeds City Council,31/01/2018,Resources and Housing,Strategic Housing Partnerships,Capital,Construction,3,11/01/2018,0118-00153,0.00,1728.00,C,Accent Homes Ltd,No
Http://opendatacommunities.org/id/metropolitan-district-council/leeds,Leeds City Council,31/01/2018,Resources and Housing,Leeds Building Services,Supplies and Services,Operational Materials,205,17/01/2018,0118-00154,0.00,936.00,R,Access Lift Consultants Ltd,No
Http://opendatacommunities.org/id/metropolitan-district-council/leeds,Leeds City Council,31/01/2018,Resources and Housing,Leeds Building Services,Supplies and Services,Operational Materials,205,17/01/2018,0118-00155,0.00,966.67,R,Access Lift Consultants Ltd,No
Http://opendatacommunities.org/id/metropolitan-district-council/leeds,Leeds City Council,31/01/2018,Resources and Housing,Commercial Services  ,Supplies and Services,Operational Materials,205,18/12/2017,0118-00156,0.00,252.58,R,Access Locksmiths,Yes
Http://opendatacommunities.org/id/metropolitan-district-council/leeds,Leeds City Council,31/01/2018,Strategic Landlord,Property and Contracts,Premises,General Maintenance,104,12/01/2018,0118-00157,0.00,265.80,R,Access Locksmiths (Leeds) Limited,No
Http://opendatacommunities.org/id/metropolitan-district-council/leeds,Leeds City Council,31/01/2018,Strategic Landlord,Property and Contracts,Supplies and Services,Operational Materials,205,12/01/2018,0118-00158,0.00,68.40,R,Access Locksmiths (Leeds) Limited,No
Http://opendatacommunities.org/id/metropolitan-district-council/leeds,Leeds City Council,31/01/2018,Strategic Landlord,Property and Contracts,Supplies and Services,Resaleable Materials,204,12/01/2018,0118-00159,0.00,15.00,R,Access Locksmiths (Leeds) Limited,No
Http://opendatacommunities.org/id/metropolitan-district-council/leeds,Leeds City Council,31/01/2018,Resources and Housing,Leeds Building Services,Supplies and Services,Operational Materials,205,18/01/2018,0118-00160,0.00,45.54,R,Access Locksmiths (Leeds) Limited,No
Http://opendatacommunities.org/id/metropolitan-district-council/leeds,Leeds City Council,31/01/2018,Resources and Housing,Leeds Building Services,Supplies and Services,Operational Materials,205,18/01/2018,0118-00161,0.00,13.50,R,Access Locksmiths (Leeds) Limited,No
Http://opendatacommunities.org/id/metropolitan-district-council/leeds,Leeds City Council,31/01/2018,Resources and Housing,Leeds Building Services,Supplies and Services,Operational Materials,205,18/01/2018,0118-00162,0.00,64.99,R,Access Locksmiths (Leeds) Limited,No
Http://opendatacommunities.org/id/metropolitan-district-council/leeds,Leeds City Council,31/01/2018,Resources and Housing,Leeds Building Services,Supplies and Services,Operational Materials,205,18/01/2018,0118-00163,0.00,118.27,R,Access Locksmiths (Leeds) Limited,No
Http://opendatacommunities.org/id/metropolitan-district-council/leeds,Leeds City Council,31/01/2018,Resources and Housing,Leeds Building Services,Supplies and Services,Operational Materials,205,25/01/2018,0118-00164,0.00,12.54,R,Access Locksmiths (Leeds) Limited,No
Http://opendatacommunities.org/id/metropolitan-district-council/leeds,Leeds City Council,31/01/2018,Resources and Housing,HRA Housing Leeds,Capital,Other Costs,7,26/01/2018,0118-00165,0.00,132.90,C,Access Locksmiths (Leeds) Limited,No
Http://opendatacommunities.org/id/metropolitan-district-council/leeds,Leeds City Council,31/01/2018,Strategic Landlord,Housing Management,Premises,General Maintenance,104,26/01/2018,0118-00166,0.00,342.00,R,Access Locksmiths (Leeds) Limited,No
Http://opendatacommunities.org/id/metropolitan-district-council/leeds,Leeds City Council,31/01/2018,Strategic Landlord,Housing Management,Premises,General Maintenance,104,26/01/2018,0118-00167,0.00,228.00,R,Access Locksmiths (Leeds) Limited,No
Http://opendatacommunities.org/id/metropolitan-district-council/leeds,Leeds City Council,31/01/2018,Resources and Housing,Leeds Building Services,Supplies and Services,Operational Materials,205,29/01/2018,0118-00168,0.00,136.62,R,Access Locksmiths (Leeds) Limited,No
Http://opendatacommunities.org/id/metropolitan-district-council/leeds,Leeds City Council,31/01/2018,Resources and Housing,Leeds Building Services,Supplies and Services,Operational Materials,205,29/01/2018,0118-00169,0.00,2.40,R,Access Locksmiths (Leeds) Limited,No
Http://opendatacommunities.org/id/metropolitan-district-council/leeds,Leeds City Council,31/01/2018,Resources and Housing,Leeds Building Services,Supplies and Services,Operational Materials,205,29/01/2018,0118-00170,0.00,76.97,R,Access Locksmiths (Leeds) Limited,No
Http://opendatacommunities.org/id/metropolitan-district-council/leeds,Leeds City Council,31/01/2018,Resources and Housing,Leeds Building Services,Supplies and Services,Operational Materials,205,29/01/2018,0118-00171,0.00,1960.70,R,Access Locksmiths (Leeds) Limited,No
Http://opendatacommunities.org/id/metropolitan-district-council/leeds,Leeds City Council,31/01/2018,Resources and Housing,Leeds Building Services,Supplies and Services,Operational Materials,205,29/01/2018,0118-00172,0.00,1680.60,R,Access Locksmiths (Leeds) Limited,No
Http://opendatacommunities.org/id/metropolitan-district-council/leeds,Leeds City Council,31/01/2018,Resources and Housing,Leeds Building Services,Supplies and Services,Operational Materials,205,29/01/2018,0118-00173,0.00,141.28,R,Access Locksmiths (Leeds) Limited,No
Http://opendatacommunities.org/id/metropolitan-district-council/leeds,Leeds City Council,31/01/2018,Resources and Housing,Leeds Building Services,Supplies and Services,Operational Materials,205,29/01/2018,0118-00174,0.00,6.86,R,Access Locksmiths (Leeds) Limited,No
Http://opendatacommunities.org/id/metropolitan-district-council/leeds,Leeds City Council,31/01/2018,Resources and Housing,Leeds Building Services,#N/A,Other Hired And Contracted Services,265,30/01/2018,0118-00175,0.00,403.60,R,Access Locksmiths (Leeds) Limited,No
Http://opendatacommunities.org/id/metropolitan-district-council/leeds,Leeds City Council,31/01/2018,Resources and Housing,Leeds Building Services,#N/A,Other Hired And Contracted Services,265,30/01/2018,0118-00176,0.00,18.00,R,Access Locksmiths (Leeds) Limited,No
Http://opendatacommunities.org/id/metropolitan-district-council/leeds,Leeds City Council,31/01/2018,Insurance,Insurance,Supplies and Services,Insurance Claims,248,25/01/2018,0118-00177,0.00,7750.00,R,Accountant General Of The Senior Courts,No
Http://opendatacommunities.org/id/metropolitan-district-council/leeds,Leeds City Council,31/01/2018,City Development,Libraries  Arts & Heritage,Transport,Hire Of Movable Plant & Machinery,315,17/01/2018,0118-00178,0.00,46.50,R,Ace Container Services Limited,No
Http://opendatacommunities.org/id/metropolitan-district-council/leeds,Leeds City Council,31/01/2018,City Development,Recreation,Transport,External Hire -Occasional,304,24/01/2018,0118-00179,0.00,128.65,R,Ace Container Services Limited,No
Http://opendatacommunities.org/id/metropolitan-district-council/leeds,Leeds City Council,31/01/2018,City Development,Recreation,#N/A,Other Hired And Contracted Services,265,30/01/2018,0118-00180,0.00,93.00,R,Ace Container Services Limited,No
Http://opendatacommunities.org/id/metropolitan-district-council/leeds,Leeds City Council,31/01/2018,City Development,Recreation,Transport,External Hire -Occasional,304,30/01/2018,0118-00181,0.00,128.65,R,Ace Container Services Limited,No
Http://opendatacommunities.org/id/metropolitan-district-council/leeds,Leeds City Council,31/01/2018,Communities and Environment,Waste Management,Supplies and Services,Advertising,211,17/01/2018,0118-00182,0.00,8850.00,R,Ace Leaflet Distribution & Print Ltd,No
Http://opendatacommunities.org/id/metropolitan-district-council/leeds,Leeds City Council,31/01/2018,Communities and Environment,Parks and Countryside,Supplies and Services,Operational Furniture And Equipment,203,17/01/2018,0118-00183,0.00,-1908.99,R,Ace Leaflet Distribution & Print Ltd,No
Http://opendatacommunities.org/id/metropolitan-district-council/leeds,Leeds City Council,31/01/2018,Communities and Environment,Parks and Countryside,Supplies and Services,Operational Furniture And Equipment,203,17/01/2018,0118-00184,0.00,933.80,R,Ace Leaflet Distribution & Print Ltd,No
Http://opendatacommunities.org/id/metropolitan-district-council/leeds,Leeds City Council,31/01/2018,Children and Families,Safeguarding Targeted & Specialist,Supplies and Services,Advertising,211,18/01/2018,0118-00185,0.00,464.49,R,Ace Leaflet Distribution & Print Ltd,No
Http://opendatacommunities.org/id/metropolitan-district-council/leeds,Leeds City Council,31/01/2018,Resources and Housing,SP Contracts & SECC,Supplies and Services,Publication And Promotion,267,22/01/2018,0118-00186,0.00,11278.35,R,Ace Leaflet Distribution & Print Ltd,No
Http://opendatacommunities.org/id/metropolitan-district-council/leeds,Leeds City Council,31/01/2018,Communities and Environment,Parks and Countryside,Supplies and Services,Operational Furniture And Equipment,203,23/01/2018,0118-00187,0.00,1260.00,R,Ace Leaflet Distribution & Print Ltd,No
Http://opendatacommunities.org/id/metropolitan-district-council/leeds,Leeds City Council,31/01/2018,Children and Families,Learning Skills & Universal,Supplies and Services,Advertising,211,24/01/2018,0118-00188,0.00,252.00,R,Ace Leaflet Distribution & Print Ltd,No
Http://opendatacommunities.org/id/metropolitan-district-council/leeds,Leeds City Council,31/01/2018,Children and Families,Partnerships,Third Party Payments,SEN Placements,566,11/01/2018,0118-00189,0.00,17139.00,R,Ackworth School,No
Http://opendatacommunities.org/id/metropolitan-district-council/leeds,Leeds City Council,31/01/2018,Children and Families,Partnerships,Third Party Payments,SEN Placements,566,11/01/2018,0118-00190,0.00,17253.70,R,Ackworth School,No
Http://opendatacommunities.org/id/metropolitan-district-council/leeds,Leeds City Council,31/01/2018,Children and Families,Partnerships,Third Party Payments,SEN Placements,566,11/01/2018,0118-00191,0.00,17152.48,R,Ackworth School,No
Http://opendatacommunities.org/id/metropolitan-district-council/leeds,Leeds City Council,31/01/2018,Children and Families,Partnerships,Third Party Payments,SEN Placements,566,11/01/2018,0118-00192,0.00,23639.00,R,Ackworth School,No
Http://opendatacommunities.org/id/metropolitan-district-council/leeds,Leeds City Council,31/01/2018,Children and Families,Partnerships,Third Party Payments,SEN Placements,566,16/01/2018,0118-00193,0.00,3208.33,R,Acorn Care And Education Ltd,No
Http://opendatacommunities.org/id/metropolitan-district-council/leeds,Leeds City Council,31/01/2018,Children and Families,Partnerships,Third Party Payments,SEN Placements,566,16/01/2018,0118-00194,0.00,7000.00,R,Acorn Care And Education Ltd,No
Http://opendatacommunities.org/id/metropolitan-district-council/leeds,Leeds City Council,31/01/2018,Children and Families,Partnerships,Third Party Payments,SEN Placements,566,16/01/2018,0118-00195,0.00,6987.85,R,Acorn Care And Education Ltd,No
Http://opendatacommunities.org/id/metropolitan-district-council/leeds,Leeds City Council,31/01/2018,Children and Families,Partnerships,Third Party Payments,SEN Placements,566,16/01/2018,0118-00196,0.00,18138.67,R,Acorn Care And Education Ltd,No
Http://opendatacommunities.org/id/metropolitan-district-council/leeds,Leeds City Council,31/01/2018,Children and Families,Partnerships,Third Party Payments,SEN Placements,566,16/01/2018,0118-00197,0.00,-18138.67,R,Acorn Care And Education Ltd,No
Http://opendatacommunities.org/id/metropolitan-district-council/leeds,Leeds City Council,31/01/2018,Children and Families,Partnerships,Third Party Payments,SEN Placements,566,16/01/2018,0118-00198,0.00,-7000.00,R,Acorn Care And Education Ltd,No
Http://opendatacommunities.org/id/metropolitan-district-council/leeds,Leeds City Council,31/01/2018,Adults and Health,Services For Older People - 65 And Over,Third Party Payments,Nursing Care Dementia,574,10/01/2018,0118-00199,0.00,1546.28,R,Acorn Nursing Home,No
Http://opendatacommunities.org/id/metropolitan-district-council/leeds,Leeds City Council,31/01/2018,City Development,Libraries  Arts & Heritage,#N/A,Other Hired And Contracted Services,265,03/01/2018,0118-00200,0.00,362.18,R,Acorn Scaffolding (Yorkshire) Ltd,No
Http://opendatacommunities.org/id/metropolitan-district-council/leeds,Leeds City Council,31/01/2018,Children and Families,Safeguarding Targeted & Specialist,Third Party Payments,Services Rendered By Other Organisations,511,15/01/2018,0118-00201,0.00,577.72,R,Acorns Nursery,No
Http://opendatacommunities.org/id/metropolitan-district-council/leeds,Leeds City Council,31/01/2018,Children and Families,Safeguarding Targeted & Specialist,Third Party Payments,Services Rendered By Other Organisations,511,17/01/2018,0118-00202,0.00,24356.64,R,Acorns Nursery,No
Http://opendatacommunities.org/id/metropolitan-district-council/leeds,Leeds City Council,31/01/2018,Communities and Environment,Parks and Countryside,#N/A,Other Hired And Contracted Services,265,26/01/2018,0118-00203,0.00,742.40,R,Acoustic Arrangments Limited,No
Http://opendatacommunities.org/id/metropolitan-district-council/leeds,Leeds City Council,31/01/2018,Communities and Environment,Parks and Countryside,#N/A,Other Hired And Contracted Services,265,26/01/2018,0118-00204,0.00,180.63,R,Acoustic Arrangments Limited,No
Http://opendatacommunities.org/id/metropolitan-district-council/leeds,Leeds City Council,31/01/2018,City Development,Highways  ,Supplies and Services,Operational Materials,205,08/12/2017,0118-00205,0.00,79.14,R,Acp* Black Box Network Se,Yes
Http://opendatacommunities.org/id/metropolitan-district-council/leeds,Leeds City Council,31/01/2018,Adults and Health,Services For Older People - 65 And Over,Third Party Payments,Nursing Home,570,10/01/2018,0118-00206,0.00,32324.29,R,Acre Green,No
Http://opendatacommunities.org/id/metropolitan-district-council/leeds,Leeds City Council,31/01/2018,Adults and Health,Services For Older People - 65 And Over,Third Party Payments,Nursing Care Dementia,574,10/01/2018,0118-00207,0.00,2489.54,R,Acre Green,No
Http://opendatacommunities.org/id/metropolitan-district-council/leeds,Leeds City Council,31/01/2018,Adults and Health,Services For Older People - 65 And Over,Third Party Payments,Residential,580,10/01/2018,0118-00208,0.00,4768.40,R,Acre Green,No
Http://opendatacommunities.org/id/metropolitan-district-council/leeds,Leeds City Council,31/01/2018,Adults and Health,Services For Older People Under 65 P/Dis,Third Party Payments,Nursing Home,570,10/01/2018,0118-00209,0.00,1152.30,R,Acre Green,No
Http://opendatacommunities.org/id/metropolitan-district-council/leeds,Leeds City Council,31/01/2018,Adults and Health,Services For Older People Under 65 P/Dis,Third Party Payments,Residential,580,10/01/2018,0118-00210,0.00,3297.20,R,Acre Green,No
Http://opendatacommunities.org/id/metropolitan-district-council/leeds,Leeds City Council,31/01/2018,Children and Families,Safeguarding Targeted & Specialist,Third Party Payments,Services Rendered By Other Organisations,511,17/01/2018,0118-00211,0.00,22462.48,R,Acre Wood Day Nursery,No
Http://opendatacommunities.org/id/metropolitan-district-council/leeds,Leeds City Council,31/01/2018,Resources and Housing,Technology  ,Supplies and Services,Books & Audio-Visual Materials,206,13/12/2017,0118-00212,0.00,99.95,R,Act Now Training Limit,Yes
Http://opendatacommunities.org/id/metropolitan-district-council/leeds,Leeds City Council as Accountable Body,31/01/2018,Social Services Pooled Budgets,Leeds Community Equip Store Pooled Budgt,Supplies and Services,Other Equipment,203,16/01/2018,0118-00213,0.00,520.00,R,Action Assist Ltd,No
Http://opendatacommunities.org/id/metropolitan-district-council/leeds,Leeds City Council,31/01/2018,Adults and Health,Services For Adults Under 65 Mental/Dis,Third Party Payments,Fees - Level 4,520,09/01/2018,0118-00214,0.00,250.00,R,Action First Recruitment Ltd,No
Http://opendatacommunities.org/id/metropolitan-district-council/leeds,Leeds City Council,31/01/2018,Adults and Health,Services For Adults Under 65 Mental/Dis,Third Party Payments,Fees - Level 4,520,09/01/2018,0118-00215,0.00,250.00,R,Action First Recruitment Ltd,No
Http://opendatacommunities.org/id/metropolitan-district-council/leeds,Leeds City Council,31/01/2018,Adults and Health,Services For Adults Under 65 Mental/Dis,Third Party Payments,Fees - Level 4,520,09/01/2018,0118-00216,0.00,250.00,R,Action First Recruitment Ltd,No
Http://opendatacommunities.org/id/metropolitan-district-council/leeds,Leeds City Council,31/01/2018,Adults and Health,Services For Adults Under 65 Mental/Dis,Third Party Payments,Fees - Level 4,520,09/01/2018,0118-00217,0.00,250.00,R,Action First Recruitment Ltd,No
Http://opendatacommunities.org/id/metropolitan-district-council/leeds,Leeds City Council,31/01/2018,Adults and Health,Services For Adults Under 65 Mental/Dis,Third Party Payments,Fees - Level 4,520,09/01/2018,0118-00218,0.00,250.00,R,Action First Recruitment Ltd,No
Http://opendatacommunities.org/id/metropolitan-district-council/leeds,Leeds City Council,31/01/2018,Adults and Health,Services For Adults Under 65 Mental/Dis,Third Party Payments,Fees - Level 4,520,09/01/2018,0118-00219,0.00,250.00,R,Action First Recruitment Ltd,No
Http://opendatacommunities.org/id/metropolitan-district-council/leeds,Leeds City Council,31/01/2018,Adults and Health,Services For Adults Under 65 Mental/Dis,Third Party Payments,Fees - Level 4,520,10/01/2018,0118-00220,0.00,250.00,R,Action First Recruitment Ltd,No
Http://opendatacommunities.org/id/metropolitan-district-council/leeds,Leeds City Council,31/01/2018,Adults and Health,Services For Adults Under 65 Mental/Dis,Third Party Payments,Fees - Level 4,520,16/01/2018,0118-00221,0.00,220.00,R,Action First Recruitment Ltd,No
Http://opendatacommunities.org/id/metropolitan-district-council/leeds,Leeds City Council,31/01/2018,Adults and Health,Services For Adults Under 65 Mental/Dis,Third Party Payments,Fees - Level 4,520,16/01/2018,0118-00222,0.00,220.00,R,Action First Recruitment Ltd,No
Http://opendatacommunities.org/id/metropolitan-district-council/leeds,Leeds City Council,31/01/2018,Adults and Health,Services For Adults Under 65 Mental/Dis,Third Party Payments,Fees - Level 4,520,16/01/2018,0118-00223,0.00,220.00,R,Action First Recruitment Ltd,No
Http://opendatacommunities.org/id/metropolitan-district-council/leeds,Leeds City Council,31/01/2018,Adults and Health,Services For Adults Under 65 Mental/Dis,Third Party Payments,Fees - Level 4,520,16/01/2018,0118-00224,0.00,250.00,R,Action First Recruitment Ltd,No
Http://opendatacommunities.org/id/metropolitan-district-council/leeds,Leeds City Council,31/01/2018,Adults and Health,Services For Adults Under 65 Mental/Dis,Third Party Payments,Fees - Level 4,520,16/01/2018,0118-00225,0.00,220.00,R,Action First Recruitment Ltd,No
Http://opendatacommunities.org/id/metropolitan-district-council/leeds,Leeds City Council,31/01/2018,Adults and Health,Services For Adults Under 65 Mental/Dis,Third Party Payments,Fees - Level 4,520,16/01/2018,0118-00226,0.00,220.00,R,Action First Recruitment Ltd,No
Http://opendatacommunities.org/id/metropolitan-district-council/leeds,Leeds City Council,31/01/2018,Adults and Health,Services For Adults Under 65 Mental/Dis,Third Party Payments,Fees - Level 4,520,16/01/2018,0118-00227,0.00,220.00,R,Action First Recruitment Ltd,No
Http://opendatacommunities.org/id/metropolitan-district-council/leeds,Leeds City Council,31/01/2018,Adults and Health,Services For Adults Under 65 Mental/Dis,Third Party Payments,Fees - Level 4,520,16/01/2018,0118-00228,0.00,220.00,R,Action First Recruitment Ltd,No
Http://opendatacommunities.org/id/metropolitan-district-council/leeds,Leeds City Council,31/01/2018,Adults and Health,Services For Adults Under 65 Mental/Dis,Third Party Payments,Fees - Level 4,520,16/01/2018,0118-00229,0.00,220.00,R,Action First Recruitment Ltd,No
Http://opendatacommunities.org/id/metropolitan-district-council/leeds,Leeds City Council,31/01/2018,Adults and Health,Services For Adults Under 65 Mental/Dis,Third Party Payments,Fees - Level 4,520,16/01/2018,0118-00230,0.00,220.00,R,Action First Recruitment Ltd,No
Http://opendatacommunities.org/id/metropolitan-district-council/leeds,Leeds City Council,31/01/2018,Adults and Health,Services For Adults Under 65 Mental/Dis,Third Party Payments,Fees - Level 4,520,16/01/2018,0118-00231,0.00,220.00,R,Action First Recruitment Ltd,No
Http://opendatacommunities.org/id/metropolitan-district-council/leeds,Leeds City Council,31/01/2018,Adults and Health,Services For Adults Under 65 Mental/Dis,Third Party Payments,Fees - Level 4,520,16/01/2018,0118-00232,0.00,220.00,R,Action First Recruitment Ltd,No
Http://opendatacommunities.org/id/metropolitan-district-council/leeds,Leeds City Council,31/01/2018,Adults and Health,Services For Adults Under 65 Mental/Dis,Third Party Payments,Fees - Level 4,520,16/01/2018,0118-00233,0.00,220.00,R,Action First Recruitment Ltd,No
Http://opendatacommunities.org/id/metropolitan-district-council/leeds,Leeds City Council,31/01/2018,Adults and Health,Services For Adults Under 65 Mental/Dis,Third Party Payments,Fees - Level 4,520,16/01/2018,0118-00234,0.00,220.00,R,Action First Recruitment Ltd,No
Http://opendatacommunities.org/id/metropolitan-district-council/leeds,Leeds City Council,31/01/2018,Adults and Health,Services For Adults Under 65 Mental/Dis,Third Party Payments,Fees - Level 4,520,16/01/2018,0118-00235,0.00,250.00,R,Action First Recruitment Ltd,No
Http://opendatacommunities.org/id/metropolitan-district-council/leeds,Leeds City Council,31/01/2018,Adults and Health,Services For Adults Under 65 Mental/Dis,Third Party Payments,Fees - Level 4,520,16/01/2018,0118-00236,0.00,250.00,R,Action First Recruitment Ltd,No
Http://opendatacommunities.org/id/metropolitan-district-council/leeds,Leeds City Council,31/01/2018,Adults and Health,Services For Adults Under 65 Mental/Dis,Third Party Payments,Fees - Level 4,520,16/01/2018,0118-00237,0.00,250.00,R,Action First Recruitment Ltd,No
Http://opendatacommunities.org/id/metropolitan-district-council/leeds,Leeds City Council,31/01/2018,Adults and Health,Services For Adults Under 65 Mental/Dis,Third Party Payments,Fees - Level 4,520,16/01/2018,0118-00238,0.00,220.00,R,Action First Recruitment Ltd,No
Http://opendatacommunities.org/id/metropolitan-district-council/leeds,Leeds City Council,31/01/2018,Adults and Health,Services For Adults Under 65 Mental/Dis,Third Party Payments,Fees - Level 4,520,16/01/2018,0118-00239,0.00,220.00,R,Action First Recruitment Ltd,No
Http://opendatacommunities.org/id/metropolitan-district-council/leeds,Leeds City Council,31/01/2018,Adults and Health,Services For Adults Under 65 Mental/Dis,Third Party Payments,Fees - Level 4,520,16/01/2018,0118-00240,0.00,220.00,R,Action First Recruitment Ltd,No
Http://opendatacommunities.org/id/metropolitan-district-council/leeds,Leeds City Council,31/01/2018,Adults and Health,Services For Adults Under 65 Mental/Dis,Third Party Payments,Fees - Level 4,520,16/01/2018,0118-00241,0.00,250.00,R,Action First Recruitment Ltd,No
Http://opendatacommunities.org/id/metropolitan-district-council/leeds,Leeds City Council,31/01/2018,Adults and Health,Services For Adults Under 65 Mental/Dis,Third Party Payments,Fees - Level 4,520,18/01/2018,0118-00242,0.00,220.00,R,Action First Recruitment Ltd,No
Http://opendatacommunities.org/id/metropolitan-district-council/leeds,Leeds City Council,31/01/2018,Adults and Health,Services For Adults Under 65 Mental/Dis,Third Party Payments,Fees - Level 4,520,18/01/2018,0118-00243,0.00,220.00,R,Action First Recruitment Ltd,No
Http://opendatacommunities.org/id/metropolitan-district-council/leeds,Leeds City Council,31/01/2018,Adults and Health,Services For Adults Under 65 Mental/Dis,Third Party Payments,Fees - Level 4,520,18/01/2018,0118-00244,0.00,220.00,R,Action First Recruitment Ltd,No
Http://opendatacommunities.org/id/metropolitan-district-council/leeds,Leeds City Council,31/01/2018,Adults and Health,Services For Adults Under 65 Mental/Dis,Third Party Payments,Fees - Level 4,520,18/01/2018,0118-00245,0.00,220.00,R,Action First Recruitment Ltd,No
Http://opendatacommunities.org/id/metropolitan-district-council/leeds,Leeds City Council,31/01/2018,Adults and Health,Services For Adults Under 65 Mental/Dis,Third Party Payments,Fees - Level 4,520,18/01/2018,0118-00246,0.00,220.00,R,Action First Recruitment Ltd,No
Http://opendatacommunities.org/id/metropolitan-district-council/leeds,Leeds City Council,31/01/2018,Adults and Health,Services For Adults Under 65 Mental/Dis,Third Party Payments,Fees - Level 4,520,18/01/2018,0118-00247,0.00,220.00,R,Action First Recruitment Ltd,No
Http://opendatacommunities.org/id/metropolitan-district-council/leeds,Leeds City Council,31/01/2018,Adults and Health,Services For Adults Under 65 Mental/Dis,Third Party Payments,Fees - Level 4,520,18/01/2018,0118-00248,0.00,220.00,R,Action First Recruitment Ltd,No
Http://opendatacommunities.org/id/metropolitan-district-council/leeds,Leeds City Council,31/01/2018,Adults and Health,Services For Adults Under 65 Mental/Dis,Third Party Payments,Fees - Level 4,520,18/01/2018,0118-00249,0.00,220.00,R,Action First Recruitment Ltd,No
Http://opendatacommunities.org/id/metropolitan-district-council/leeds,Leeds City Council,31/01/2018,Adults and Health,Services For Adults Under 65 Mental/Dis,Third Party Payments,Fees - Level 4,520,18/01/2018,0118-00250,0.00,220.00,R,Action First Recruitment Ltd,No
Http://opendatacommunities.org/id/metropolitan-district-council/leeds,Leeds City Council,31/01/2018,Adults and Health,Services For Adults Under 65 Mental/Dis,Third Party Payments,Fees - Level 4,520,18/01/2018,0118-00251,0.00,220.00,R,Action First Recruitment Ltd,No
Http://opendatacommunities.org/id/metropolitan-district-council/leeds,Leeds City Council,31/01/2018,Adults and Health,Services For Adults Under 65 Mental/Dis,Third Party Payments,Fees - Level 4,520,18/01/2018,0118-00252,0.00,220.00,R,Action First Recruitment Ltd,No
Http://opendatacommunities.org/id/metropolitan-district-council/leeds,Leeds City Council,31/01/2018,Adults and Health,Services For Adults Under 65 Mental/Dis,Third Party Payments,Fees - Level 4,520,25/01/2018,0118-00253,0.00,220.00,R,Action First Recruitment Ltd,No
Http://opendatacommunities.org/id/metropolitan-district-council/leeds,Leeds City Council,31/01/2018,Adults and Health,Services For Adults Under 65 Mental/Dis,Third Party Payments,Fees - Level 4,520,25/01/2018,0118-00254,0.00,250.00,R,Action First Recruitment Ltd,No
Http://opendatacommunities.org/id/metropolitan-district-council/leeds,Leeds City Council,31/01/2018,Adults and Health,Services For Adults Under 65 Mental/Dis,Third Party Payments,Fees - Level 4,520,25/01/2018,0118-00255,0.00,250.00,R,Action First Recruitment Ltd,No
Http://opendatacommunities.org/id/metropolitan-district-council/leeds,Leeds City Council,31/01/2018,Adults and Health,Services For Adults Under 65 Mental/Dis,Third Party Payments,Fees - Level 4,520,25/01/2018,0118-00256,0.00,220.00,R,Action First Recruitment Ltd,No
Http://opendatacommunities.org/id/metropolitan-district-council/leeds,Leeds City Council,31/01/2018,Adults and Health,Services For Adults Under 65 Mental/Dis,Third Party Payments,Fees - Level 4,520,25/01/2018,0118-00257,0.00,220.00,R,Action First Recruitment Ltd,No
Http://opendatacommunities.org/id/metropolitan-district-council/leeds,Leeds City Council,31/01/2018,Adults and Health,Services For Adults Under 65 Mental/Dis,Third Party Payments,Fees - Level 4,520,26/01/2018,0118-00258,0.00,220.00,R,Action First Recruitment Ltd,No
Http://opendatacommunities.org/id/metropolitan-district-council/leeds,Leeds City Council,31/01/2018,Adults and Health,Services For Adults Under 65 Mental/Dis,Third Party Payments,Fees - Level 4,520,26/01/2018,0118-00259,0.00,220.00,R,Action First Recruitment Ltd,No
Http://opendatacommunities.org/id/metropolitan-district-council/leeds,Leeds City Council,31/01/2018,Adults and Health,Services For Adults Under 65 Mental/Dis,Third Party Payments,Fees - Level 4,520,26/01/2018,0118-00260,0.00,220.00,R,Action First Recruitment Ltd,No
Http://opendatacommunities.org/id/metropolitan-district-council/leeds,Leeds City Council,31/01/2018,Adults and Health,Services For Adults Under 65 Mental/Dis,Third Party Payments,Fees - Level 4,520,26/01/2018,0118-00261,0.00,220.00,R,Action First Recruitment Ltd,No
Http://opendatacommunities.org/id/metropolitan-district-council/leeds,Leeds City Council,31/01/2018,Adults and Health,Services For Adults Under 65 Mental/Dis,Third Party Payments,Fees - Level 4,520,26/01/2018,0118-00262,0.00,220.00,R,Action First Recruitment Ltd,No
Http://opendatacommunities.org/id/metropolitan-district-council/leeds,Leeds City Council,31/01/2018,Adults and Health,Services For Adults Under 65 Mental/Dis,Third Party Payments,Fees - Level 4,520,26/01/2018,0118-00263,0.00,220.00,R,Action First Recruitment Ltd,No
Http://opendatacommunities.org/id/metropolitan-district-council/leeds,Leeds City Council,31/01/2018,Adults and Health,Services For Adults Under 65 Mental/Dis,Third Party Payments,Fees - Level 4,520,26/01/2018,0118-00264,0.00,220.00,R,Action First Recruitment Ltd,No
Http://opendatacommunities.org/id/metropolitan-district-council/leeds,Leeds City Council,31/01/2018,Adults and Health,Services For Adults Under 65 Mental/Dis,Third Party Payments,Fees - Level 4,520,26/01/2018,0118-00265,0.00,220.00,R,Action First Recruitment Ltd,No
Http://opendatacommunities.org/id/metropolitan-district-council/leeds,Leeds City Council,31/01/2018,Adults and Health,Services For Adults Under 65 Mental/Dis,Third Party Payments,Fees - Level 4,520,26/01/2018,0118-00266,0.00,220.00,R,Action First Recruitment Ltd,No
Http://opendatacommunities.org/id/metropolitan-district-council/leeds,Leeds City Council,31/01/2018,Adults and Health,Services For Adults Under 65 Mental/Dis,Third Party Payments,Fees - Level 4,520,26/01/2018,0118-00267,0.00,220.00,R,Action First Recruitment Ltd,No
Http://opendatacommunities.org/id/metropolitan-district-council/leeds,Leeds City Council,31/01/2018,Adults and Health,Services For Adults Under 65 Mental/Dis,Third Party Payments,Fees - Level 4,520,26/01/2018,0118-00268,0.00,220.00,R,Action First Recruitment Ltd,No
Http://opendatacommunities.org/id/metropolitan-district-council/leeds,Leeds City Council,31/01/2018,Adults and Health,Services For Adults Under 65 Mental/Dis,Third Party Payments,Fees - Level 4,520,26/01/2018,0118-00269,0.00,220.00,R,Action First Recruitment Ltd,No
Http://opendatacommunities.org/id/metropolitan-district-council/leeds,Leeds City Council,31/01/2018,Adults and Health,Services For Adults Under 65 Mental/Dis,Third Party Payments,Fees - Level 4,520,26/01/2018,0118-00270,0.00,220.00,R,Action First Recruitment Ltd,No
Http://opendatacommunities.org/id/metropolitan-district-council/leeds,Leeds City Council,31/01/2018,Adults and Health,Services For Adults Under 65 Mental/Dis,Third Party Payments,Fees - Level 4,520,26/01/2018,0118-00271,0.00,220.00,R,Action First Recruitment Ltd,No
Http://opendatacommunities.org/id/metropolitan-district-council/leeds,Leeds City Council,31/01/2018,Adults and Health,Services For Adults Under 65 Mental/Dis,Third Party Payments,Fees - Level 4,520,26/01/2018,0118-00272,0.00,220.00,R,Action First Recruitment Ltd,No
Http://opendatacommunities.org/id/metropolitan-district-council/leeds,Leeds City Council,31/01/2018,Adults and Health,Services For Adults Under 65 Mental/Dis,Third Party Payments,Fees - Level 4,520,30/01/2018,0118-00273,0.00,250.00,R,Action First Recruitment Ltd,No
Http://opendatacommunities.org/id/metropolitan-district-council/leeds,Leeds City Council,31/01/2018,Children and Families,Safeguarding Targeted & Specialist,Third Party Payments,Services Rendered By Other Organisations,511,12/01/2018,0118-00274,0.00,1244.32,R,Active Kids Yeadon Llp,No
Http://opendatacommunities.org/id/metropolitan-district-council/leeds,Leeds City Council,31/01/2018,Children and Families,Safeguarding Targeted & Specialist,Third Party Payments,Placement Support,550,12/01/2018,0118-00275,0.00,174.00,R,Active Kids Yeadon Llp,No
Http://opendatacommunities.org/id/metropolitan-district-council/leeds,Leeds City Council,31/01/2018,Children and Families,Safeguarding Targeted & Specialist,Third Party Payments,Placement Support,550,12/01/2018,0118-00276,0.00,1012.00,R,Active Kids Yeadon Llp,No
Http://opendatacommunities.org/id/metropolitan-district-council/leeds,Leeds City Council,31/01/2018,Children and Families,Safeguarding Targeted & Specialist,Third Party Payments,Services Rendered By Other Organisations,511,17/01/2018,0118-00277,0.00,13661.76,R,Active Kids Yeadon Llp,No
Http://opendatacommunities.org/id/metropolitan-district-council/leeds,Leeds City Council,31/01/2018,Communities and Environment,Cleaner Neighbourhood Teams,Premises,Removal Of Workplace Waste,126,09/01/2018,0118-00278,0.00,110.00,R,Acumen Waste Services Ltd,No
Http://opendatacommunities.org/id/metropolitan-district-council/leeds,Leeds City Council,31/01/2018,Communities and Environment,Cleaner Neighbourhood Teams,Premises,Removal Of Workplace Waste,126,09/01/2018,0118-00279,0.00,110.00,R,Acumen Waste Services Ltd,No
Http://opendatacommunities.org/id/metropolitan-district-council/leeds,Leeds City Council,31/01/2018,Communities and Environment,Cleaner Neighbourhood Teams,Premises,Removal Of Workplace Waste,126,10/01/2018,0118-00280,0.00,110.00,R,Acumen Waste Services Ltd,No
Http://opendatacommunities.org/id/metropolitan-district-council/leeds,Leeds City Council,31/01/2018,Communities and Environment,Cleaner Neighbourhood Teams,Premises,Removal Of Workplace Waste,126,10/01/2018,0118-00281,0.00,110.00,R,Acumen Waste Services Ltd,No
Http://opendatacommunities.org/id/metropolitan-district-council/leeds,Leeds City Council,31/01/2018,Communities and Environment,Cleaner Neighbourhood Teams,Premises,Removal Of Workplace Waste,126,10/01/2018,0118-00282,0.00,110.00,R,Acumen Waste Services Ltd,No
Http://opendatacommunities.org/id/metropolitan-district-council/leeds,Leeds City Council,31/01/2018,Communities and Environment,Cleaner Neighbourhood Teams,Premises,Removal Of Workplace Waste,126,10/01/2018,0118-00283,0.00,110.00,R,Acumen Waste Services Ltd,No
Http://opendatacommunities.org/id/metropolitan-district-council/leeds,Leeds City Council,31/01/2018,Communities and Environment,Cleaner Neighbourhood Teams,Premises,Removal Of Workplace Waste,126,10/01/2018,0118-00284,0.00,110.00,R,Acumen Waste Services Ltd,No
Http://opendatacommunities.org/id/metropolitan-district-council/leeds,Leeds City Council,31/01/2018,Communities and Environment,Cleaner Neighbourhood Teams,Premises,Removal Of Workplace Waste,126,10/01/2018,0118-00285,0.00,110.00,R,Acumen Waste Services Ltd,No
Http://opendatacommunities.org/id/metropolitan-district-council/leeds,Leeds City Council,31/01/2018,Communities and Environment,Cleaner Neighbourhood Teams,Premises,Removal Of Workplace Waste,126,10/01/2018,0118-00286,0.00,110.00,R,Acumen Waste Services Ltd,No
Http://opendatacommunities.org/id/metropolitan-district-council/leeds,Leeds City Council,31/01/2018,Communities and Environment,Cleaner Neighbourhood Teams,Premises,Removal Of Workplace Waste,126,10/01/2018,0118-00287,0.00,110.00,R,Acumen Waste Services Ltd,No
Http://opendatacommunities.org/id/metropolitan-district-council/leeds,Leeds City Council,31/01/2018,Communities and Environment,Cleaner Neighbourhood Teams,Premises,Removal Of Workplace Waste,126,10/01/2018,0118-00288,0.00,110.00,R,Acumen Waste Services Ltd,No
Http://opendatacommunities.org/id/metropolitan-district-council/leeds,Leeds City Council,31/01/2018,Communities and Environment,Cleaner Neighbourhood Teams,Premises,Removal Of Workplace Waste,126,10/01/2018,0118-00289,0.00,110.00,R,Acumen Waste Services Ltd,No
Http://opendatacommunities.org/id/metropolitan-district-council/leeds,Leeds City Council,31/01/2018,Communities and Environment,Cleaner Neighbourhood Teams,Premises,Removal Of Workplace Waste,126,10/01/2018,0118-00290,0.00,110.00,R,Acumen Waste Services Ltd,No
Http://opendatacommunities.org/id/metropolitan-district-council/leeds,Leeds City Council,31/01/2018,Communities and Environment,Cleaner Neighbourhood Teams,Premises,Removal Of Workplace Waste,126,10/01/2018,0118-00291,0.00,110.00,R,Acumen Waste Services Ltd,No
Http://opendatacommunities.org/id/metropolitan-district-council/leeds,Leeds City Council,31/01/2018,Communities and Environment,Cleaner Neighbourhood Teams,Premises,Removal Of Workplace Waste,126,10/01/2018,0118-00292,0.00,110.00,R,Acumen Waste Services Ltd,No
Http://opendatacommunities.org/id/metropolitan-district-council/leeds,Leeds City Council,31/01/2018,Communities and Environment,Waste Management,Supplies and Services,Recycling & Reuse Charges,234,10/01/2018,0118-00293,0.00,160.05,R,Acumen Waste Services Ltd,No
Http://opendatacommunities.org/id/metropolitan-district-council/leeds,Leeds City Council,31/01/2018,Communities and Environment,Cleaner Neighbourhood Teams,Premises,Removal Of Workplace Waste,126,15/01/2018,0118-00294,0.00,110.00,R,Acumen Waste Services Ltd,No
Http://opendatacommunities.org/id/metropolitan-district-council/leeds,Leeds City Council,31/01/2018,Communities and Environment,Cleaner Neighbourhood Teams,Premises,Removal Of Workplace Waste,126,15/01/2018,0118-00295,0.00,110.00,R,Acumen Waste Services Ltd,No
Http://opendatacommunities.org/id/metropolitan-district-council/leeds,Leeds City Council,31/01/2018,Communities and Environment,Cleaner Neighbourhood Teams,Premises,Removal Of Workplace Waste,126,15/01/2018,0118-00296,0.00,110.00,R,Acumen Waste Services Ltd,No
Http://opendatacommunities.org/id/metropolitan-district-council/leeds,Leeds City Council,31/01/2018,Communities and Environment,Cleaner Neighbourhood Teams,Premises,Removal Of Workplace Waste,126,15/01/2018,0118-00297,0.00,110.00,R,Acumen Waste Services Ltd,No
Http://opendatacommunities.org/id/metropolitan-district-council/leeds,Leeds City Council,31/01/2018,Communities and Environment,Cleaner Neighbourhood Teams,Premises,Removal Of Workplace Waste,126,15/01/2018,0118-00298,0.00,110.00,R,Acumen Waste Services Ltd,No
Http://opendatacommunities.org/id/metropolitan-district-council/leeds,Leeds City Council,31/01/2018,Communities and Environment,Waste Management,Supplies and Services,Recycling & Reuse Charges,234,15/01/2018,0118-00299,0.00,9138.80,R,Acumen Waste Services Ltd,No
Http://opendatacommunities.org/id/metropolitan-district-council/leeds,Leeds City Council,31/01/2018,Communities and Environment,Cleaner Neighbourhood Teams,Premises,Removal Of Workplace Waste,126,17/01/2018,0118-00300,0.00,110.00,R,Acumen Waste Services Ltd,No
Http://opendatacommunities.org/id/metropolitan-district-council/leeds,Leeds City Council,31/01/2018,Communities and Environment,Cleaner Neighbourhood Teams,Premises,Removal Of Workplace Waste,126,17/01/2018,0118-00301,0.00,220.00,R,Acumen Waste Services Ltd,No
Http://opendatacommunities.org/id/metropolitan-district-council/leeds,Leeds City Council,31/01/2018,Communities and Environment,Cleaner Neighbourhood Teams,Premises,Removal Of Workplace Waste,126,17/01/2018,0118-00302,0.00,110.00,R,Acumen Waste Services Ltd,No
Http://opendatacommunities.org/id/metropolitan-district-council/leeds,Leeds City Council,31/01/2018,Communities and Environment,Cleaner Neighbourhood Teams,#N/A,Other Hired And Contracted Services,265,18/01/2018,0118-00303,0.00,175.00,R,Acumen Waste Services Ltd,No
Http://opendatacommunities.org/id/metropolitan-district-council/leeds,Leeds City Council,31/01/2018,Communities and Environment,Cleaner Neighbourhood Teams,Premises,Removal Of Workplace Waste,126,19/01/2018,0118-00304,0.00,110.00,R,Acumen Waste Services Ltd,No
Http://opendatacommunities.org/id/metropolitan-district-council/leeds,Leeds City Council,31/01/2018,Communities and Environment,Cleaner Neighbourhood Teams,Premises,Removal Of Workplace Waste,126,19/01/2018,0118-00305,0.00,110.00,R,Acumen Waste Services Ltd,No
Http://opendatacommunities.org/id/metropolitan-district-council/leeds,Leeds City Council,31/01/2018,Communities and Environment,Waste Management,Supplies and Services,Recycling & Reuse Charges,234,19/01/2018,0118-00306,0.00,5243.42,R,Acumen Waste Services Ltd,No
Http://opendatacommunities.org/id/metropolitan-district-council/leeds,Leeds City Council,31/01/2018,Communities and Environment,Cleaner Neighbourhood Teams,Supplies and Services,Bought In Professional Services,277,25/01/2018,0118-00307,0.00,220.00,R,Acumen Waste Services Ltd,No
Http://opendatacommunities.org/id/metropolitan-district-council/leeds,Leeds City Council,31/01/2018,Communities and Environment,Cleaner Neighbourhood Teams,Premises,Removal Of Workplace Waste,126,26/01/2018,0118-00308,0.00,110.00,R,Acumen Waste Services Ltd,No
Http://opendatacommunities.org/id/metropolitan-district-council/leeds,Leeds City Council,31/01/2018,Communities and Environment,Cleaner Neighbourhood Teams,Premises,Removal Of Workplace Waste,126,26/01/2018,0118-00309,0.00,110.00,R,Acumen Waste Services Ltd,No
Http://opendatacommunities.org/id/metropolitan-district-council/leeds,Leeds City Council,31/01/2018,Communities and Environment,Cleaner Neighbourhood Teams,Supplies and Services,Bought In Professional Services,277,26/01/2018,0118-00310,0.00,110.00,R,Acumen Waste Services Ltd,No
Http://opendatacommunities.org/id/metropolitan-district-council/leeds,Leeds City Council,31/01/2018,Communities and Environment,Cleaner Neighbourhood Teams,Premises,Removal Of Workplace Waste,126,31/01/2018,0118-00311,0.00,110.00,R,Acumen Waste Services Ltd,No
Http://opendatacommunities.org/id/metropolitan-district-council/leeds,Leeds City Council,31/01/2018,Communities and Environment,Cleaner Neighbourhood Teams,Premises,Removal Of Workplace Waste,126,31/01/2018,0118-00312,0.00,110.00,R,Acumen Waste Services Ltd,No
Http://opendatacommunities.org/id/metropolitan-district-council/leeds,Leeds City Council,31/01/2018,Communities and Environment,Cleaner Neighbourhood Teams,Premises,Removal Of Workplace Waste,126,31/01/2018,0118-00313,0.00,110.00,R,Acumen Waste Services Ltd,No
Http://opendatacommunities.org/id/metropolitan-district-council/leeds,Leeds City Council,31/01/2018,Communities and Environment,Cleaner Neighbourhood Teams,Premises,Removal Of Workplace Waste,126,31/01/2018,0118-00314,0.00,110.00,R,Acumen Waste Services Ltd,No
Http://opendatacommunities.org/id/metropolitan-district-council/leeds,Leeds City Council,31/01/2018,Communities and Environment,Cleaner Neighbourhood Teams,Premises,Removal Of Workplace Waste,126,31/01/2018,0118-00315,0.00,110.00,R,Acumen Waste Services Ltd,No
Http://opendatacommunities.org/id/metropolitan-district-council/leeds,Leeds City Council,31/01/2018,Communities and Environment,Cleaner Neighbourhood Teams,Premises,Removal Of Workplace Waste,126,31/01/2018,0118-00316,0.00,110.00,R,Acumen Waste Services Ltd,No
Http://opendatacommunities.org/id/metropolitan-district-council/leeds,Leeds City Council,31/01/2018,Communities and Environment,Cleaner Neighbourhood Teams,Premises,Removal Of Workplace Waste,126,31/01/2018,0118-00317,0.00,110.00,R,Acumen Waste Services Ltd,No
Http://opendatacommunities.org/id/metropolitan-district-council/leeds,Leeds City Council,31/01/2018,Communities and Environment,Parks and Countryside,Supplies and Services,Resaleable Materials,204,12/01/2018,0118-00318,0.00,125.00,R,Acushnet Europe Limited,No
Http://opendatacommunities.org/id/metropolitan-district-council/leeds,Leeds City Council,31/01/2018,Resources and Housing,Shared Services,#N/A,Other Hired And Contracted Services,265,15/01/2018,0118-00319,0.00,96.44,R,Ad3 Envelope Printers Limited,No
Http://opendatacommunities.org/id/metropolitan-district-council/leeds,Leeds City Council,31/01/2018,Resources and Housing,Shared Services,Supplies and Services,Operational Materials,205,19/01/2018,0118-00320,0.00,645.00,R,Ad3 Envelope Printers Limited,No
Http://opendatacommunities.org/id/metropolitan-district-council/leeds,Leeds City Council,31/01/2018,Resources and Housing,Shared Services,#N/A,Other Hired And Contracted Services,265,19/01/2018,0118-00321,0.00,44.47,R,Ad3 Envelope Printers Limited,No
Http://opendatacommunities.org/id/metropolitan-district-council/leeds,Leeds City Council,31/01/2018,Adults and Health,Services For Adults Under 65 Mental/Dis,Support Services,Legal Disbursements,411,16/01/2018,0118-00322,0.00,6025.00,R,Adam Fullwood,No
Http://opendatacommunities.org/id/metropolitan-district-council/leeds,Leeds City Council,31/01/2018,Children and Families,Safeguarding Targeted & Specialist,Third Party Payments,Placement Support,550,19/01/2018,0118-00323,0.00,760.85,R,Adapt (North East),No
Http://opendatacommunities.org/id/metropolitan-district-council/leeds,Leeds City Council,31/01/2018,Adults and Health,Services For Older People - 65 And Over,Third Party Payments,Nursing Home,570,10/01/2018,0118-00324,0.00,3786.24,R,Adbolton Hall,No
Http://opendatacommunities.org/id/metropolitan-district-council/leeds,Leeds City Council,31/01/2018,Communities and Environment,Communities,Supplies and Services,'Well Being' Large Grants Projects,230,11/01/2018,0118-00325,0.00,1000.00,R,Addictive Audio,No
Http://opendatacommunities.org/id/metropolitan-district-council/leeds,Leeds City Council,31/01/2018,Resources and Housing,Sustainable Energy & Climate Change,Capital,Other Costs,7,09/01/2018,0118-00326,0.00,11032.00,C,Addleshaw Goddard Llp,No
Http://opendatacommunities.org/id/metropolitan-district-council/leeds,Leeds City Council,31/01/2018,Resources and Housing,Technology  ,Employees,Agency Staff,8,01/12/2017,0118-00327,0.00,44565.83,R,Adecco Alfred Marks,Yes
Http://opendatacommunities.org/id/metropolitan-district-council/leeds,Leeds City Council,31/01/2018,Resources and Housing,Technology  ,Employees,Agency Staff,8,18/12/2017,0118-00328,0.00,58898.33,R,Adecco Alfred Marks,Yes
Http://opendatacommunities.org/id/metropolitan-district-council/leeds,Leeds City Council,31/01/2018,Children and Families,Safeguarding Targeted & Specialist,Third Party Payments,Services Rendered By Voluntary Sector,505,15/01/2018,0118-00329,0.00,1333.20,R,Adel Pre School,No
Http://opendatacommunities.org/id/metropolitan-district-council/leeds,Leeds City Council,31/01/2018,Children and Families,Safeguarding Targeted & Specialist,Third Party Payments,Services Rendered By Voluntary Sector,505,17/01/2018,0118-00330,0.00,12196.80,R,Adel Pre School,No
Http://opendatacommunities.org/id/metropolitan-district-council/leeds,Leeds City Council,31/01/2018,Children and Families,Safeguarding Targeted & Specialist,Third Party Payments,Services Rendered By Other Organisations,511,17/01/2018,0118-00331,0.00,3880.80,R,REDACTED PERSONAL DATA,No
Http://opendatacommunities.org/id/metropolitan-district-council/leeds,Leeds City Council,31/01/2018,Children and Families,Safeguarding Targeted & Specialist,Third Party Payments,Services Rendered By Other Organisations,511,17/01/2018,0118-00332,0.00,665.28,R,REDACTED PERSONAL DATA,No
Http://opendatacommunities.org/id/metropolitan-district-council/leeds,Leeds City Council,31/01/2018,Adults and Health,Services For Older People - 65 And Over,Third Party Payments,Nursing Home,570,10/01/2018,0118-00333,0.00,1157.68,R,Aden House,No
Http://opendatacommunities.org/id/metropolitan-district-council/leeds,Leeds City Council,31/01/2018,Resources and Housing,Strategic Housing Partnership & Support,#N/A,Other Hired And Contracted Services,265,05/01/2018,0118-00334,0.00,530.23,R,Adeola William-Agroh,No
Http://opendatacommunities.org/id/metropolitan-district-council/leeds,Leeds City Council,31/01/2018,Resources and Housing,Leeds Building Services,Supplies and Services,Operational Materials,205,09/01/2018,0118-00335,0.00,18.41,R,Adi Global,No
Http://opendatacommunities.org/id/metropolitan-district-council/leeds,Leeds City Council,31/01/2018,Resources and Housing,Leeds Building Services,Supplies and Services,Operational Materials,205,09/01/2018,0118-00336,0.00,59.53,R,Adi Global,No
Http://opendatacommunities.org/id/metropolitan-district-council/leeds,Leeds City Council,31/01/2018,Resources and Housing,Leeds Building Services,Supplies and Services,Operational Materials,205,17/01/2018,0118-00337,0.00,72.77,R,Adi Global,No
Http://opendatacommunities.org/id/metropolitan-district-council/leeds,Leeds City Council,31/01/2018,Resources and Housing,Leeds Building Services,Supplies and Services,Operational Materials,205,17/01/2018,0118-00338,0.00,54.74,R,Adi Global,No
Http://opendatacommunities.org/id/metropolitan-district-council/leeds,Leeds City Council,31/01/2018,Communities and Environment,Community Safety,#N/A,Other Hired And Contracted Services,265,19/01/2018,0118-00339,0.00,2608.00,R,Adi Global,No
Http://opendatacommunities.org/id/metropolitan-district-council/leeds,Leeds City Council,31/01/2018,Resources and Housing,Leeds Building Services,Supplies and Services,Operational Materials,205,29/01/2018,0118-00340,0.00,1273.27,R,Adi Global,No
Http://opendatacommunities.org/id/metropolitan-district-council/leeds,Leeds City Council,31/01/2018,Children and Families,Safeguarding Targeted & Specialist,Third Party Payments,Independent Fostering Agencies,509,17/01/2018,0118-00341,0.00,2850.00,R,Adolescent And Childrens Trust,No
Http://opendatacommunities.org/id/metropolitan-district-council/leeds,Leeds City Council,31/01/2018,Children and Families,Safeguarding Targeted & Specialist,Third Party Payments,Independent Fostering Agencies,509,17/01/2018,0118-00342,0.00,2850.00,R,Adolescent And Childrens Trust,No
Http://opendatacommunities.org/id/metropolitan-district-council/leeds,Leeds City Council,31/01/2018,Children and Families,Safeguarding Targeted & Specialist,Third Party Payments,Independent Fostering Agencies,509,17/01/2018,0118-00343,0.00,2850.00,R,Adolescent And Childrens Trust,No
Http://opendatacommunities.org/id/metropolitan-district-council/leeds,Leeds City Council,31/01/2018,Children and Families,Safeguarding Targeted & Specialist,Third Party Payments,Independent Fostering Agencies,509,17/01/2018,0118-00344,0.00,1495.00,R,Adolescent And Childrens Trust,No
Http://opendatacommunities.org/id/metropolitan-district-council/leeds,Leeds City Council,31/01/2018,Children and Families,Safeguarding Targeted & Specialist,Third Party Payments,Section 17,551,17/01/2018,0118-00345,0.00,40.00,R,Adrian Henry,No
Http://opendatacommunities.org/id/metropolitan-district-council/leeds,Leeds City Council as Accountable Body,31/01/2018,Social Services Pooled Budgets,Jcs For People With Learning Disabilitie,Third Party Payments,Residential,580,18/01/2018,0118-00346,0.00,2609.36,R,Adrian House,No
Http://opendatacommunities.org/id/metropolitan-district-council/leeds,Leeds City Council,31/01/2018,Strategic Landlord,Housing Management,Premises,Premises Security Services,162,10/01/2018,0118-00347,0.00,56.00,R,Adt Fire And Security Plc,No
Http://opendatacommunities.org/id/metropolitan-district-council/leeds,Leeds City Council,31/01/2018,City Development,Recreation,#N/A,External Audit Fees,261,03/01/2018,0118-00348,0.00,130.00,R,Advance Stocks Ltd,No
Http://opendatacommunities.org/id/metropolitan-district-council/leeds,Leeds City Council,31/01/2018,City Development,Libraries  Arts & Heritage,#N/A,External Audit Fees,261,05/01/2018,0118-00349,0.00,90.00,R,Advance Stocks Ltd,No
Http://opendatacommunities.org/id/metropolitan-district-council/leeds,Leeds City Council,31/01/2018,City Development,Libraries  Arts & Heritage,#N/A,External Audit Fees,261,09/01/2018,0118-00350,0.00,90.00,R,Advance Stocks Ltd,No
Http://opendatacommunities.org/id/metropolitan-district-council/leeds,Leeds City Council,31/01/2018,City Development,Libraries  Arts & Heritage,#N/A,External Audit Fees,261,15/01/2018,0118-00351,0.00,90.00,R,Advance Stocks Ltd,No
Http://opendatacommunities.org/id/metropolitan-district-council/leeds,Leeds City Council as Accountable Body,31/01/2018,Social Services Pooled Budgets,Jcs For People With Learning Disabilitie,Third Party Payments,Residential,580,10/01/2018,0118-00352,0.00,12705.64,R,Advitam Ltd,No
Http://opendatacommunities.org/id/metropolitan-district-council/leeds,Leeds City Council,31/01/2018,Adults and Health,Services For Older People - 65 And Over,Third Party Payments,Payments To Voluntary Organisations,561,08/01/2018,0118-00353,0.00,83435.70,R,Advonet,No
Http://opendatacommunities.org/id/metropolitan-district-council/leeds,Leeds City Council,31/01/2018,Adults and Health,Services For Older People - 65 And Over,Third Party Payments,Payments To Voluntary Organisations,561,08/01/2018,0118-00354,0.00,83435.70,R,Advonet,No
Http://opendatacommunities.org/id/metropolitan-district-council/leeds,Leeds City Council as Accountable Body,31/01/2018,Social Services Pooled Budgets,Jcs For People With Learning Disabilitie,Third Party Payments,Other Agency Services,561,09/01/2018,0118-00355,0.00,11372.30,R,Advonet,No
Http://opendatacommunities.org/id/metropolitan-district-council/leeds,Leeds City Council as Accountable Body,31/01/2018,Social Services Pooled Budgets,Jcs For People With Learning Disabilitie,Third Party Payments,Other Agency Services,561,09/01/2018,0118-00356,0.00,6567.66,R,Advonet,No
Http://opendatacommunities.org/id/metropolitan-district-council/leeds,Leeds City Council,31/01/2018,Adults and Health,Services For Adults Under 65 Mental/Dis,Third Party Payments,Payments To Voluntary Organisations,561,16/01/2018,0118-00357,0.00,12071.73,R,Advonet,No
Http://opendatacommunities.org/id/metropolitan-district-council/leeds,Leeds City Council,31/01/2018,Adults and Health,Services For Adults Under 65 Mental/Dis,Third Party Payments,Payments To Voluntary Organisations,561,16/01/2018,0118-00358,0.00,15239.91,R,Advonet,No
Http://opendatacommunities.org/id/metropolitan-district-council/leeds,Leeds City Council,31/01/2018,Adults and Health,Services For Adults Under 65 Mental/Dis,Third Party Payments,Payments To Voluntary Organisations,561,17/01/2018,0118-00359,0.00,466.00,R,Advonet,No
Http://opendatacommunities.org/id/metropolitan-district-council/leeds,Leeds City Council,31/01/2018,Adults and Health,Assessment And Care Management,Employees,Training & Development,70,19/01/2018,0118-00360,0.00,1545.00,R,Advonet,No
Http://opendatacommunities.org/id/metropolitan-district-council/leeds,Leeds City Council,31/01/2018,City Development,Highways,Capital,Other Costs,7,05/01/2018,0118-00361,0.00,23544.12,C,Aecom Limited,No
Http://opendatacommunities.org/id/metropolitan-district-council/leeds,Leeds City Council,31/01/2018,City Development,Economic Development,Capital,Other Costs,7,05/01/2018,0118-00362,0.00,1622.00,C,Aecom Limited,No
Http://opendatacommunities.org/id/metropolitan-district-council/leeds,Leeds City Council,31/01/2018,City Development,Highways,Capital,Other Costs,7,29/01/2018,0118-00363,0.00,28480.00,C,Aecom Limited,No
Http://opendatacommunities.org/id/metropolitan-district-council/leeds,Leeds City Council as Accountable Body,31/01/2018,Social Services Pooled Budgets,Jcs For People With Learning Disabilitie,Third Party Payments,Day Centre,564,05/01/2018,0118-00364,0.00,903.96,R,Affinity Trust,No
Http://opendatacommunities.org/id/metropolitan-district-council/leeds,Leeds City Council as Accountable Body,31/01/2018,Social Services Pooled Budgets,Jcs For People With Learning Disabilitie,Third Party Payments,Home Care,568,05/01/2018,0118-00365,0.00,2977.03,R,Affinity Trust,No
Http://opendatacommunities.org/id/metropolitan-district-council/leeds,Leeds City Council,31/01/2018,Adults and Health,Services For Older People Under 65 P/Dis,Third Party Payments,Home Care,568,09/01/2018,0118-00366,0.00,526.68,R,Affinity Trust,No
Http://opendatacommunities.org/id/metropolitan-district-council/leeds,Leeds City Council as Accountable Body,31/01/2018,Social Services Pooled Budgets,Jcs For People With Learning Disabilitie,Third Party Payments,Home Care,568,09/01/2018,0118-00367,0.00,1238.45,R,Affinity Trust,No
Http://opendatacommunities.org/id/metropolitan-district-council/leeds,Leeds City Council as Accountable Body,31/01/2018,Social Services Pooled Budgets,Jcs For People With Learning Disabilitie,Third Party Payments,Home Care,568,09/01/2018,0118-00368,0.00,383.52,R,Affinity Trust,No
Http://opendatacommunities.org/id/metropolitan-district-council/leeds,Leeds City Council,31/01/2018,Adults and Health,Services For Older People Under 65 P/Dis,Third Party Payments,Home Care,568,09/01/2018,0118-00369,0.00,134.56,R,Affinity Trust,No
Http://opendatacommunities.org/id/metropolitan-district-council/leeds,Leeds City Council,31/01/2018,Adults and Health,Services For Older People Under 65 P/Dis,Third Party Payments,Home Care,568,09/01/2018,0118-00370,0.00,403.68,R,Affinity Trust,No
Http://opendatacommunities.org/id/metropolitan-district-council/leeds,Leeds City Council as Accountable Body,31/01/2018,Social Services Pooled Budgets,Jcs For People With Learning Disabilitie,Third Party Payments,Home Care,568,09/01/2018,0118-00371,0.00,714.00,R,Affinity Trust,No
Http://opendatacommunities.org/id/metropolitan-district-council/leeds,Leeds City Council as Accountable Body,31/01/2018,Social Services Pooled Budgets,Jcs For People With Learning Disabilitie,Third Party Payments,Day Centre,564,09/01/2018,0118-00372,0.00,416.64,R,Affinity Trust,No
Http://opendatacommunities.org/id/metropolitan-district-council/leeds,Leeds City Council as Accountable Body,31/01/2018,Social Services Pooled Budgets,Jcs For People With Learning Disabilitie,Third Party Payments,Home Care,568,09/01/2018,0118-00373,0.00,1386.00,R,Affinity Trust,No
Http://opendatacommunities.org/id/metropolitan-district-council/leeds,Leeds City Council as Accountable Body,31/01/2018,Social Services Pooled Budgets,Jcs For People With Learning Disabilitie,Third Party Payments,Home Care,568,09/01/2018,0118-00374,0.00,1211.04,R,Affinity Trust,No
Http://opendatacommunities.org/id/metropolitan-district-council/leeds,Leeds City Council as Accountable Body,31/01/2018,Social Services Pooled Budgets,Jcs For People With Learning Disabilitie,Third Party Payments,Home Care,568,09/01/2018,0118-00375,0.00,191.76,R,Affinity Trust,No
Http://opendatacommunities.org/id/metropolitan-district-council/leeds,Leeds City Council as Accountable Body,31/01/2018,Social Services Pooled Budgets,Jcs For People With Learning Disabilitie,Third Party Payments,Home Care,568,09/01/2018,0118-00376,0.00,639.20,R,Affinity Trust,No
Http://opendatacommunities.org/id/metropolitan-district-council/leeds,Leeds City Council as Accountable Body,31/01/2018,Social Services Pooled Budgets,Jcs For People With Learning Disabilitie,Third Party Payments,Home Care,568,09/01/2018,0118-00377,0.00,297.50,R,Affinity Trust,No
Http://opendatacommunities.org/id/metropolitan-district-council/leeds,Leeds City Council as Accountable Body,31/01/2018,Social Services Pooled Budgets,Jcs For People With Learning Disabilitie,Third Party Payments,Home Care,568,09/01/2018,0118-00378,0.00,1086.64,R,Affinity Trust,No
Http://opendatacommunities.org/id/metropolitan-district-council/leeds,Leeds City Council as Accountable Body,31/01/2018,Social Services Pooled Budgets,Jcs For People With Learning Disabilitie,Third Party Payments,Home Care,568,09/01/2018,0118-00379,0.00,2604.74,R,Affinity Trust,No
Http://opendatacommunities.org/id/metropolitan-district-council/leeds,Leeds City Council as Accountable Body,31/01/2018,Social Services Pooled Budgets,Jcs For People With Learning Disabilitie,Third Party Payments,Home Care,568,09/01/2018,0118-00380,0.00,204.32,R,Affinity Trust,No
Http://opendatacommunities.org/id/metropolitan-district-council/leeds,Leeds City Council as Accountable Body,31/01/2018,Social Services Pooled Budgets,Jcs For People With Learning Disabilitie,Third Party Payments,Home Care,568,09/01/2018,0118-00381,0.00,941.92,R,Affinity Trust,No
Http://opendatacommunities.org/id/metropolitan-district-council/leeds,Leeds City Council as Accountable Body,31/01/2018,Social Services Pooled Budgets,Jcs For People With Learning Disabilitie,Third Party Payments,Home Care,568,09/01/2018,0118-00382,0.00,255.68,R,Affinity Trust,No
Http://opendatacommunities.org/id/metropolitan-district-council/leeds,Leeds City Council as Accountable Body,31/01/2018,Social Services Pooled Budgets,Jcs For People With Learning Disabilitie,Third Party Payments,Home Care,568,09/01/2018,0118-00383,0.00,958.80,R,Affinity Trust,No
Http://opendatacommunities.org/id/metropolitan-district-council/leeds,Leeds City Council as Accountable Body,31/01/2018,Social Services Pooled Budgets,Jcs For People With Learning Disabilitie,Third Party Payments,Home Care,568,09/01/2018,0118-00384,0.00,383.52,R,Affinity Trust,No
Http://opendatacommunities.org/id/metropolitan-district-council/leeds,Leeds City Council,31/01/2018,Adults and Health,Services For Adults Under 65 Mental/Dis,Third Party Payments,Home Care,568,10/01/2018,0118-00385,0.00,319.60,R,Affinity Trust,No
Http://opendatacommunities.org/id/metropolitan-district-council/leeds,Leeds City Council as Accountable Body,31/01/2018,Social Services Pooled Budgets,Jcs For People With Learning Disabilitie,Third Party Payments,Day Centre,564,11/01/2018,0118-00386,0.00,1350.00,R,Affinity Trust,No
Http://opendatacommunities.org/id/metropolitan-district-council/leeds,Leeds City Council as Accountable Body,31/01/2018,Social Services Pooled Budgets,Jcs For People With Learning Disabilitie,Third Party Payments,Day Centre,564,11/01/2018,0118-00387,0.00,765.99,R,Affinity Trust,No
Http://opendatacommunities.org/id/metropolitan-district-council/leeds,Leeds City Council as Accountable Body,31/01/2018,Social Services Pooled Budgets,Jcs For People With Learning Disabilitie,Third Party Payments,Home Care,568,11/01/2018,0118-00388,0.00,2752.80,R,Affinity Trust,No
Http://opendatacommunities.org/id/metropolitan-district-council/leeds,Leeds City Council as Accountable Body,31/01/2018,Social Services Pooled Budgets,Jcs For People With Learning Disabilitie,Third Party Payments,Home Care,568,11/01/2018,0118-00389,0.00,1512.45,R,Affinity Trust,No
Http://opendatacommunities.org/id/metropolitan-district-council/leeds,Leeds City Council as Accountable Body,31/01/2018,Social Services Pooled Budgets,Jcs For People With Learning Disabilitie,Third Party Payments,Day Centre,564,11/01/2018,0118-00390,0.00,903.96,R,Affinity Trust,No
Http://opendatacommunities.org/id/metropolitan-district-council/leeds,Leeds City Council as Accountable Body,31/01/2018,Social Services Pooled Budgets,Jcs For People With Learning Disabilitie,Third Party Payments,Home Care,568,11/01/2018,0118-00391,0.00,2952.81,R,Affinity Trust,No
Http://opendatacommunities.org/id/metropolitan-district-council/leeds,Leeds City Council as Accountable Body,31/01/2018,Social Services Pooled Budgets,Jcs For People With Learning Disabilitie,Third Party Payments,Day Centre,564,11/01/2018,0118-00392,0.00,351.96,R,Affinity Trust,No
Http://opendatacommunities.org/id/metropolitan-district-council/leeds,Leeds City Council as Accountable Body,31/01/2018,Social Services Pooled Budgets,Jcs For People With Learning Disabilitie,Third Party Payments,Home Care,568,11/01/2018,0118-00393,0.00,525.72,R,Affinity Trust,No
Http://opendatacommunities.org/id/metropolitan-district-council/leeds,Leeds City Council as Accountable Body,31/01/2018,Social Services Pooled Budgets,Jcs For People With Learning Disabilitie,Third Party Payments,Day Centre,564,11/01/2018,0118-00394,0.00,3448.65,R,Affinity Trust,No
Http://opendatacommunities.org/id/metropolitan-district-council/leeds,Leeds City Council as Accountable Body,31/01/2018,Social Services Pooled Budgets,Jcs For People With Learning Disabilitie,Third Party Payments,Home Care,568,11/01/2018,0118-00395,0.00,804.48,R,Affinity Trust,No
Http://opendatacommunities.org/id/metropolitan-district-council/leeds,Leeds City Council as Accountable Body,31/01/2018,Social Services Pooled Budgets,Jcs For People With Learning Disabilitie,Third Party Payments,Home Care,568,11/01/2018,0118-00396,0.00,1176.98,R,Affinity Trust,No
Http://opendatacommunities.org/id/metropolitan-district-council/leeds,Leeds City Council as Accountable Body,31/01/2018,Social Services Pooled Budgets,Jcs For People With Learning Disabilitie,Third Party Payments,Home Care,568,11/01/2018,0118-00397,0.00,615.33,R,Affinity Trust,No
Http://opendatacommunities.org/id/metropolitan-district-council/leeds,Leeds City Council as Accountable Body,31/01/2018,Social Services Pooled Budgets,Jcs For People With Learning Disabilitie,Third Party Payments,Home Care,568,11/01/2018,0118-00398,0.00,921.80,R,Affinity Trust,No
Http://opendatacommunities.org/id/metropolitan-district-council/leeds,Leeds City Council as Accountable Body,31/01/2018,Social Services Pooled Budgets,Jcs For People With Learning Disabilitie,Third Party Payments,Home Care,568,11/01/2018,0118-00399,0.00,360.00,R,Affinity Trust,No
Http://opendatacommunities.org/id/metropolitan-district-council/leeds,Leeds City Council as Accountable Body,31/01/2018,Social Services Pooled Budgets,Jcs For People With Learning Disabilitie,Third Party Payments,Home Care,568,11/01/2018,0118-00400,0.00,301.68,R,Affinity Trust,No
Http://opendatacommunities.org/id/metropolitan-district-council/leeds,Leeds City Council as Accountable Body,31/01/2018,Social Services Pooled Budgets,Jcs For People With Learning Disabilitie,Third Party Payments,Day Centre,564,11/01/2018,0118-00401,0.00,2346.40,R,Affinity Trust,No
Http://opendatacommunities.org/id/metropolitan-district-council/leeds,Leeds City Council as Accountable Body,31/01/2018,Social Services Pooled Budgets,Jcs For People With Learning Disabilitie,Third Party Payments,Day Centre,564,11/01/2018,0118-00402,0.00,1190.61,R,Affinity Trust,No
Http://opendatacommunities.org/id/metropolitan-district-council/leeds,Leeds City Council as Accountable Body,31/01/2018,Social Services Pooled Budgets,Jcs For People With Learning Disabilitie,Third Party Payments,Home Care,568,11/01/2018,0118-00403,0.00,1466.06,R,Affinity Trust,No
Http://opendatacommunities.org/id/metropolitan-district-council/leeds,Leeds City Council as Accountable Body,31/01/2018,Social Services Pooled Budgets,Jcs For People With Learning Disabilitie,Third Party Payments,Home Care,568,16/01/2018,0118-00404,0.00,1050.00,R,Affinity Trust,No
Http://opendatacommunities.org/id/metropolitan-district-council/leeds,Leeds City Council as Accountable Body,31/01/2018,Social Services Pooled Budgets,Jcs For People With Learning Disabilitie,Third Party Payments,Home Care,568,16/01/2018,0118-00405,0.00,466.65,R,Affinity Trust,No
Http://opendatacommunities.org/id/metropolitan-district-council/leeds,Leeds City Council as Accountable Body,31/01/2018,Social Services Pooled Budgets,Jcs For People With Learning Disabilitie,Third Party Payments,Home Care,568,16/01/2018,0118-00406,0.00,1560.00,R,Affinity Trust,No
Http://opendatacommunities.org/id/metropolitan-district-council/leeds,Leeds City Council as Accountable Body,31/01/2018,Social Services Pooled Budgets,Jcs For People With Learning Disabilitie,Third Party Payments,Home Care,568,16/01/2018,0118-00407,0.00,1532.40,R,Affinity Trust,No
Http://opendatacommunities.org/id/metropolitan-district-council/leeds,Leeds City Council as Accountable Body,31/01/2018,Social Services Pooled Budgets,Jcs For People With Learning Disabilitie,Third Party Payments,Home Care,568,16/01/2018,0118-00408,0.00,962.64,R,Affinity Trust,No
Http://opendatacommunities.org/id/metropolitan-district-council/leeds,Leeds City Council as Accountable Body,31/01/2018,Social Services Pooled Budgets,Jcs For People With Learning Disabilitie,Third Party Payments,Home Care,568,16/01/2018,0118-00409,0.00,3235.19,R,Affinity Trust,No
Http://opendatacommunities.org/id/metropolitan-district-council/leeds,Leeds City Council as Accountable Body,31/01/2018,Social Services Pooled Budgets,Jcs For People With Learning Disabilitie,Third Party Payments,Day Centre,564,16/01/2018,0118-00410,0.00,838.00,R,Affinity Trust,No
Http://opendatacommunities.org/id/metropolitan-district-council/leeds,Leeds City Council as Accountable Body,31/01/2018,Social Services Pooled Budgets,Jcs For People With Learning Disabilitie,Third Party Payments,Home Care,568,16/01/2018,0118-00411,0.00,525.72,R,Affinity Trust,No
Http://opendatacommunities.org/id/metropolitan-district-council/leeds,Leeds City Council as Accountable Body,31/01/2018,Social Services Pooled Budgets,Jcs For People With Learning Disabilitie,Third Party Payments,Day Centre,564,16/01/2018,0118-00412,0.00,3425.58,R,Affinity Trust,No
Http://opendatacommunities.org/id/metropolitan-district-council/leeds,Leeds City Council as Accountable Body,31/01/2018,Social Services Pooled Budgets,Jcs For People With Learning Disabilitie,Third Party Payments,Home Care,568,16/01/2018,0118-00413,0.00,804.48,R,Affinity Trust,No
Http://opendatacommunities.org/id/metropolitan-district-council/leeds,Leeds City Council as Accountable Body,31/01/2018,Social Services Pooled Budgets,Jcs For People With Learning Disabilitie,Third Party Payments,Home Care,568,16/01/2018,0118-00414,0.00,1083.88,R,Affinity Trust,No
Http://opendatacommunities.org/id/metropolitan-district-council/leeds,Leeds City Council as Accountable Body,31/01/2018,Social Services Pooled Budgets,Jcs For People With Learning Disabilitie,Third Party Payments,Home Care,568,16/01/2018,0118-00415,0.00,1563.30,R,Affinity Trust,No
Http://opendatacommunities.org/id/metropolitan-district-council/leeds,Leeds City Council as Accountable Body,31/01/2018,Social Services Pooled Budgets,Jcs For People With Learning Disabilitie,Third Party Payments,Home Care,568,16/01/2018,0118-00416,0.00,1005.60,R,Affinity Trust,No
Http://opendatacommunities.org/id/metropolitan-district-council/leeds,Leeds City Council as Accountable Body,31/01/2018,Social Services Pooled Budgets,Jcs For People With Learning Disabilitie,Third Party Payments,Home Care,568,16/01/2018,0118-00417,0.00,360.00,R,Affinity Trust,No
Http://opendatacommunities.org/id/metropolitan-district-council/leeds,Leeds City Council as Accountable Body,31/01/2018,Social Services Pooled Budgets,Jcs For People With Learning Disabilitie,Third Party Payments,Home Care,568,16/01/2018,0118-00418,0.00,301.68,R,Affinity Trust,No
Http://opendatacommunities.org/id/metropolitan-district-council/leeds,Leeds City Council as Accountable Body,31/01/2018,Social Services Pooled Budgets,Jcs For People With Learning Disabilitie,Third Party Payments,Day Centre,564,16/01/2018,0118-00419,0.00,648.95,R,Affinity Trust,No
Http://opendatacommunities.org/id/metropolitan-district-council/leeds,Leeds City Council as Accountable Body,31/01/2018,Social Services Pooled Budgets,Jcs For People With Learning Disabilitie,Third Party Payments,Day Centre,564,16/01/2018,0118-00420,0.00,2346.40,R,Affinity Trust,No
Http://opendatacommunities.org/id/metropolitan-district-council/leeds,Leeds City Council as Accountable Body,31/01/2018,Social Services Pooled Budgets,Jcs For People With Learning Disabilitie,Third Party Payments,Day Centre,564,16/01/2018,0118-00421,0.00,1190.61,R,Affinity Trust,No
Http://opendatacommunities.org/id/metropolitan-district-council/leeds,Leeds City Council as Accountable Body,31/01/2018,Social Services Pooled Budgets,Jcs For People With Learning Disabilitie,Third Party Payments,Home Care,568,16/01/2018,0118-00422,0.00,1473.90,R,Affinity Trust,No
Http://opendatacommunities.org/id/metropolitan-district-council/leeds,Leeds City Council as Accountable Body,31/01/2018,Social Services Pooled Budgets,Jcs For People With Learning Disabilitie,Third Party Payments,Day Centre,564,17/01/2018,0118-00423,0.00,1440.00,R,Affinity Trust,No
Http://opendatacommunities.org/id/metropolitan-district-council/leeds,Leeds City Council as Accountable Body,31/01/2018,Social Services Pooled Budgets,Jcs For People With Learning Disabilitie,Third Party Payments,Day Centre,564,17/01/2018,0118-00424,0.00,1050.66,R,Affinity Trust,No
Http://opendatacommunities.org/id/metropolitan-district-council/leeds,Leeds City Council as Accountable Body,31/01/2018,Social Services Pooled Budgets,Jcs For People With Learning Disabilitie,Third Party Payments,Home Care,568,17/01/2018,0118-00425,0.00,2752.80,R,Affinity Trust,No
Http://opendatacommunities.org/id/metropolitan-district-council/leeds,Leeds City Council,31/01/2018,Adults and Health,Assessment And Care Management,Third Party Payments,Home Care,568,24/01/2018,0118-00426,0.00,511.36,R,Affinity Trust,No
Http://opendatacommunities.org/id/metropolitan-district-council/leeds,Leeds City Council,31/01/2018,Adults and Health,Assessment And Care Management,Third Party Payments,Home Care,568,24/01/2018,0118-00427,0.00,487.39,R,Affinity Trust,No
Http://opendatacommunities.org/id/metropolitan-district-council/leeds,Leeds City Council,31/01/2018,Adults and Health,Assessment And Care Management,Third Party Payments,Home Care,568,24/01/2018,0118-00428,0.00,511.36,R,Affinity Trust,No
Http://opendatacommunities.org/id/metropolitan-district-council/leeds,Leeds City Council,31/01/2018,Adults and Health,Services For Older People Under 65 P/Dis,Third Party Payments,Home Care,568,24/01/2018,0118-00429,0.00,526.68,R,Affinity Trust,No
Http://opendatacommunities.org/id/metropolitan-district-council/leeds,Leeds City Council as Accountable Body,31/01/2018,Social Services Pooled Budgets,Jcs For People With Learning Disabilitie,Third Party Payments,Home Care,568,25/01/2018,0118-00430,0.00,615.00,R,Affinity Trust,No
Http://opendatacommunities.org/id/metropolitan-district-council/leeds,Leeds City Council as Accountable Body,31/01/2018,Social Services Pooled Budgets,Jcs For People With Learning Disabilitie,Third Party Payments,Home Care,568,25/01/2018,0118-00431,0.00,543.96,R,Affinity Trust,No
Http://opendatacommunities.org/id/metropolitan-district-council/leeds,Leeds City Council as Accountable Body,31/01/2018,Social Services Pooled Budgets,Jcs For People With Learning Disabilitie,Third Party Payments,Home Care,568,25/01/2018,0118-00432,0.00,1365.00,R,Affinity Trust,No
Http://opendatacommunities.org/id/metropolitan-district-council/leeds,Leeds City Council as Accountable Body,31/01/2018,Social Services Pooled Budgets,Jcs For People With Learning Disabilitie,Third Party Payments,Home Care,568,25/01/2018,0118-00433,0.00,719.10,R,Affinity Trust,No
Http://opendatacommunities.org/id/metropolitan-district-council/leeds,Leeds City Council as Accountable Body,31/01/2018,Social Services Pooled Budgets,Jcs For People With Learning Disabilitie,Third Party Payments,Home Care,568,25/01/2018,0118-00434,0.00,327.59,R,Affinity Trust,No
Http://opendatacommunities.org/id/metropolitan-district-council/leeds,Leeds City Council as Accountable Body,31/01/2018,Social Services Pooled Budgets,Jcs For People With Learning Disabilitie,Third Party Payments,Home Care,568,25/01/2018,0118-00435,0.00,1214.48,R,Affinity Trust,No
Http://opendatacommunities.org/id/metropolitan-district-council/leeds,Leeds City Council as Accountable Body,31/01/2018,Social Services Pooled Budgets,Jcs For People With Learning Disabilitie,Third Party Payments,Home Care,568,25/01/2018,0118-00436,0.00,351.56,R,Affinity Trust,No
Http://opendatacommunities.org/id/metropolitan-district-council/leeds,Leeds City Council as Accountable Body,31/01/2018,Social Services Pooled Budgets,Jcs For People With Learning Disabilitie,Third Party Payments,Home Care,568,25/01/2018,0118-00437,0.00,187.00,R,Affinity Trust,No
Http://opendatacommunities.org/id/metropolitan-district-council/leeds,Leeds City Council as Accountable Body,31/01/2018,Social Services Pooled Budgets,Jcs For People With Learning Disabilitie,Third Party Payments,Day Centre,564,25/01/2018,0118-00438,0.00,416.64,R,Affinity Trust,No
Http://opendatacommunities.org/id/metropolitan-district-council/leeds,Leeds City Council as Accountable Body,31/01/2018,Social Services Pooled Budgets,Jcs For People With Learning Disabilitie,Third Party Payments,Home Care,568,25/01/2018,0118-00439,0.00,1518.00,R,Affinity Trust,No
Http://opendatacommunities.org/id/metropolitan-district-council/leeds,Leeds City Council as Accountable Body,31/01/2018,Social Services Pooled Budgets,Jcs For People With Learning Disabilitie,Third Party Payments,Home Care,568,25/01/2018,0118-00440,0.00,1211.04,R,Affinity Trust,No
Http://opendatacommunities.org/id/metropolitan-district-council/leeds,Leeds City Council as Accountable Body,31/01/2018,Social Services Pooled Budgets,Jcs For People With Learning Disabilitie,Third Party Payments,Home Care,568,25/01/2018,0118-00441,0.00,191.76,R,Affinity Trust,No
Http://opendatacommunities.org/id/metropolitan-district-council/leeds,Leeds City Council as Accountable Body,31/01/2018,Social Services Pooled Budgets,Jcs For People With Learning Disabilitie,Third Party Payments,Home Care,568,25/01/2018,0118-00442,0.00,1086.64,R,Affinity Trust,No
Http://opendatacommunities.org/id/metropolitan-district-council/leeds,Leeds City Council as Accountable Body,31/01/2018,Social Services Pooled Budgets,Jcs For People With Learning Disabilitie,Third Party Payments,Home Care,568,25/01/2018,0118-00443,0.00,255.68,R,Affinity Trust,No
Http://opendatacommunities.org/id/metropolitan-district-council/leeds,Leeds City Council as Accountable Body,31/01/2018,Social Services Pooled Budgets,Jcs For People With Learning Disabilitie,Third Party Payments,Day Centre,564,25/01/2018,0118-00444,0.00,1440.00,R,Affinity Trust,No
Http://opendatacommunities.org/id/metropolitan-district-council/leeds,Leeds City Council as Accountable Body,31/01/2018,Social Services Pooled Budgets,Jcs For People With Learning Disabilitie,Third Party Payments,Day Centre,564,25/01/2018,0118-00445,0.00,1050.66,R,Affinity Trust,No
Http://opendatacommunities.org/id/metropolitan-district-council/leeds,Leeds City Council as Accountable Body,31/01/2018,Social Services Pooled Budgets,Jcs For People With Learning Disabilitie,Third Party Payments,Home Care,568,25/01/2018,0118-00446,0.00,617.31,R,Affinity Trust,No
Http://opendatacommunities.org/id/metropolitan-district-council/leeds,Leeds City Council as Accountable Body,31/01/2018,Social Services Pooled Budgets,Jcs For People With Learning Disabilitie,Third Party Payments,Home Care,568,25/01/2018,0118-00447,0.00,1560.00,R,Affinity Trust,No
Http://opendatacommunities.org/id/metropolitan-district-council/leeds,Leeds City Council as Accountable Body,31/01/2018,Social Services Pooled Budgets,Jcs For People With Learning Disabilitie,Third Party Payments,Home Care,568,25/01/2018,0118-00448,0.00,2272.80,R,Affinity Trust,No
Http://opendatacommunities.org/id/metropolitan-district-council/leeds,Leeds City Council as Accountable Body,31/01/2018,Social Services Pooled Budgets,Jcs For People With Learning Disabilitie,Third Party Payments,Home Care,568,25/01/2018,0118-00449,0.00,1640.10,R,Affinity Trust,No
Http://opendatacommunities.org/id/metropolitan-district-council/leeds,Leeds City Council as Accountable Body,31/01/2018,Social Services Pooled Budgets,Jcs For People With Learning Disabilitie,Third Party Payments,Home Care,568,25/01/2018,0118-00450,0.00,1006.65,R,Affinity Trust,No
Http://opendatacommunities.org/id/metropolitan-district-council/leeds,Leeds City Council as Accountable Body,31/01/2018,Social Services Pooled Budgets,Jcs For People With Learning Disabilitie,Third Party Payments,Home Care,568,25/01/2018,0118-00451,0.00,804.48,R,Affinity Trust,No
Http://opendatacommunities.org/id/metropolitan-district-council/leeds,Leeds City Council as Accountable Body,31/01/2018,Social Services Pooled Budgets,Jcs For People With Learning Disabilitie,Third Party Payments,Home Care,568,25/01/2018,0118-00452,0.00,1741.32,R,Affinity Trust,No
Http://opendatacommunities.org/id/metropolitan-district-council/leeds,Leeds City Council as Accountable Body,31/01/2018,Social Services Pooled Budgets,Jcs For People With Learning Disabilitie,Third Party Payments,Home Care,568,25/01/2018,0118-00453,0.00,1005.60,R,Affinity Trust,No
Http://opendatacommunities.org/id/metropolitan-district-council/leeds,Leeds City Council as Accountable Body,31/01/2018,Social Services Pooled Budgets,Jcs For People With Learning Disabilitie,Third Party Payments,Home Care,568,25/01/2018,0118-00454,0.00,90.00,R,Affinity Trust,No
Http://opendatacommunities.org/id/metropolitan-district-council/leeds,Leeds City Council as Accountable Body,31/01/2018,Social Services Pooled Budgets,Jcs For People With Learning Disabilitie,Third Party Payments,Home Care,568,25/01/2018,0118-00455,0.00,1536.27,R,Affinity Trust,No
Http://opendatacommunities.org/id/metropolitan-district-council/leeds,Leeds City Council as Accountable Body,31/01/2018,Social Services Pooled Budgets,Jcs For People With Learning Disabilitie,Third Party Payments,Sheltered Accommodation,569,10/01/2018,0118-00456,0.00,117300.01,R,Affinity Trust North Divisional Office,No
Http://opendatacommunities.org/id/metropolitan-district-council/leeds,Leeds City Council,31/01/2018,Communities and Environment,Parks And Countryside  ,Transport,Hire Of Movable Plant & Machinery,315,11/12/2017,0118-00457,0.00,950.00,R,Afi Uplift Ltd,Yes
Http://opendatacommunities.org/id/metropolitan-district-council/leeds,Leeds City Council,31/01/2018,Communities and Environment,Parks And Countryside  ,Transport,Hire Of Movable Plant & Machinery,315,11/12/2017,0118-00458,0.00,950.00,R,Afi Uplift Ltd,Yes
Http://opendatacommunities.org/id/metropolitan-district-council/leeds,Leeds City Council,31/01/2018,Communities and Environment,Car Parking Services,Income,Penalties  Fines & Car Parking Charges,934,11/01/2018,0118-00459,0.00,68.00,R,REDACTED PERSONAL DATA,No
Http://opendatacommunities.org/id/metropolitan-district-council/leeds,Leeds City Council,31/01/2018,City Development,Libraries  Arts & Heritage,#N/A,Other Hired And Contracted Services,265,03/01/2018,0118-00460,0.00,2140.80,R,AGLAIA GELPKE,No
Http://opendatacommunities.org/id/metropolitan-district-council/leeds,Leeds City Council,31/01/2018,Children and Families,Learning Skills & Universal,Supplies and Services,Teaching Materials,202,15/01/2018,0118-00461,0.00,24.96,R,Aid Training & Operations Ltd,No
Http://opendatacommunities.org/id/metropolitan-district-council/leeds,Leeds City Council,31/01/2018,Children and Families,Learning Skills & Universal,Supplies and Services,Teaching Materials,202,19/01/2018,0118-00462,0.00,23.46,R,Aid Training & Operations Ltd,No
Http://opendatacommunities.org/id/metropolitan-district-council/leeds,Leeds City Council,31/01/2018,Children and Families,Learning Skills & Universal,Supplies and Services,Teaching Materials,202,19/01/2018,0118-00463,0.00,35.96,R,Aid Training & Operations Ltd,No
Http://opendatacommunities.org/id/metropolitan-district-council/leeds,Leeds City Council as Accountable Body,31/01/2018,Social Services Pooled Budgets,Leeds Community Equip Store Pooled Budgt,Supplies and Services,Other Equipment,203,04/01/2018,0118-00464,0.00,549.70,R,Aidapt Bathrooms Ltd,No
Http://opendatacommunities.org/id/metropolitan-district-council/leeds,Leeds City Council as Accountable Body,31/01/2018,Social Services Pooled Budgets,Leeds Community Equip Store Pooled Budgt,Supplies and Services,Other Equipment,203,04/01/2018,0118-00465,0.00,1081.95,R,Aidapt Bathrooms Ltd,No
Http://opendatacommunities.org/id/metropolitan-district-council/leeds,Leeds City Council as Accountable Body,31/01/2018,Social Services Pooled Budgets,Leeds Community Equip Store Pooled Budgt,Supplies and Services,Other Equipment,203,11/01/2018,0118-00466,0.00,1099.40,R,Aidapt Bathrooms Ltd,No
Http://opendatacommunities.org/id/metropolitan-district-council/leeds,Leeds City Council as Accountable Body,31/01/2018,Social Services Pooled Budgets,Leeds Community Equip Store Pooled Budgt,Supplies and Services,Other Equipment,203,12/01/2018,0118-00467,0.00,2770.10,R,Aidapt Bathrooms Ltd,No
Http://opendatacommunities.org/id/metropolitan-district-council/leeds,Leeds City Council,31/01/2018,Adults and Health,Services For Older People - 65 And Over,Premises,General Maintenance,104,16/01/2018,0118-00468,0.00,119.94,R,Aidapt Bathrooms Ltd,No
Http://opendatacommunities.org/id/metropolitan-district-council/leeds,Leeds City Council,31/01/2018,Adults and Health,Services For Older People - 65 And Over,Premises,General Maintenance,104,16/01/2018,0118-00469,0.00,119.94,R,Aidapt Bathrooms Ltd,No
Http://opendatacommunities.org/id/metropolitan-district-council/leeds,Leeds City Council,31/01/2018,Adults and Health,Services For Older People - 65 And Over,Premises,General Maintenance,104,16/01/2018,0118-00470,0.00,119.94,R,Aidapt Bathrooms Ltd,No
Http://opendatacommunities.org/id/metropolitan-district-council/leeds,Leeds City Council as Accountable Body,31/01/2018,Social Services Pooled Budgets,Leeds Community Equip Store Pooled Budgt,Supplies and Services,Other Equipment,203,17/01/2018,0118-00471,0.00,1099.40,R,Aidapt Bathrooms Ltd,No
Http://opendatacommunities.org/id/metropolitan-district-council/leeds,Leeds City Council as Accountable Body,31/01/2018,Social Services Pooled Budgets,Leeds Community Equip Store Pooled Budgt,Supplies and Services,Other Equipment,203,19/01/2018,0118-00472,0.00,386.85,R,Aidapt Bathrooms Ltd,No
Http://opendatacommunities.org/id/metropolitan-district-council/leeds,Leeds City Council as Accountable Body,31/01/2018,Social Services Pooled Budgets,Leeds Community Equip Store Pooled Budgt,Supplies and Services,Other Equipment,203,19/01/2018,0118-00473,0.00,2573.85,R,Aidapt Bathrooms Ltd,No
Http://opendatacommunities.org/id/metropolitan-district-council/leeds,Leeds City Council as Accountable Body,31/01/2018,Social Services Pooled Budgets,Leeds Community Equip Store Pooled Budgt,Supplies and Services,Other Equipment,203,19/01/2018,0118-00474,0.00,1529.40,R,Aidapt Bathrooms Ltd,No
Http://opendatacommunities.org/id/metropolitan-district-council/leeds,Leeds City Council,31/01/2018,Adults and Health,Services For Older People - 65 And Over,Premises,General Maintenance,104,19/01/2018,0118-00475,0.00,16.20,R,Aidapt Bathrooms Ltd,No
Http://opendatacommunities.org/id/metropolitan-district-council/leeds,Leeds City Council,31/01/2018,Adults and Health,Services For Older People - 65 And Over,Premises,General Maintenance,104,19/01/2018,0118-00476,0.00,16.20,R,Aidapt Bathrooms Ltd,No
Http://opendatacommunities.org/id/metropolitan-district-council/leeds,Leeds City Council,31/01/2018,Adults and Health,Services For Older People - 65 And Over,Premises,General Maintenance,104,19/01/2018,0118-00477,0.00,16.20,R,Aidapt Bathrooms Ltd,No
Http://opendatacommunities.org/id/metropolitan-district-council/leeds,Leeds City Council as Accountable Body,31/01/2018,Social Services Pooled Budgets,Leeds Community Equip Store Pooled Budgt,Supplies and Services,Other Equipment,203,29/01/2018,0118-00478,0.00,515.80,R,Aidapt Bathrooms Ltd,No
Http://opendatacommunities.org/id/metropolitan-district-council/leeds,Leeds City Council as Accountable Body,31/01/2018,Social Services Pooled Budgets,Leeds Community Equip Store Pooled Budgt,Supplies and Services,Other Equipment,203,29/01/2018,0118-00479,0.00,681.10,R,Aidapt Bathrooms Ltd,No
Http://opendatacommunities.org/id/metropolitan-district-council/leeds,Leeds City Council,31/01/2018,Adults and Health,Services For Older People - 65 And Over,Premises,General Maintenance,104,29/01/2018,0118-00480,0.00,37.30,R,Aidapt Bathrooms Ltd,No
Http://opendatacommunities.org/id/metropolitan-district-council/leeds,Leeds City Council,31/01/2018,Adults and Health,Services For Older People - 65 And Over,Premises,General Maintenance,104,29/01/2018,0118-00481,0.00,81.50,R,Aidapt Bathrooms Ltd,No
Http://opendatacommunities.org/id/metropolitan-district-council/leeds,Leeds City Council,31/01/2018,Adults and Health,Services For Older People - 65 And Over,Premises,General Maintenance,104,29/01/2018,0118-00482,0.00,37.30,R,Aidapt Bathrooms Ltd,No
Http://opendatacommunities.org/id/metropolitan-district-council/leeds,Leeds City Council,31/01/2018,Communities and Environment,Communities,Supplies and Services,'Well Being' Large Grants Projects,230,18/01/2018,0118-00483,0.00,8144.00,R,Aim Education Leeds Limited,No
Http://opendatacommunities.org/id/metropolitan-district-council/leeds,Leeds City Council,31/01/2018,Resources and Housing,Human Resources,Employees,Training & Development,70,05/01/2018,0118-00484,0.00,540.00,R,Aim Project,No
Http://opendatacommunities.org/id/metropolitan-district-council/leeds,Leeds City Council,31/01/2018,Children and Families,Safeguarding Targeted & Specialist,Employees,Training & Development,70,05/01/2018,0118-00485,0.00,270.00,R,Aim Project,No
Http://opendatacommunities.org/id/metropolitan-district-council/leeds,Leeds City Council,31/01/2018,Resources and Housing,Leeds Building Services,Supplies and Services,Operational Materials,205,17/01/2018,0118-00486,0.00,72.21,R,Air Conditioning Accessories,No
Http://opendatacommunities.org/id/metropolitan-district-council/leeds,Leeds City Council,31/01/2018,Resources and Housing,Leeds Building Services,Supplies and Services,Operational Materials,205,17/01/2018,0118-00487,0.00,14.78,R,Air Conditioning Accessories,No
Http://opendatacommunities.org/id/metropolitan-district-council/leeds,Leeds City Council,31/01/2018,Resources and Housing,Leeds Building Services,Supplies and Services,Operational Materials,205,17/01/2018,0118-00488,0.00,28.87,R,Air Conditioning Accessories,No
Http://opendatacommunities.org/id/metropolitan-district-council/leeds,Leeds City Council,31/01/2018,Resources and Housing,Leeds Building Services,Supplies and Services,Operational Materials,205,17/01/2018,0118-00489,0.00,47.97,R,Air Conditioning Accessories,No
Http://opendatacommunities.org/id/metropolitan-district-council/leeds,Leeds City Council,31/01/2018,Resources and Housing,Leeds Building Services,Supplies and Services,Operational Materials,205,17/01/2018,0118-00490,0.00,167.67,R,Air Conditioning Accessories,No
Http://opendatacommunities.org/id/metropolitan-district-council/leeds,Leeds City Council,31/01/2018,Resources and Housing,Leeds Building Services,Supplies and Services,Operational Materials,205,18/01/2018,0118-00491,0.00,18.66,R,Air Conditioning Accessories,No
Http://opendatacommunities.org/id/metropolitan-district-council/leeds,Leeds City Council,31/01/2018,Resources and Housing,Leeds Building Services,Supplies and Services,Operational Materials,205,18/01/2018,0118-00492,0.00,187.40,R,Air Conditioning Accessories,No
Http://opendatacommunities.org/id/metropolitan-district-council/leeds,Leeds City Council,31/01/2018,Resources and Housing,Leeds Building Services,Supplies and Services,Operational Materials,205,18/01/2018,0118-00493,0.00,14.49,R,Air Conditioning Accessories,No
Http://opendatacommunities.org/id/metropolitan-district-council/leeds,Leeds City Council,31/01/2018,Resources and Housing,Leeds Building Services,Supplies and Services,Operational Materials,205,18/01/2018,0118-00494,0.00,160.00,R,Air Conditioning Accessories,No
Http://opendatacommunities.org/id/metropolitan-district-council/leeds,Leeds City Council,31/01/2018,Resources and Housing,Leeds Building Services,Supplies and Services,Operational Materials,205,18/01/2018,0118-00495,0.00,19.19,R,Air Conditioning Accessories,No
Http://opendatacommunities.org/id/metropolitan-district-council/leeds,Leeds City Council,31/01/2018,Resources and Housing,Leeds Building Services,Supplies and Services,Operational Materials,205,18/01/2018,0118-00496,0.00,800.40,R,Air Conditioning Accessories,No
Http://opendatacommunities.org/id/metropolitan-district-council/leeds,Leeds City Council,31/01/2018,Resources and Housing,Leeds Building Services,Supplies and Services,Operational Materials,205,18/01/2018,0118-00497,0.00,33.00,R,Air Conditioning Accessories,No
Http://opendatacommunities.org/id/metropolitan-district-council/leeds,Leeds City Council,31/01/2018,Resources and Housing,Leeds Building Services,Supplies and Services,Operational Materials,205,18/01/2018,0118-00498,0.00,66.71,R,Air Conditioning Accessories,No
Http://opendatacommunities.org/id/metropolitan-district-council/leeds,Leeds City Council,31/01/2018,Resources and Housing,Leeds Building Services,Supplies and Services,Operational Materials,205,29/01/2018,0118-00499,0.00,25.54,R,Air Conditioning Accessories,No
Http://opendatacommunities.org/id/metropolitan-district-council/leeds,Leeds City Council,31/01/2018,Resources and Housing,Leeds Building Services,Supplies and Services,Operational Materials,205,29/01/2018,0118-00500,0.00,1030.75,R,Air Conditioning Accessories,No
Http://opendatacommunities.org/id/metropolitan-district-council/leeds,Leeds City Council,31/01/2018,Resources and Housing,Leeds Building Services,Supplies and Services,Operational Materials,205,29/01/2018,0118-00501,0.00,51.12,R,Air Conditioning Accessories,No
Http://opendatacommunities.org/id/metropolitan-district-council/leeds,Leeds City Council,31/01/2018,Communities and Environment,Environmental Health,#N/A,Other Hired And Contracted Services,265,11/01/2018,0118-00502,0.00,9.39,R,Air Liquide Uk,No
Http://opendatacommunities.org/id/metropolitan-district-council/leeds,Leeds City Council,31/01/2018,Communities and Environment,Environmental Health,#N/A,Other Hired And Contracted Services,265,11/01/2018,0118-00503,0.00,14.31,R,Air Liquide Uk,No
Http://opendatacommunities.org/id/metropolitan-district-council/leeds,Leeds City Council,31/01/2018,Communities and Environment,Environmental Health,#N/A,Other Hired And Contracted Services,265,11/01/2018,0118-00504,0.00,75.12,R,Air Liquide Uk,No
Http://opendatacommunities.org/id/metropolitan-district-council/leeds,Leeds City Council,31/01/2018,Communities and Environment,Environmental Health,#N/A,Other Hired And Contracted Services,265,16/01/2018,0118-00505,0.00,9.39,R,Air Liquide Uk,No
Http://opendatacommunities.org/id/metropolitan-district-council/leeds,Leeds City Council,31/01/2018,Communities and Environment,Environmental Health,#N/A,Other Hired And Contracted Services,265,16/01/2018,0118-00506,0.00,14.31,R,Air Liquide Uk,No
Http://opendatacommunities.org/id/metropolitan-district-council/leeds,Leeds City Council,31/01/2018,Communities and Environment,Environmental Health,#N/A,Other Hired And Contracted Services,265,16/01/2018,0118-00507,0.00,75.12,R,Air Liquide Uk,No
Http://opendatacommunities.org/id/metropolitan-district-council/leeds,Leeds City Council,31/01/2018,Resources and Housing,Leeds Building Services,Supplies and Services,Operational Materials,205,17/01/2018,0118-00508,0.00,203.40,R,Air Liquide Uk,No
Http://opendatacommunities.org/id/metropolitan-district-council/leeds,Leeds City Council,31/01/2018,Adults and Health,Services For Adults Under 65 Mental/Dis,Third Party Payments,Residential,580,10/01/2018,0118-00509,0.00,6028.00,R,Aire House,No
Http://opendatacommunities.org/id/metropolitan-district-council/leeds,Leeds City Council,31/01/2018,Adults and Health,Services For Older People - 65 And Over,Third Party Payments,Residential Care Dementia,571,10/01/2018,0118-00510,0.00,32985.96,R,Aire View Residential Home,No
Http://opendatacommunities.org/id/metropolitan-district-council/leeds,Leeds City Council,31/01/2018,Adults and Health,Services For Older People - 65 And Over,Third Party Payments,Residential,580,10/01/2018,0118-00511,0.00,22868.11,R,Aire View Residential Home,No
Http://opendatacommunities.org/id/metropolitan-district-council/leeds,Leeds City Council,31/01/2018,Adults and Health,Services For Older People - 65 And Over,Third Party Payments,Residential,580,10/01/2018,0118-00512,0.00,1940.98,R,Airedale (Goldsborough),No
Http://opendatacommunities.org/id/metropolitan-district-council/leeds,Leeds City Council,31/01/2018,Adults and Health,Services For Older People - 65 And Over,Third Party Payments,Residential Care Dementia,571,10/01/2018,0118-00513,0.00,3547.36,R,Airedale Care Home,No
Http://opendatacommunities.org/id/metropolitan-district-council/leeds,Leeds City Council,31/01/2018,Adults and Health,Services For Older People - 65 And Over,Third Party Payments,Residential,580,10/01/2018,0118-00514,0.00,22253.58,R,Airedale Care Home,No
Http://opendatacommunities.org/id/metropolitan-district-council/leeds,Leeds City Council,31/01/2018,Adults and Health,Assessment And Care Management,Employees,Training Costs,71,05/01/2018,0118-00515,0.00,150.00,R,Airedale Community Trading (Act) Ltd,No
Http://opendatacommunities.org/id/metropolitan-district-council/leeds,Leeds City Council as Accountable Body,31/01/2018,Social Services Pooled Budgets,Jcs For People With Learning Disabilitie,Third Party Payments,Residential,580,10/01/2018,0118-00516,0.00,6173.24,R,Aitch Care Homes,No
Http://opendatacommunities.org/id/metropolitan-district-council/leeds,Leeds City Council,31/01/2018,Resources and Housing,Commercial Services,#N/A,Other Hired And Contracted Services,265,22/01/2018,0118-00517,0.00,600.00,R,REDACTED PERSONAL DATA,No
Http://opendatacommunities.org/id/metropolitan-district-council/leeds,Leeds City Council,31/01/2018,Adults and Health,Services For Older People - 65 And Over,Third Party Payments,Home Care,568,08/01/2018,0118-00518,0.00,14.41,R,Aj Community Care Ltd,No
Http://opendatacommunities.org/id/metropolitan-district-council/leeds,Leeds City Council,31/01/2018,Adults and Health,Services For Older People - 65 And Over,Third Party Payments,Home Care,568,18/01/2018,0118-00519,0.00,5267.32,R,Aj Community Care Ltd,No
Http://opendatacommunities.org/id/metropolitan-district-council/leeds,Leeds City Council,31/01/2018,Adults and Health,Services For Older People - 65 And Over,Third Party Payments,Home Care,568,18/01/2018,0118-00520,0.00,14961.81,R,Aj Community Care Ltd,No
Http://opendatacommunities.org/id/metropolitan-district-council/leeds,Leeds City Council,31/01/2018,Adults and Health,Services For Older People Under 65 P/Dis,Third Party Payments,Home Care,568,18/01/2018,0118-00521,0.00,5423.22,R,Aj Community Care Ltd,No
Http://opendatacommunities.org/id/metropolitan-district-council/leeds,Leeds City Council,31/01/2018,Resources and Housing,Leeds Building Services,Supplies and Services,Operational Furniture And Equipment,203,09/01/2018,0118-00522,0.00,76.80,R,Ajm Fixings & Power Tools Ltd,No
Http://opendatacommunities.org/id/metropolitan-district-council/leeds,Leeds City Council,31/01/2018,Resources and Housing,Leeds Building Services,Supplies and Services,Operational Furniture And Equipment,203,09/01/2018,0118-00523,0.00,254.00,R,Ajm Fixings & Power Tools Ltd,No
Http://opendatacommunities.org/id/metropolitan-district-council/leeds,Leeds City Council,31/01/2018,Resources and Housing,Leeds Building Services,Supplies and Services,Operational Furniture And Equipment,203,09/01/2018,0118-00524,0.00,503.00,R,Ajm Fixings & Power Tools Ltd,No
Http://opendatacommunities.org/id/metropolitan-district-council/leeds,Leeds City Council,31/01/2018,Resources and Housing,Leeds Building Services,Supplies and Services,Operational Furniture And Equipment,203,29/01/2018,0118-00525,0.00,1265.99,R,Ajm Fixings & Power Tools Ltd,No
Http://opendatacommunities.org/id/metropolitan-district-council/leeds,Leeds City Council,31/01/2018,Resources and Housing,Leeds Building Services,Supplies and Services,Operational Furniture And Equipment,203,29/01/2018,0118-00526,0.00,517.27,R,Ajm Fixings & Power Tools Ltd,No
Http://opendatacommunities.org/id/metropolitan-district-council/leeds,Leeds City Council,31/01/2018,Resources and Housing,Leeds Building Services,Supplies and Services,Operational Furniture And Equipment,203,29/01/2018,0118-00527,0.00,3274.00,R,Ajm Fixings & Power Tools Ltd,No
Http://opendatacommunities.org/id/metropolitan-district-council/leeds,Leeds City Council,31/01/2018,Adults and Health,Services For Older People - 65 And Over,Third Party Payments,Nursing Home,570,10/01/2018,0118-00528,0.00,1247.60,R,Akari Care Ltd,No
Http://opendatacommunities.org/id/metropolitan-district-council/leeds,Leeds City Council,31/01/2018,Children and Families,Safeguarding Targeted & Specialist,Supplies and Services,General Amenity For Clients/Residents,285,18/01/2018,0118-00529,0.00,45.00,R,REDACTED PERSONAL DATA,No
Http://opendatacommunities.org/id/metropolitan-district-council/leeds,Leeds City Council,31/01/2018,Children and Families,Safeguarding Targeted & Specialist,Transport,Public Transport Expenses,310,18/01/2018,0118-00530,0.00,20.80,R,REDACTED PERSONAL DATA,No
Http://opendatacommunities.org/id/metropolitan-district-council/leeds,Leeds City Council,31/01/2018,Resources and Housing,Leeds Building Services,Supplies and Services,Operational Materials,205,29/01/2018,0118-00531,0.00,54.67,R,Akw Medicare Ltd,No
Http://opendatacommunities.org/id/metropolitan-district-council/leeds,Leeds City Council,31/01/2018,Resources and Housing,Leeds Building Services,Supplies and Services,Operational Materials,205,29/01/2018,0118-00532,0.00,54.67,R,Akw Medicare Ltd,No
Http://opendatacommunities.org/id/metropolitan-district-council/leeds,Leeds City Council,31/01/2018,City Development,Libraries  Arts & Heritage  ,Supplies and Services,Operational Materials,205,07/12/2017,0118-00533,0.00,40.42,R,Akzonobel,Yes
Http://opendatacommunities.org/id/metropolitan-district-council/leeds,Leeds City Council,31/01/2018,City Development,Economic Development,Supplies and Services,Publication And Promotion,267,16/01/2018,0118-00534,0.00,200.00,R,Alan Brown Flowers,No
Http://opendatacommunities.org/id/metropolitan-district-council/leeds,Leeds City Council,31/01/2018,City Development,Planning & Sustainable Development,Support Services,Legal Disbursements,411,16/01/2018,0118-00535,0.00,5000.00,R,Alan Evans,No
Http://opendatacommunities.org/id/metropolitan-district-council/leeds,Leeds City Council,31/01/2018,City Development,Libraries  Arts & Heritage,#N/A,Other Hired And Contracted Services,265,15/01/2018,0118-00536,0.00,200.00,R,Alan Horsey,No
Http://opendatacommunities.org/id/metropolitan-district-council/leeds,Leeds City Council,31/01/2018,City Development,Economic Development,#N/A,Other Hired And Contracted Services,265,03/01/2018,0118-00537,0.00,12210.00,R,Alcium Software Ltd,No
Http://opendatacommunities.org/id/metropolitan-district-council/leeds,Leeds City Council,31/01/2018,Communities and Environment,Communities,Supplies and Services,Computer Software & Equipment,214,22/01/2018,0118-00538,0.00,1075.00,R,Alcium Software Ltd,No
Http://opendatacommunities.org/id/metropolitan-district-council/leeds,Leeds City Council,31/01/2018,City Development,Recreation  ,Supplies and Services,Food & Drink,231,01/12/2017,0118-00539,0.00,3.96,R,Aldi 40 779,Yes
Http://opendatacommunities.org/id/metropolitan-district-council/leeds,Leeds City Council,31/01/2018,Children and Families,Safeguarding Targeted & Specialist  ,Transfer Payments,Leaving Care Allowances,634,11/12/2017,0118-00540,0.00,4.91,R,Aldi 40 779,Yes
Http://opendatacommunities.org/id/metropolitan-district-council/leeds,Leeds City Council,31/01/2018,Children and Families,Safeguarding Targeted & Specialist  ,Supplies and Services,Food & Drink,231,22/12/2017,0118-00541,0.00,57.70,R,Aldi 40 779,Yes
Http://opendatacommunities.org/id/metropolitan-district-council/leeds,Leeds City Council,31/01/2018,Children and Families,Safeguarding Targeted & Specialist  ,Supplies and Services,Food & Drink,231,23/12/2017,0118-00542,0.00,29.82,R,Aldi 40 779,Yes
Http://opendatacommunities.org/id/metropolitan-district-council/leeds,Leeds City Council,31/01/2018,Children and Families,Safeguarding Targeted & Specialist  ,Supplies and Services,Food & Drink,231,23/12/2017,0118-00543,0.00,67.53,R,Aldi 40 779,Yes
Http://opendatacommunities.org/id/metropolitan-district-council/leeds,Leeds City Council,31/01/2018,Children and Families,Safeguarding Targeted & Specialist  ,Supplies and Services,General Amenity For Clients/Residents,285,03/12/2017,0118-00544,0.00,44.93,R,Aldi 49 779,Yes
Http://opendatacommunities.org/id/metropolitan-district-council/leeds,Leeds City Council,31/01/2018,Children and Families,Partnerships  ,Supplies and Services,General Amenity For Clients/Residents,285,30/11/2017,0118-00545,0.00,16.66,R,Aldi 88 779,Yes
Http://opendatacommunities.org/id/metropolitan-district-council/leeds,Leeds City Council,31/01/2018,Children and Families,Safeguarding Targeted & Specialist,Support Services,Legal Disbursements,411,12/01/2018,0118-00546,0.00,23.75,R,Alere Toxicology Plc,No
Http://opendatacommunities.org/id/metropolitan-district-council/leeds,Leeds City Council,31/01/2018,Children and Families,Safeguarding Targeted & Specialist,Support Services,Legal Disbursements,411,12/01/2018,0118-00547,0.00,112.25,R,Alere Toxicology Plc,No
Http://opendatacommunities.org/id/metropolitan-district-council/leeds,Leeds City Council,31/01/2018,Children and Families,Safeguarding Targeted & Specialist,Support Services,Legal Disbursements,411,12/01/2018,0118-00548,0.00,147.95,R,Alere Toxicology Plc,No
Http://opendatacommunities.org/id/metropolitan-district-council/leeds,Leeds City Council,31/01/2018,Children and Families,Safeguarding Targeted & Specialist,Support Services,Legal Disbursements,411,12/01/2018,0118-00549,0.00,197.26,R,Alere Toxicology Plc,No
Http://opendatacommunities.org/id/metropolitan-district-council/leeds,Leeds City Council,31/01/2018,Children and Families,Safeguarding Targeted & Specialist,Support Services,Legal Disbursements,411,12/01/2018,0118-00550,0.00,222.32,R,Alere Toxicology Plc,No
Http://opendatacommunities.org/id/metropolitan-district-council/leeds,Leeds City Council,31/01/2018,Children and Families,Safeguarding Targeted & Specialist,Support Services,Legal Disbursements,411,16/01/2018,0118-00551,0.00,73.25,R,Alere Toxicology Plc,No
Http://opendatacommunities.org/id/metropolitan-district-council/leeds,Leeds City Council,31/01/2018,Children and Families,Safeguarding Targeted & Specialist,Support Services,Legal Disbursements,411,16/01/2018,0118-00552,0.00,190.90,R,Alere Toxicology Plc,No
Http://opendatacommunities.org/id/metropolitan-district-council/leeds,Leeds City Council,31/01/2018,Children and Families,Safeguarding Targeted & Specialist,Support Services,Legal Disbursements,411,19/01/2018,0118-00553,0.00,120.95,R,Alere Toxicology Plc,No
Http://opendatacommunities.org/id/metropolitan-district-council/leeds,Leeds City Council,31/01/2018,Children and Families,Safeguarding Targeted & Specialist,Support Services,Legal Disbursements,411,25/01/2018,0118-00554,0.00,1153.40,R,Alere Toxicology Plc,No
Http://opendatacommunities.org/id/metropolitan-district-council/leeds,Leeds City Council,31/01/2018,Resources and Housing,Legal Services,Support Services,Legal Disbursements,411,30/01/2018,0118-00555,0.00,31.68,R,Alere Toxicology Plc,No
Http://opendatacommunities.org/id/metropolitan-district-council/leeds,Leeds City Council,31/01/2018,Communities and Environment,Communities,#N/A,Other Hired And Contracted Services,265,08/01/2018,0118-00556,0.00,150.00,R,Alex Fisher,No
Http://opendatacommunities.org/id/metropolitan-district-council/leeds,Leeds City Council,31/01/2018,Children and Families,Safeguarding Targeted & Specialist,Support Services,Legal Disbursements,411,16/01/2018,0118-00557,0.00,361.00,R,Alex Taylor,No
Http://opendatacommunities.org/id/metropolitan-district-council/leeds,Leeds City Council,31/01/2018,Resources and Housing,Commercial Services,#N/A,Other Hired And Contracted Services,265,04/01/2018,0118-00558,0.00,120.00,R,Alex Wagg,No
Http://opendatacommunities.org/id/metropolitan-district-council/leeds,Leeds City Council,31/01/2018,Resources and Housing,Commercial Services,#N/A,Other Hired And Contracted Services,265,04/01/2018,0118-00559,0.00,60.00,R,Alex Wagg,No
Http://opendatacommunities.org/id/metropolitan-district-council/leeds,Leeds City Council,31/01/2018,Resources and Housing,Commercial Services,#N/A,Other Hired And Contracted Services,265,25/01/2018,0118-00560,0.00,152.50,R,Alex Wagg,No
Http://opendatacommunities.org/id/metropolitan-district-council/leeds,Leeds City Council,31/01/2018,Resources and Housing,Commercial Services,#N/A,Other Hired And Contracted Services,265,25/01/2018,0118-00561,0.00,60.00,R,Alex Wagg,No
Http://opendatacommunities.org/id/metropolitan-district-council/leeds,Leeds City Council,31/01/2018,Resources and Housing,Commercial Services,Transport,Vehicle Spares,345,25/01/2018,0118-00562,0.00,390.00,R,Alex Wagg,No
Http://opendatacommunities.org/id/metropolitan-district-council/leeds,Leeds City Council,31/01/2018,Adults and Health,Services For Older People - 65 And Over,Third Party Payments,Residential Care Dementia,571,10/01/2018,0118-00563,0.00,25625.22,R,Alexander Residential Home,No
Http://opendatacommunities.org/id/metropolitan-district-council/leeds,Leeds City Council,31/01/2018,Adults and Health,Services For Older People - 65 And Over,Third Party Payments,Residential,580,10/01/2018,0118-00564,0.00,19821.68,R,Alexander Residential Home,No
Http://opendatacommunities.org/id/metropolitan-district-council/leeds,Leeds City Council,31/01/2018,Adults and Health,Services For Older People - 65 And Over,Third Party Payments,Residential Care Dementia,571,10/01/2018,0118-00565,0.00,1577.96,R,Alexandra Court,No
Http://opendatacommunities.org/id/metropolitan-district-council/leeds,Leeds City Council,31/01/2018,Adults and Health,Services For Older People - 65 And Over,Third Party Payments,Residential,580,10/01/2018,0118-00566,0.00,10425.01,R,Alexandra Court,No
Http://opendatacommunities.org/id/metropolitan-district-council/leeds,Leeds City Council,31/01/2018,Children and Families,Safeguarding Targeted & Specialist,Third Party Payments,Services Rendered By Other Organisations,511,15/01/2018,0118-00567,0.00,1999.80,R,REDACTED PERSONAL DATA,No
Http://opendatacommunities.org/id/metropolitan-district-council/leeds,Leeds City Council,31/01/2018,Children and Families,Safeguarding Targeted & Specialist,Third Party Payments,Services Rendered By Other Organisations,511,17/01/2018,0118-00568,0.00,554.40,R,REDACTED PERSONAL DATA,No
Http://opendatacommunities.org/id/metropolitan-district-council/leeds,Leeds City Council,31/01/2018,Resources and Housing,Corporate Property Management,Capital,Construction,3,05/01/2018,0118-00569,0.00,3150.00,C,Alfred Bagnall & Sons (Leeds) Ltd,No
Http://opendatacommunities.org/id/metropolitan-district-council/leeds,Leeds City Council,31/01/2018,Resources and Housing,Corporate Property Management,Capital,Construction,3,05/01/2018,0118-00570,0.00,8925.00,C,Alfred Bagnall & Sons (Leeds) Ltd,No
Http://opendatacommunities.org/id/metropolitan-district-council/leeds,Leeds City Council,31/01/2018,Resources and Housing,Corporate Property Management,Capital,Construction,3,05/01/2018,0118-00571,0.00,8250.00,C,Alfred Bagnall & Sons (Leeds) Ltd,No
Http://opendatacommunities.org/id/metropolitan-district-council/leeds,Leeds City Council,31/01/2018,Resources and Housing,Corporate Property Management,Capital,Construction,3,05/01/2018,0118-00572,0.00,5350.00,C,Alfred Bagnall & Sons (Leeds) Ltd,No
Http://opendatacommunities.org/id/metropolitan-district-council/leeds,Leeds City Council,31/01/2018,Resources and Housing,Corporate Property Management,Capital,Construction,3,05/01/2018,0118-00573,0.00,6620.00,C,Alfred Bagnall & Sons (Leeds) Ltd,No
Http://opendatacommunities.org/id/metropolitan-district-council/leeds,Leeds City Council,31/01/2018,Resources and Housing,Corporate Property Management,Capital,Construction,3,05/01/2018,0118-00574,0.00,5480.00,C,Alfred Bagnall & Sons (Leeds) Ltd,No
Http://opendatacommunities.org/id/metropolitan-district-council/leeds,Leeds City Council,31/01/2018,Resources and Housing,Corporate Property Management,Capital,Construction,3,05/01/2018,0118-00575,0.00,8195.00,C,Alfred Bagnall & Sons (Leeds) Ltd,No
Http://opendatacommunities.org/id/metropolitan-district-council/leeds,Leeds City Council,31/01/2018,Resources and Housing,Leeds Building Services,#N/A,Other Hired And Contracted Services,265,05/01/2018,0118-00576,0.00,887.52,R,Alfred Bagnall & Sons (Leeds) Ltd,No
Http://opendatacommunities.org/id/metropolitan-district-council/leeds,Leeds City Council,31/01/2018,Resources and Housing,Legal Services,Support Services,Legal Disbursements,411,16/01/2018,0118-00577,0.00,1700.00,R,Alfred Bagnall & Sons (Leeds) Ltd,No
Http://opendatacommunities.org/id/metropolitan-district-council/leeds,Leeds City Council,31/01/2018,Resources and Housing,Leeds Building Services,#N/A,Other Hired And Contracted Services,265,25/01/2018,0118-00578,0.00,386.00,R,Alfred Bagnall & Sons (Leeds) Ltd,No
Http://opendatacommunities.org/id/metropolitan-district-council/leeds,Leeds City Council,31/01/2018,Resources and Housing,Leeds Building Services,#N/A,Other Hired And Contracted Services,265,30/01/2018,0118-00579,0.00,7250.00,R,Alfred Bagnall & Sons (Leeds) Ltd,No
Http://opendatacommunities.org/id/metropolitan-district-council/leeds,Leeds City Council,31/01/2018,Resources and Housing,Leeds Building Services,#N/A,Other Hired And Contracted Services,265,30/01/2018,0118-00580,0.00,220.00,R,Alfred Bagnall & Sons (Leeds) Ltd,No
Http://opendatacommunities.org/id/metropolitan-district-council/leeds,Leeds City Council,31/01/2018,Communities and Environment,Parks and Countryside,Premises,Roads Paths Seats & Shelters,113,31/01/2018,0118-00581,0.00,7120.00,R,Alfred Bagnall & Sons (Leeds) Ltd,No
Http://opendatacommunities.org/id/metropolitan-district-council/leeds,Leeds City Council,31/01/2018,Children and Families,Partnerships,Employees,Training & Development,70,16/01/2018,0118-00582,0.00,1416.64,R,REDACTED PERSONAL DATA,No
Http://opendatacommunities.org/id/metropolitan-district-council/leeds,Leeds City Council,31/01/2018,City Development,Libraries  Arts & Heritage,Supplies and Services,Bought In Professional Services,277,05/01/2018,0118-00583,0.00,1250.00,R,Alice Withers,No
Http://opendatacommunities.org/id/metropolitan-district-council/leeds,Leeds City Council,31/01/2018,City Development,Libraries  Arts & Heritage,Supplies and Services,Bought In Professional Services,277,05/01/2018,0118-00584,0.00,1550.00,R,Alice Withers,No
Http://opendatacommunities.org/id/metropolitan-district-council/leeds,Leeds City Council,31/01/2018,Children and Families,Safeguarding Targeted & Specialist,Third Party Payments,Services Rendered By Other Organisations,511,15/01/2018,0118-00585,0.00,577.72,R,REDACTED PERSONAL DATA,No
Http://opendatacommunities.org/id/metropolitan-district-council/leeds,Leeds City Council,31/01/2018,Children and Families,Safeguarding Targeted & Specialist,Third Party Payments,Services Rendered By Other Organisations,511,15/01/2018,0118-00586,0.00,666.60,R,REDACTED PERSONAL DATA,No
Http://opendatacommunities.org/id/metropolitan-district-council/leeds,Leeds City Council,31/01/2018,Children and Families,Safeguarding Targeted & Specialist,Third Party Payments,Services Rendered By Other Organisations,511,17/01/2018,0118-00587,0.00,2217.60,R,REDACTED PERSONAL DATA,No
Http://opendatacommunities.org/id/metropolitan-district-council/leeds,Leeds City Council,31/01/2018,City Development,Libraries  Arts & Heritage,Supplies and Services,Bought In Professional Services,277,11/01/2018,0118-00588,0.00,84.12,R,Alison Mcintyre,No
Http://opendatacommunities.org/id/metropolitan-district-council/leeds,Leeds City Council,31/01/2018,City Development,Libraries  Arts & Heritage,Supplies and Services,Non-Recurring Grants,227,23/01/2018,0118-00589,0.00,8550.00,R,Alison Mcintyre,No
Http://opendatacommunities.org/id/metropolitan-district-council/leeds,Leeds City Council,31/01/2018,City Development,Economic Development,Supplies and Services,Publication And Promotion,267,22/01/2018,0118-00590,0.00,800.00,R,Alive And Kicking Theatre Company Ltd,No
Http://opendatacommunities.org/id/metropolitan-district-council/leeds,Leeds City Council,31/01/2018,City Development,Economic Development,Supplies and Services,Publication And Promotion,267,22/01/2018,0118-00591,0.00,400.00,R,Alive And Kicking Theatre Company Ltd,No
Http://opendatacommunities.org/id/metropolitan-district-council/leeds,Leeds City Council,31/01/2018,City Development,Economic Development,Supplies and Services,Publication And Promotion,267,22/01/2018,0118-00592,0.00,400.00,R,Alive And Kicking Theatre Company Ltd,No
Http://opendatacommunities.org/id/metropolitan-district-council/leeds,Leeds City Council,31/01/2018,Children and Families,Safeguarding Targeted & Specialist,Third Party Payments,Placement Support,550,17/01/2018,0118-00593,0.00,470.00,R,All Abode,No
Http://opendatacommunities.org/id/metropolitan-district-council/leeds,Leeds City Council,31/01/2018,Children and Families,Safeguarding Targeted & Specialist,Third Party Payments,Placement Support,550,23/01/2018,0118-00594,0.00,250.00,R,All Abode,No
Http://opendatacommunities.org/id/metropolitan-district-council/leeds,Leeds City Council,31/01/2018,Resources and Housing,Leeds Building Services,#N/A,Other Hired And Contracted Services,265,25/01/2018,0118-00595,0.00,195.00,R,All Clear Solutions Ltd,No
Http://opendatacommunities.org/id/metropolitan-district-council/leeds,Leeds City Council,31/01/2018,Resources and Housing,Leeds Building Services,#N/A,Other Hired And Contracted Services,265,29/01/2018,0118-00596,0.00,250.00,R,All Clear Solutions Ltd,No
Http://opendatacommunities.org/id/metropolitan-district-council/leeds,Leeds City Council,31/01/2018,Resources and Housing,Leeds Building Services,#N/A,Other Hired And Contracted Services,265,30/01/2018,0118-00597,0.00,195.00,R,All Clear Solutions Ltd,No
Http://opendatacommunities.org/id/metropolitan-district-council/leeds,Leeds City Council,31/01/2018,Resources and Housing,Leeds Building Services,#N/A,Other Hired And Contracted Services,265,30/01/2018,0118-00598,0.00,195.00,R,All Clear Solutions Ltd,No
Http://opendatacommunities.org/id/metropolitan-district-council/leeds,Leeds City Council,31/01/2018,Resources and Housing,Leeds Building Services,#N/A,Other Hired And Contracted Services,265,30/01/2018,0118-00599,0.00,195.00,R,All Clear Solutions Ltd,No
Http://opendatacommunities.org/id/metropolitan-district-council/leeds,Leeds City Council,31/01/2018,Resources and Housing,Leeds Building Services,#N/A,Other Hired And Contracted Services,265,30/01/2018,0118-00600,0.00,195.00,R,All Clear Solutions Ltd,No
Http://opendatacommunities.org/id/metropolitan-district-council/leeds,Leeds City Council,31/01/2018,Resources and Housing,Leeds Building Services,#N/A,Other Hired And Contracted Services,265,30/01/2018,0118-00601,0.00,195.00,R,All Clear Solutions Ltd,No
Http://opendatacommunities.org/id/metropolitan-district-council/leeds,Leeds City Council,31/01/2018,City Development,Libraries  Arts & Heritage  ,Supplies and Services,Other Hired And Contracted Services,265,10/12/2017,0118-00602,0.00,70.80,R,All Service 4 U,Yes
Http://opendatacommunities.org/id/metropolitan-district-council/leeds,Leeds City Council,31/01/2018,Children and Families,Safeguarding Targeted & Specialist,Third Party Payments,Services Rendered By Other Organisations,511,15/01/2018,0118-00603,0.00,3333.00,R,All Stars Childcare,No
Http://opendatacommunities.org/id/metropolitan-district-council/leeds,Leeds City Council,31/01/2018,Children and Families,Safeguarding Targeted & Specialist,Third Party Payments,Services Rendered By Other Organisations,511,17/01/2018,0118-00604,0.00,20590.08,R,All Stars Childcare,No
Http://opendatacommunities.org/id/metropolitan-district-council/leeds,Leeds City Council,31/01/2018,Children and Families,Safeguarding Targeted & Specialist,Third Party Payments,Services Rendered By Voluntary Sector,505,22/01/2018,0118-00605,0.00,3024.00,R,All Stars Childcare,No
Http://opendatacommunities.org/id/metropolitan-district-council/leeds,Leeds City Council,31/01/2018,Communities and Environment,Elections  Licensing and Registration,Support Services,Legal Disbursements,411,11/01/2018,0118-00606,0.00,1750.00,R,Allan Armbrister,No
Http://opendatacommunities.org/id/metropolitan-district-council/leeds,Leeds City Council as Accountable Body,31/01/2018,Social Services Pooled Budgets,Jcs For People With Learning Disabilitie,Third Party Payments,Sheltered Accommodation,569,10/01/2018,0118-00607,0.00,26971.75,R,Allerton Avenue,No
Http://opendatacommunities.org/id/metropolitan-district-council/leeds,Leeds City Council,31/01/2018,Children and Families,Learning Skills & Universal,#N/A,Other Hired And Contracted Services,265,16/01/2018,0118-00608,0.00,453.00,R,Allerton Bywater Primary School,No
Http://opendatacommunities.org/id/metropolitan-district-council/leeds,Leeds City Council,31/01/2018,Communities and Environment,Parks and Countryside,Supplies and Services,Operational Materials,205,10/01/2018,0118-00609,0.00,6.00,R,Allflex Uk Group Ltd,No
Http://opendatacommunities.org/id/metropolitan-district-council/leeds,Leeds City Council,31/01/2018,Communities and Environment,Parks and Countryside,Supplies and Services,Operational Materials,205,16/01/2018,0118-00610,0.00,98.34,R,Allflex Uk Group Ltd,No
Http://opendatacommunities.org/id/metropolitan-district-council/leeds,Leeds City Council,31/01/2018,Resources and Housing,Finance,#N/A,Bank Charges,263,02/01/2018,0118-00611,0.00,-121.31,R,Alliance & Leicester Commercial Bank,No
Http://opendatacommunities.org/id/metropolitan-district-council/leeds,Leeds City Council,31/01/2018,Resources and Housing,Finance,#N/A,Bank Charges,263,04/01/2018,0118-00612,0.00,650.21,R,Alliance & Leicester Commercial Bank,No
Http://opendatacommunities.org/id/metropolitan-district-council/leeds,Leeds City Council,31/01/2018,Resources and Housing,Finance,#N/A,Bank Charges,263,04/01/2018,0118-00613,0.00,100.00,R,Alliance & Leicester Commercial Bank,No
Http://opendatacommunities.org/id/metropolitan-district-council/leeds,Leeds City Council,31/01/2018,City Development,Highways,#N/A,Other Hired And Contracted Services,265,05/01/2018,0118-00614,0.00,2107.50,R,Allied Exploration & Geotechnics Ltd,No
Http://opendatacommunities.org/id/metropolitan-district-council/leeds,Leeds City Council,31/01/2018,City Development,Highways,#N/A,Other Hired And Contracted Services,265,05/01/2018,0118-00615,0.00,3974.74,R,Allied Exploration & Geotechnics Ltd,No
Http://opendatacommunities.org/id/metropolitan-district-council/leeds,Leeds City Council,31/01/2018,City Development,Highways,#N/A,Other Hired And Contracted Services,265,16/01/2018,0118-00616,0.00,805.00,R,Allied Exploration & Geotechnics Ltd,No
Http://opendatacommunities.org/id/metropolitan-district-council/leeds,Leeds City Council,31/01/2018,City Development,Highways,Capital,Other Costs,7,18/01/2018,0118-00617,0.00,1376.70,C,Allied Exploration & Geotechnics Ltd,No
Http://opendatacommunities.org/id/metropolitan-district-council/leeds,Leeds City Council as Accountable Body,31/01/2018,Social Services Pooled Budgets,Jcs For People With Learning Disabilitie,Third Party Payments,Home Care,568,10/01/2018,0118-00618,0.00,725.32,R,Allied Healthcare,No
Http://opendatacommunities.org/id/metropolitan-district-council/leeds,Leeds City Council as Accountable Body,31/01/2018,Social Services Pooled Budgets,Jcs For People With Learning Disabilitie,Third Party Payments,Home Care,568,10/01/2018,0118-00619,0.00,177.92,R,Allied Healthcare,No
Http://opendatacommunities.org/id/metropolitan-district-council/leeds,Leeds City Council as Accountable Body,31/01/2018,Social Services Pooled Budgets,Jcs For People With Learning Disabilitie,Third Party Payments,Home Care,568,17/01/2018,0118-00620,0.00,-116.42,R,Allied Healthcare,No
Http://opendatacommunities.org/id/metropolitan-district-council/leeds,Leeds City Council as Accountable Body,31/01/2018,Social Services Pooled Budgets,Jcs For People With Learning Disabilitie,Third Party Payments,Home Care,568,17/01/2018,0118-00621,0.00,15570.39,R,Allied Healthcare,No
Http://opendatacommunities.org/id/metropolitan-district-council/leeds,Leeds City Council as Accountable Body,31/01/2018,Social Services Pooled Budgets,Jcs For People With Learning Disabilitie,Third Party Payments,Home Care,568,18/01/2018,0118-00622,0.00,1050.56,R,Allied Healthcare,No
Http://opendatacommunities.org/id/metropolitan-district-council/leeds,Leeds City Council as Accountable Body,31/01/2018,Social Services Pooled Budgets,Jcs For People With Learning Disabilitie,Third Party Payments,Home Care,568,19/01/2018,0118-00623,0.00,15004.92,R,Allied Healthcare,No
Http://opendatacommunities.org/id/metropolitan-district-council/leeds,Leeds City Council,31/01/2018,Children and Families,Partnerships,Third Party Payments,Services Rendered By Voluntary Sector,505,24/01/2018,0118-00624,0.00,684.00,R,Allied Healthcare,No
Http://opendatacommunities.org/id/metropolitan-district-council/leeds,Leeds City Council,31/01/2018,Adults and Health,Other Generic Services,Third Party Payments,Home Care,568,26/01/2018,0118-00625,0.00,8203.60,R,Allied Healthcare,No
Http://opendatacommunities.org/id/metropolitan-district-council/leeds,Leeds City Council,31/01/2018,Adults and Health,Other Generic Services,Third Party Payments,Home Care,568,26/01/2018,0118-00626,0.00,136.50,R,Allied Healthcare,No
Http://opendatacommunities.org/id/metropolitan-district-council/leeds,Leeds City Council,31/01/2018,Adults and Health,Other Generic Services,Third Party Payments,Home Care,568,26/01/2018,0118-00627,0.00,109.20,R,Allied Healthcare,No
Http://opendatacommunities.org/id/metropolitan-district-council/leeds,Leeds City Council,31/01/2018,Adults and Health,Other Generic Services,Third Party Payments,Home Care,568,26/01/2018,0118-00628,0.00,-95.55,R,Allied Healthcare,No
Http://opendatacommunities.org/id/metropolitan-district-council/leeds,Leeds City Council,31/01/2018,Adults and Health,Services For Older People - 65 And Over,Third Party Payments,Home Care,568,26/01/2018,0118-00629,0.00,30624.45,R,Allied Healthcare,No
Http://opendatacommunities.org/id/metropolitan-district-council/leeds,Leeds City Council,31/01/2018,Adults and Health,Services For Older People Under 65 P/Dis,Third Party Payments,Home Care,568,26/01/2018,0118-00630,0.00,15218.58,R,Allied Healthcare,No
Http://opendatacommunities.org/id/metropolitan-district-council/leeds,Leeds City Council,31/01/2018,Adults and Health,Other Generic Services,Third Party Payments,Home Care,568,31/01/2018,0118-00631,0.00,19087.77,R,Allied Healthcare,No
Http://opendatacommunities.org/id/metropolitan-district-council/leeds,Leeds City Council,31/01/2018,Strategic Landlord,Housing Management,#N/A,Other Hired And Contracted Services,265,04/01/2018,0118-00632,0.00,14.31,R,Allpay Limted,No
Http://opendatacommunities.org/id/metropolitan-district-council/leeds,Leeds City Council,31/01/2018,Strategic Landlord,Housing Management,#N/A,Other Hired And Contracted Services,265,04/01/2018,0118-00633,0.00,368.22,R,Allpay Limted,No
Http://opendatacommunities.org/id/metropolitan-district-council/leeds,Leeds City Council,31/01/2018,Strategic Landlord,Housing Management,#N/A,Other Hired And Contracted Services,265,04/01/2018,0118-00634,0.00,0.25,R,Allpay Limted,No
Http://opendatacommunities.org/id/metropolitan-district-council/leeds,Leeds City Council,31/01/2018,Resources and Housing,Finance,#N/A,Bank Charges,263,09/01/2018,0118-00635,0.00,10490.05,R,Allpay Limted,No
Http://opendatacommunities.org/id/metropolitan-district-council/leeds,Leeds City Council,31/01/2018,Resources and Housing,Finance,#N/A,Bank Charges,263,09/01/2018,0118-00636,0.00,6095.10,R,Allpay Limted,No
Http://opendatacommunities.org/id/metropolitan-district-council/leeds,Leeds City Council,31/01/2018,Resources and Housing,Finance,#N/A,Bank Charges,263,09/01/2018,0118-00637,0.00,395.36,R,Allpay Limted,No
Http://opendatacommunities.org/id/metropolitan-district-council/leeds,Leeds City Council,31/01/2018,Resources and Housing,Finance,#N/A,Bank Charges,263,09/01/2018,0118-00638,0.00,89.59,R,Allpay Limted,No
Http://opendatacommunities.org/id/metropolitan-district-council/leeds,Leeds City Council,31/01/2018,Resources and Housing,Finance,#N/A,Bank Charges,263,09/01/2018,0118-00639,0.00,2381.62,R,Allpay Limted,No
Http://opendatacommunities.org/id/metropolitan-district-council/leeds,Leeds City Council,31/01/2018,Resources and Housing,Finance,#N/A,Bank Charges,263,09/01/2018,0118-00640,0.00,3.63,R,Allpay Limted,No
Http://opendatacommunities.org/id/metropolitan-district-council/leeds,Leeds City Council,31/01/2018,Children and Families,Safeguarding Targeted & Specialist  ,Supplies and Services,Other Hired And Contracted Services,265,06/12/2017,0118-00641,0.00,60.00,R,Allpay Moto (Callpay/I,Yes
Http://opendatacommunities.org/id/metropolitan-district-council/leeds,Leeds City Council,31/01/2018,Resources and Housing,Strategic Housing Partnership & Support  ,Supplies and Services,Other Hired And Contracted Services,265,06/12/2017,0118-00642,0.00,87.71,R,Allpay Moto (Callpay/I,Yes
Http://opendatacommunities.org/id/metropolitan-district-council/leeds,Leeds City Council,31/01/2018,Resources and Housing,Democratic Services,Transport,Fuel (Non LCC Supplies),321,08/01/2018,0118-00643,0.00,353.55,R,Allstar Business Solutions Ltd,No
Http://opendatacommunities.org/id/metropolitan-district-council/leeds,Leeds City Council,31/01/2018,Children and Families,Learning Skills & Universal,Transport,Fuel (Non LCC Supplies),321,08/01/2018,0118-00644,0.00,1302.80,R,Allstar Business Solutions Ltd,No
Http://opendatacommunities.org/id/metropolitan-district-council/leeds,Leeds City Council,31/01/2018,Communities and Environment,Parks and Countryside,Transport,Fuel (Non LCC Supplies),321,08/01/2018,0118-00645,0.00,34.76,R,Allstar Business Solutions Ltd,No
Http://opendatacommunities.org/id/metropolitan-district-council/leeds,Leeds City Council,31/01/2018,City Development,Highways,Transport,Fuel (Non LCC Supplies),321,08/01/2018,0118-00646,0.00,329.85,R,Allstar Business Solutions Ltd,No
Http://opendatacommunities.org/id/metropolitan-district-council/leeds,Leeds City Council,31/01/2018,Resources and Housing,Leeds Building Services,Transport,Fuel (Non LCC Supplies),321,12/01/2018,0118-00647,0.00,20.45,R,Allstar Business Solutions Ltd,No
Http://opendatacommunities.org/id/metropolitan-district-council/leeds,Leeds City Council,31/01/2018,Resources and Housing,Leeds Building Services,Transport,Fuel (Non LCC Supplies),321,29/01/2018,0118-00648,0.00,16.15,R,Allstar Business Solutions Ltd,No
Http://opendatacommunities.org/id/metropolitan-district-council/leeds,Leeds City Council,31/01/2018,Children and Families,Safeguarding Targeted & Specialist  ,Supplies and Services,Subsistence,256,21/12/2017,0118-00649,0.00,20.00,R,Alp Chalet,Yes
Http://opendatacommunities.org/id/metropolitan-district-council/leeds,Leeds City Council,31/01/2018,Resources and Housing,Shared Services,#N/A,Other Hired And Contracted Services,265,26/01/2018,0118-00650,0.00,1434.00,R,Alpha Card Compact Media Ltd,No
Http://opendatacommunities.org/id/metropolitan-district-council/leeds,Leeds City Council,31/01/2018,Communities and Environment,Parks and Countryside,Supplies and Services,Operational Materials,205,11/01/2018,0118-00651,0.00,185.00,R,Alpha Rail Limited,No
Http://opendatacommunities.org/id/metropolitan-district-council/leeds,Leeds City Council,31/01/2018,Children and Families,Safeguarding Targeted & Specialist,Support Services,Legal Disbursements,411,09/01/2018,0118-00652,0.00,113.75,R,Alphabiolabs,No
Http://opendatacommunities.org/id/metropolitan-district-council/leeds,Leeds City Council,31/01/2018,Children and Families,Safeguarding Targeted & Specialist,Support Services,Legal Disbursements,411,09/01/2018,0118-00653,0.00,231.80,R,Alphabiolabs,No
Http://opendatacommunities.org/id/metropolitan-district-council/leeds,Leeds City Council,31/01/2018,Children and Families,Safeguarding Targeted & Specialist,Support Services,Legal Disbursements,411,09/01/2018,0118-00654,0.00,499.75,R,Alphabiolabs,No
Http://opendatacommunities.org/id/metropolitan-district-council/leeds,Leeds City Council,31/01/2018,Children and Families,Safeguarding Targeted & Specialist,Support Services,Legal Disbursements,411,09/01/2018,0118-00655,0.00,199.75,R,Alphabiolabs,No
Http://opendatacommunities.org/id/metropolitan-district-council/leeds,Leeds City Council,31/01/2018,Children and Families,Safeguarding Targeted & Specialist,Support Services,Legal Disbursements,411,09/01/2018,0118-00656,0.00,178.75,R,Alphabiolabs,No
Http://opendatacommunities.org/id/metropolitan-district-council/leeds,Leeds City Council,31/01/2018,Children and Families,Safeguarding Targeted & Specialist,Support Services,Legal Disbursements,411,09/01/2018,0118-00657,0.00,291.25,R,Alphabiolabs,No
Http://opendatacommunities.org/id/metropolitan-district-council/leeds,Leeds City Council,31/01/2018,Children and Families,Safeguarding Targeted & Specialist,Support Services,Legal Disbursements,411,12/01/2018,0118-00658,0.00,99.75,R,Alphabiolabs,No
Http://opendatacommunities.org/id/metropolitan-district-council/leeds,Leeds City Council,31/01/2018,Children and Families,Safeguarding Targeted & Specialist,Support Services,Legal Disbursements,411,12/01/2018,0118-00659,0.00,66.88,R,Alphabiolabs,No
Http://opendatacommunities.org/id/metropolitan-district-council/leeds,Leeds City Council,31/01/2018,Children and Families,Safeguarding Targeted & Specialist,Support Services,Legal Disbursements,411,12/01/2018,0118-00660,0.00,349.00,R,Alphabiolabs,No
Http://opendatacommunities.org/id/metropolitan-district-council/leeds,Leeds City Council,31/01/2018,Children and Families,Safeguarding Targeted & Specialist,Support Services,Legal Disbursements,411,12/01/2018,0118-00661,0.00,100.63,R,Alphabiolabs,No
Http://opendatacommunities.org/id/metropolitan-district-council/leeds,Leeds City Council,31/01/2018,Children and Families,Safeguarding Targeted & Specialist,Support Services,Legal Disbursements,411,12/01/2018,0118-00662,0.00,100.63,R,Alphabiolabs,No
Http://opendatacommunities.org/id/metropolitan-district-council/leeds,Leeds City Council,31/01/2018,Children and Families,Safeguarding Targeted & Specialist,Support Services,Legal Disbursements,411,12/01/2018,0118-00663,0.00,125.00,R,Alphabiolabs,No
Http://opendatacommunities.org/id/metropolitan-district-council/leeds,Leeds City Council,31/01/2018,Children and Families,Safeguarding Targeted & Specialist,Support Services,Legal Disbursements,411,16/01/2018,0118-00664,0.00,133.01,R,Alphabiolabs,No
Http://opendatacommunities.org/id/metropolitan-district-council/leeds,Leeds City Council,31/01/2018,Children and Families,Safeguarding Targeted & Specialist,Support Services,Legal Disbursements,411,16/01/2018,0118-00665,0.00,212.88,R,Alphabiolabs,No
Http://opendatacommunities.org/id/metropolitan-district-council/leeds,Leeds City Council,31/01/2018,Children and Families,Safeguarding Targeted & Specialist,Support Services,Legal Disbursements,411,18/01/2018,0118-00666,0.00,1030.00,R,Alphabiolabs,No
Http://opendatacommunities.org/id/metropolitan-district-council/leeds,Leeds City Council,31/01/2018,Children and Families,Safeguarding Targeted & Specialist,Support Services,Legal Disbursements,411,18/01/2018,0118-00667,0.00,131.67,R,Alphabiolabs,No
Http://opendatacommunities.org/id/metropolitan-district-council/leeds,Leeds City Council,31/01/2018,Children and Families,Safeguarding Targeted & Specialist,Support Services,Legal Disbursements,411,22/01/2018,0118-00668,0.00,243.00,R,Alphabiolabs,No
Http://opendatacommunities.org/id/metropolitan-district-council/leeds,Leeds City Council,31/01/2018,Children and Families,Safeguarding Targeted & Specialist,Support Services,Legal Disbursements,411,22/01/2018,0118-00669,0.00,100.63,R,Alphabiolabs,No
Http://opendatacommunities.org/id/metropolitan-district-council/leeds,Leeds City Council,31/01/2018,City Development,Libraries  Arts & Heritage,#N/A,Other Hired And Contracted Services,265,24/01/2018,0118-00670,0.00,631.46,R,Altitude Film Distribution Limited,No
Http://opendatacommunities.org/id/metropolitan-district-council/leeds,Leeds City Council,31/01/2018,City Development,Libraries  Arts & Heritage,#N/A,Other Hired And Contracted Services,265,24/01/2018,0118-00671,0.00,1597.34,R,Altitude Film Distribution Limited,No
Http://opendatacommunities.org/id/metropolitan-district-council/leeds,Leeds City Council,31/01/2018,City Development,Libraries  Arts & Heritage,#N/A,Other Hired And Contracted Services,265,24/01/2018,0118-00672,0.00,728.96,R,Altitude Film Distribution Limited,No
Http://opendatacommunities.org/id/metropolitan-district-council/leeds,Leeds City Council,31/01/2018,City Development,Libraries  Arts & Heritage,#N/A,Other Hired And Contracted Services,265,24/01/2018,0118-00673,0.00,231.25,R,Altitude Film Distribution Limited,No
Http://opendatacommunities.org/id/metropolitan-district-council/leeds,Leeds City Council,31/01/2018,City Development,Libraries  Arts & Heritage,#N/A,Other Hired And Contracted Services,265,24/01/2018,0118-00674,0.00,220.21,R,Altitude Film Distribution Limited,No
Http://opendatacommunities.org/id/metropolitan-district-council/leeds,Leeds City Council,31/01/2018,City Development,Libraries  Arts & Heritage,#N/A,Other Hired And Contracted Services,265,31/01/2018,0118-00675,0.00,738.34,R,Altitude Film Distribution Limited,No
Http://opendatacommunities.org/id/metropolitan-district-council/leeds,Leeds City Council,31/01/2018,Children and Families,Safeguarding Targeted & Specialist,Support Services,Legal Disbursements,411,09/01/2018,0118-00676,0.00,50.00,R,Alwoodley Medical Centre,No
Http://opendatacommunities.org/id/metropolitan-district-council/leeds,Leeds City Council,31/01/2018,Communities and Environment,Communities,#N/A,Other Hired And Contracted Services,265,31/01/2018,0118-00677,0.00,40.00,R,Amal Akasha,No
Http://opendatacommunities.org/id/metropolitan-district-council/leeds,Leeds City Council,31/01/2018,Children and Families,Safeguarding Targeted & Specialist,Third Party Payments,Services Rendered By Other Organisations,511,17/01/2018,0118-00678,0.00,1108.80,R,REDACTED PERSONAL DATA,No
Http://opendatacommunities.org/id/metropolitan-district-council/leeds,Leeds City Council,31/01/2018,Children and Families,Safeguarding Targeted & Specialist,Third Party Payments,Services Rendered By Other Organisations,511,17/01/2018,0118-00679,0.00,554.40,R,REDACTED PERSONAL DATA,No
Http://opendatacommunities.org/id/metropolitan-district-council/leeds,Leeds City Council,31/01/2018,Children and Families,Safeguarding Targeted & Specialist,Third Party Payments,Services Rendered By Other Organisations,511,31/01/2018,0118-00680,0.00,554.40,R,REDACTED PERSONAL DATA,No
Http://opendatacommunities.org/id/metropolitan-district-council/leeds,Leeds City Council,31/01/2018,Children and Families,Safeguarding Targeted & Specialist,Third Party Payments,Services Rendered By Other Organisations,511,17/01/2018,0118-00681,0.00,1663.20,R,REDACTED PERSONAL DATA,No
Http://opendatacommunities.org/id/metropolitan-district-council/leeds,Leeds City Council,31/01/2018,Resources and Housing,Shared Services,Supplies and Services,Operational Materials,205,17/01/2018,0118-00682,0.00,344.10,R,Amari Plastics Plc,No
Http://opendatacommunities.org/id/metropolitan-district-council/leeds,Leeds City Council,31/01/2018,City Development,Recreation  ,Employees,Best Value Training,70,20/12/2017,0118-00683,0.00,150.00,R,Amatuer Swimming Assc,Yes
Http://opendatacommunities.org/id/metropolitan-district-council/leeds,Leeds City Council,31/01/2018,Children and Families,Safeguarding Targeted & Specialist,Third Party Payments,Services Rendered By Other Organisations,511,15/01/2018,0118-00684,0.00,5999.40,R,Amazing Grace Early Years Childcare,No
Http://opendatacommunities.org/id/metropolitan-district-council/leeds,Leeds City Council,31/01/2018,Children and Families,Safeguarding Targeted & Specialist,Third Party Payments,Services Rendered By Other Organisations,511,17/01/2018,0118-00685,0.00,11642.40,R,Amazing Grace Early Years Childcare,No
Http://opendatacommunities.org/id/metropolitan-district-council/leeds,Leeds City Council,31/01/2018,Communities and Environment,Customer Access  ,Supplies and Services,Books & Audio-Visual Materials,206,07/12/2017,0118-00686,0.00,44.10,R,Amazing Publishing Lim,Yes
Http://opendatacommunities.org/id/metropolitan-district-council/leeds,Leeds City Council,31/01/2018,Children and Families,Safeguarding Targeted & Specialist  ,Supplies and Services,Office Consumables,210,24/11/2017,0118-00687,0.00,-3.99,R,Amazon Digital Video,Yes
Http://opendatacommunities.org/id/metropolitan-district-council/leeds,Leeds City Council,31/01/2018,Children and Families,Safeguarding Targeted & Specialist  ,Supplies and Services,Office Consumables,210,19/11/2017,0118-00688,0.00,-131.26,R,Amazon Eu Amazon.Co.Uk,Yes
Http://opendatacommunities.org/id/metropolitan-district-council/leeds,Leeds City Council,31/01/2018,Resources and Housing,Legal Services  ,Supplies and Services,Operational Materials,205,08/12/2017,0118-00689,0.00,10.70,R,Amazon Eu Amazon.Co.Uk,Yes
Http://opendatacommunities.org/id/metropolitan-district-council/leeds,Leeds City Council,31/01/2018,Children and Families,Safeguarding Targeted & Specialist  ,Transfer Payments,Leaving Care Grants,635,12/12/2017,0118-00690,0.00,8.76,R,Amazon Eu Amazon.Co.Uk,Yes
Http://opendatacommunities.org/id/metropolitan-district-council/leeds,Leeds City Council,31/01/2018,City Development,Employment & Skills  ,Supplies and Services,Operational Materials,205,13/12/2017,0118-00691,0.00,15.20,R,Amazon Eu Amazon.Co.Uk,Yes
Http://opendatacommunities.org/id/metropolitan-district-council/leeds,Leeds City Council,31/01/2018,Children and Families,Safeguarding Targeted & Specialist  ,Supplies and Services,Teaching Materials,202,17/12/2017,0118-00692,0.00,58.32,R,Amazon Eu Amazon.Co.Uk,Yes
Http://opendatacommunities.org/id/metropolitan-district-council/leeds,Leeds City Council,31/01/2018,City Development,Libraries  Arts & Heritage  ,Supplies and Services,Operational Materials,205,19/12/2017,0118-00693,0.00,45.77,R,Amazon Eu Amazon.Co.Uk,Yes
Http://opendatacommunities.org/id/metropolitan-district-council/leeds,Leeds City Council,31/01/2018,Communities and Environment,Benefits  Wlefare And Poverty  ,Supplies and Services,Office Consumables,210,20/12/2017,0118-00694,0.00,36.80,R,Amazon Eu Amazon.Co.Uk,Yes
Http://opendatacommunities.org/id/metropolitan-district-council/leeds,Leeds City Council,31/01/2018,Children and Families,Safeguarding Targeted & Specialist  ,Supplies and Services,Books & Audio-Visual Materials,206,21/12/2017,0118-00695,0.00,42.32,R,Amazon Eu Amazon.Co.Uk,Yes
Http://opendatacommunities.org/id/metropolitan-district-council/leeds,Leeds City Council,31/01/2018,City Development,Libraries  Arts & Heritage  ,Supplies and Services,Teaching Materials,202,26/12/2017,0118-00696,0.00,21.27,R,Amazon Eu Amazon.Co.Uk,Yes
Http://opendatacommunities.org/id/metropolitan-district-council/leeds,Leeds City Council,31/01/2018,City Development,Recreation,Supplies and Services,Operational Furniture And Equipment,203,08/01/2018,0118-00697,0.00,34.73,R,Amazon Leisure Uk Ltd,No
Http://opendatacommunities.org/id/metropolitan-district-council/leeds,Leeds City Council,31/01/2018,City Development,Recreation,Supplies and Services,Operational Furniture And Equipment,203,08/01/2018,0118-00698,0.00,105.00,R,Amazon Leisure Uk Ltd,No
Http://opendatacommunities.org/id/metropolitan-district-council/leeds,Leeds City Council,31/01/2018,City Development,Recreation,Supplies and Services,Operational Furniture And Equipment,203,08/01/2018,0118-00699,0.00,189.29,R,Amazon Leisure Uk Ltd,No
Http://opendatacommunities.org/id/metropolitan-district-council/leeds,Leeds City Council,31/01/2018,City Development,Recreation,Supplies and Services,Operational Furniture And Equipment,203,08/01/2018,0118-00700,0.00,612.34,R,Amazon Leisure Uk Ltd,No
Http://opendatacommunities.org/id/metropolitan-district-council/leeds,Leeds City Council,31/01/2018,City Development,Recreation,Supplies and Services,Operational Furniture And Equipment,203,08/01/2018,0118-00701,0.00,243.17,R,Amazon Leisure Uk Ltd,No
Http://opendatacommunities.org/id/metropolitan-district-council/leeds,Leeds City Council,31/01/2018,City Development,Recreation,Supplies and Services,Operational Furniture And Equipment,203,08/01/2018,0118-00702,0.00,1825.98,R,Amazon Leisure Uk Ltd,No
Http://opendatacommunities.org/id/metropolitan-district-council/leeds,Leeds City Council,31/01/2018,City Development,Recreation,Supplies and Services,Operational Furniture And Equipment,203,08/01/2018,0118-00703,0.00,-513.44,R,Amazon Leisure Uk Ltd,No
Http://opendatacommunities.org/id/metropolitan-district-council/leeds,Leeds City Council,31/01/2018,City Development,Recreation,Supplies and Services,Operational Furniture And Equipment,203,15/01/2018,0118-00704,0.00,1592.54,R,Amazon Leisure Uk Ltd,No
Http://opendatacommunities.org/id/metropolitan-district-council/leeds,Leeds City Council,31/01/2018,City Development,Recreation,Supplies and Services,Operational Furniture And Equipment,203,15/01/2018,0118-00705,0.00,662.36,R,Amazon Leisure Uk Ltd,No
Http://opendatacommunities.org/id/metropolitan-district-council/leeds,Leeds City Council,31/01/2018,City Development,Recreation,Supplies and Services,Operational Furniture And Equipment,203,15/01/2018,0118-00706,0.00,955.49,R,Amazon Leisure Uk Ltd,No
Http://opendatacommunities.org/id/metropolitan-district-council/leeds,Leeds City Council,31/01/2018,City Development,Recreation,Supplies and Services,Operational Furniture And Equipment,203,15/01/2018,0118-00707,0.00,105.00,R,Amazon Leisure Uk Ltd,No
Http://opendatacommunities.org/id/metropolitan-district-council/leeds,Leeds City Council,31/01/2018,City Development,Recreation,Supplies and Services,Operational Furniture And Equipment,203,23/01/2018,0118-00708,0.00,105.00,R,Amazon Leisure Uk Ltd,No
Http://opendatacommunities.org/id/metropolitan-district-council/leeds,Leeds City Council,31/01/2018,City Development,Recreation,Supplies and Services,Operational Furniture And Equipment,203,30/01/2018,0118-00709,0.00,372.00,R,Amazon Leisure Uk Ltd,No
Http://opendatacommunities.org/id/metropolitan-district-council/leeds,Leeds City Council,31/01/2018,Communities and Environment,Customer Access  ,Supplies and Services,Office Furniture & Equipment,201,03/12/2017,0118-00710,0.00,6.66,R,Amazon Prime,Yes
Http://opendatacommunities.org/id/metropolitan-district-council/leeds,Leeds City Council,31/01/2018,City Development,Recreation  ,Supplies and Services,Operational Furniture And Equipment,203,04/12/2017,0118-00711,0.00,7.99,R,Amazon Prime,Yes
Http://opendatacommunities.org/id/metropolitan-district-council/leeds,Leeds City Council,31/01/2018,Children and Families,Safeguarding Targeted & Specialist  ,Supplies and Services,Office Consumables,210,22/12/2017,0118-00712,0.00,7.99,R,Amazon Prime,Yes
Http://opendatacommunities.org/id/metropolitan-district-council/leeds,Leeds City Council,31/01/2018,Resources and Housing,Commercial Services  ,Supplies and Services,Operational Materials,205,27/12/2017,0118-00713,0.00,7.99,R,Amazon Prime,Yes
Http://opendatacommunities.org/id/metropolitan-district-council/leeds,Leeds City Council,31/01/2018,Children and Families,Partnerships  ,Supplies and Services,Teaching Materials,202,14/12/2017,0118-00714,0.00,52.66,R,Amazon Svcs Europe sar,Yes
Http://opendatacommunities.org/id/metropolitan-district-council/leeds,Leeds City Council,31/01/2018,City Development,Libraries  Arts & Heritage  ,Supplies and Services,Books & Audio-Visual Materials,206,06/12/2017,0118-00715,0.00,5.96,R,Amazon Svcs Eu-Uk Amazon.,Yes
Http://opendatacommunities.org/id/metropolitan-district-council/leeds,Leeds City Council,31/01/2018,City Development,Libraries  Arts & Heritage  ,Supplies and Services,Operational Materials,205,06/12/2017,0118-00716,0.00,26.99,R,Amazon Svcs Eu-Uk Amazon.,Yes
Http://opendatacommunities.org/id/metropolitan-district-council/leeds,Leeds City Council,31/01/2018,City Development,Libraries  Arts & Heritage  ,Supplies and Services,Operational Materials,205,07/12/2017,0118-00717,0.00,21.79,R,Amazon Svcs Eu-Uk Amazon.,Yes
Http://opendatacommunities.org/id/metropolitan-district-council/leeds,Leeds City Council,31/01/2018,City Development,Libraries  Arts & Heritage  ,Supplies and Services,Operational Materials,205,07/12/2017,0118-00718,0.00,-49.95,R,Amazon Svcs Eu-Uk Amazon.,Yes
Http://opendatacommunities.org/id/metropolitan-district-council/leeds,Leeds City Council,31/01/2018,City Development,Recreation  ,Supplies and Services,Books & Audio-Visual Materials,206,08/12/2017,0118-00719,0.00,23.98,R,Amazon Svcs Eu-Uk Amazon.,Yes
Http://opendatacommunities.org/id/metropolitan-district-council/leeds,Leeds City Council,31/01/2018,Resources and Housing,Legal Services  ,Supplies and Services,Operational Materials,205,08/12/2017,0118-00720,0.00,72.73,R,Amazon Svcs Eu-Uk Amazon.,Yes
Http://opendatacommunities.org/id/metropolitan-district-council/leeds,Leeds City Council,31/01/2018,Resources and Housing,Facilities Management  ,Supplies and Services,Operational Furniture And Equipment,203,11/12/2017,0118-00721,0.00,39.92,R,Amazon Svcs Eu-Uk Amazon.,Yes
Http://opendatacommunities.org/id/metropolitan-district-council/leeds,Leeds City Council,31/01/2018,Children and Families,Safeguarding Targeted & Specialist  ,Supplies and Services,Operational Furniture And Equipment,203,11/12/2017,0118-00722,0.00,15.55,R,Amazon Svcs Eu-Uk Amazon.,Yes
Http://opendatacommunities.org/id/metropolitan-district-council/leeds,Leeds City Council,31/01/2018,Children and Families,Safeguarding Targeted & Specialist  ,Supplies and Services,Operational Furniture And Equipment,203,11/12/2017,0118-00723,0.00,8.24,R,Amazon Svcs Eu-Uk Amazon.,Yes
Http://opendatacommunities.org/id/metropolitan-district-council/leeds,Leeds City Council,31/01/2018,Children and Families,Safeguarding Targeted & Specialist  ,Supplies and Services,Operational Furniture And Equipment,203,11/12/2017,0118-00724,0.00,12.00,R,Amazon Svcs Eu-Uk Amazon.,Yes
Http://opendatacommunities.org/id/metropolitan-district-council/leeds,Leeds City Council,31/01/2018,Resources and Housing,Shared Services  ,Premises,Maintenance Of Buildings,101,11/12/2017,0118-00725,0.00,205.48,R,Amazon Svcs Eu-Uk Amazon.,Yes
Http://opendatacommunities.org/id/metropolitan-district-council/leeds,Leeds City Council,31/01/2018,Resources and Housing,Legal Services  ,Supplies and Services,Operational Materials,205,11/12/2017,0118-00726,0.00,31.63,R,Amazon Svcs Eu-Uk Amazon.,Yes
Http://opendatacommunities.org/id/metropolitan-district-council/leeds,Leeds City Council,31/01/2018,Children and Families,Safeguarding Targeted & Specialist  ,Supplies and Services,Operational Furniture And Equipment,203,11/12/2017,0118-00727,0.00,68.73,R,Amazon Svcs Eu-Uk Amazon.,Yes
Http://opendatacommunities.org/id/metropolitan-district-council/leeds,Leeds City Council,31/01/2018,Children and Families,Safeguarding Targeted & Specialist  ,Supplies and Services,Operational Furniture And Equipment,203,12/12/2017,0118-00728,0.00,9.47,R,Amazon Svcs Eu-Uk Amazon.,Yes
Http://opendatacommunities.org/id/metropolitan-district-council/leeds,Leeds City Council,31/01/2018,City Development,Libraries  Arts & Heritage  ,Supplies and Services,Books & Audio-Visual Materials,206,13/12/2017,0118-00729,0.00,-2.26,R,Amazon Svcs Eu-Uk Amazon.,Yes
Http://opendatacommunities.org/id/metropolitan-district-council/leeds,Leeds City Council,31/01/2018,Strategic Landlord,Housing Management  ,Supplies and Services,Office Furniture & Equipment,201,14/12/2017,0118-00730,0.00,16.48,R,Amazon Svcs Eu-Uk Amazon.,Yes
Http://opendatacommunities.org/id/metropolitan-district-council/leeds,Leeds City Council,31/01/2018,Children and Families,Safeguarding Targeted & Specialist  ,Supplies and Services,Teaching Furniture & Equipment,207,15/12/2017,0118-00731,0.00,8.89,R,Amazon Svcs Eu-Uk Amazon.,Yes
Http://opendatacommunities.org/id/metropolitan-district-council/leeds,Leeds City Council,31/01/2018,Communities and Environment,Customer Access  ,Supplies and Services,Computer Software & Equipment,214,17/12/2017,0118-00732,0.00,17.82,R,Amazon Svcs Eu-Uk Amazon.,Yes
Http://opendatacommunities.org/id/metropolitan-district-council/leeds,Leeds City Council,31/01/2018,Children and Families,Safeguarding Targeted & Specialist  ,Supplies and Services,Teaching Materials,202,18/12/2017,0118-00733,0.00,21.65,R,Amazon Svcs Eu-Uk Amazon.,Yes
Http://opendatacommunities.org/id/metropolitan-district-council/leeds,Leeds City Council,31/01/2018,Adults and Health,Home Care Services  ,Supplies and Services,Operational Materials,205,19/12/2017,0118-00734,0.00,149.75,R,Amazon Svcs Eu-Uk Amazon.,Yes
Http://opendatacommunities.org/id/metropolitan-district-council/leeds,Leeds City Council,31/01/2018,Adults and Health,Home Care Services  ,Supplies and Services,Operational Materials,205,19/12/2017,0118-00735,0.00,613.98,R,Amazon Svcs Eu-Uk Amazon.,Yes
Http://opendatacommunities.org/id/metropolitan-district-council/leeds,Leeds City Council,31/01/2018,City Development,Libraries  Arts & Heritage  ,Supplies and Services,Teaching Materials,202,20/12/2017,0118-00736,0.00,12.99,R,Amazon Svcs Eu-Uk Amazon.,Yes
Http://opendatacommunities.org/id/metropolitan-district-council/leeds,Leeds City Council,31/01/2018,City Development,Libraries  Arts & Heritage  ,Supplies and Services,Operational Materials,205,21/12/2017,0118-00737,0.00,7.98,R,Amazon Svcs Eu-Uk Amazon.,Yes
Http://opendatacommunities.org/id/metropolitan-district-council/leeds,Leeds City Council,31/01/2018,Communities and Environment,Customer Access  ,Supplies and Services,Operational Materials,205,22/12/2017,0118-00738,0.00,44.09,R,Amazon Svcs Eu-Uk Amazon.,Yes
Http://opendatacommunities.org/id/metropolitan-district-council/leeds,Leeds City Council,31/01/2018,Adults and Health,Services For Adults Under 65 Mental/Dis  ,Supplies and Services,Operational Materials,205,22/12/2017,0118-00739,0.00,5.66,R,Amazon Svcs Eu-Uk Amazon.,Yes
Http://opendatacommunities.org/id/metropolitan-district-council/leeds,Leeds City Council,31/01/2018,City Development,Libraries  Arts & Heritage  ,Supplies and Services,Books & Audio-Visual Materials,206,28/12/2017,0118-00740,0.00,5.79,R,Amazon Svcs Eu-Uk Amazon.,Yes
Http://opendatacommunities.org/id/metropolitan-district-council/leeds,Leeds City Council,31/01/2018,City Development,Recreation  ,Supplies and Services,Operational Furniture And Equipment,203,30/11/2017,0118-00741,0.00,23.33,R,Amazon UK Marketplace,Yes
Http://opendatacommunities.org/id/metropolitan-district-council/leeds,Leeds City Council,31/01/2018,Resources and Housing,Leeds Building Services  ,Supplies and Services,Office Consumables,210,30/11/2017,0118-00742,0.00,55.93,R,Amazon UK Marketplace,Yes
Http://opendatacommunities.org/id/metropolitan-district-council/leeds,Leeds City Council,31/01/2018,Communities and Environment,Customer Access  ,Supplies and Services,Books & Audio-Visual Materials,206,30/11/2017,0118-00743,0.00,22.26,R,Amazon UK Marketplace,Yes
Http://opendatacommunities.org/id/metropolitan-district-council/leeds,Leeds City Council,31/01/2018,City Development,Libraries  Arts & Heritage  ,Supplies and Services,Operational Materials,205,30/11/2017,0118-00744,0.00,145.59,R,Amazon UK Marketplace,Yes
Http://opendatacommunities.org/id/metropolitan-district-council/leeds,Leeds City Council,31/01/2018,Resources and Housing,Finance  ,Supplies and Services,Office Furniture & Equipment,201,30/11/2017,0118-00745,0.00,59.92,R,Amazon UK Marketplace,Yes
Http://opendatacommunities.org/id/metropolitan-district-council/leeds,Leeds City Council,31/01/2018,City Development,Libraries  Arts & Heritage  ,Supplies and Services,Operational Materials,205,30/11/2017,0118-00746,0.00,18.67,R,Amazon UK Marketplace,Yes
Http://opendatacommunities.org/id/metropolitan-district-council/leeds,Leeds City Council,31/01/2018,City Development,Libraries  Arts & Heritage  ,Supplies and Services,Operational Materials,205,30/11/2017,0118-00747,0.00,75.74,R,Amazon UK Marketplace,Yes
Http://opendatacommunities.org/id/metropolitan-district-council/leeds,Leeds City Council,31/01/2018,Children and Families,Safeguarding Targeted & Specialist  ,Supplies and Services,Teaching Materials,202,01/12/2017,0118-00748,0.00,3.98,R,Amazon UK Marketplace,Yes
Http://opendatacommunities.org/id/metropolitan-district-council/leeds,Leeds City Council,31/01/2018,Communities and Environment,Cleaner Neighbourhood Teams  ,Supplies and Services,Operational Materials,205,01/12/2017,0118-00749,0.00,26.64,R,Amazon UK Marketplace,Yes
Http://opendatacommunities.org/id/metropolitan-district-council/leeds,Leeds City Council,31/01/2018,Children and Families,Safeguarding Targeted & Specialist  ,Supplies and Services,Operational Furniture And Equipment,203,01/12/2017,0118-00750,0.00,45.62,R,Amazon UK Marketplace,Yes
Http://opendatacommunities.org/id/metropolitan-district-council/leeds,Leeds City Council,31/01/2018,Children and Families,Safeguarding Targeted & Specialist  ,Supplies and Services,Operational Furniture And Equipment,203,01/12/2017,0118-00751,0.00,49.99,R,Amazon UK Marketplace,Yes
Http://opendatacommunities.org/id/metropolitan-district-council/leeds,Leeds City Council,31/01/2018,City Development,Libraries  Arts & Heritage  ,Supplies and Services,Operational Materials,205,01/12/2017,0118-00752,0.00,14.15,R,Amazon UK Marketplace,Yes
Http://opendatacommunities.org/id/metropolitan-district-council/leeds,Leeds City Council,31/01/2018,Resources and Housing,Facilities Management  ,Supplies and Services,Operational Furniture And Equipment,203,01/12/2017,0118-00753,0.00,60.21,R,Amazon UK Marketplace,Yes
Http://opendatacommunities.org/id/metropolitan-district-council/leeds,Leeds City Council,31/01/2018,Children and Families,Safeguarding Targeted & Specialist  ,Supplies and Services,Teaching Materials,202,02/12/2017,0118-00754,0.00,0.71,R,Amazon UK Marketplace,Yes
Http://opendatacommunities.org/id/metropolitan-district-council/leeds,Leeds City Council,31/01/2018,City Development,Libraries  Arts & Heritage  ,Supplies and Services,Operational Furniture And Equipment,203,02/12/2017,0118-00755,0.00,133.17,R,Amazon UK Marketplace,Yes
Http://opendatacommunities.org/id/metropolitan-district-council/leeds,Leeds City Council,31/01/2018,Resources and Housing,Commercial Services  ,Supplies and Services,Operational Furniture And Equipment,203,03/12/2017,0118-00756,0.00,28.03,R,Amazon UK Marketplace,Yes
Http://opendatacommunities.org/id/metropolitan-district-council/leeds,Leeds City Council,31/01/2018,Adults and Health,Home Care Services  ,Supplies and Services,Operational Furniture And Equipment,203,05/12/2017,0118-00757,0.00,13.18,R,Amazon UK Marketplace,Yes
Http://opendatacommunities.org/id/metropolitan-district-council/leeds,Leeds City Council,31/01/2018,Communities and Environment,Parks And Countryside  ,Supplies and Services,Office Furniture & Equipment,201,05/12/2017,0118-00758,0.00,19.16,R,Amazon UK Marketplace,Yes
Http://opendatacommunities.org/id/metropolitan-district-council/leeds,Leeds City Council,31/01/2018,City Development,Libraries  Arts & Heritage  ,Supplies and Services,Operational Materials,205,05/12/2017,0118-00759,0.00,16.46,R,Amazon UK Marketplace,Yes
